Transaction Number,Service - Fund ,Service  - Function ,Service - Cost Centre,Expense Type ,Expense Description,Supplier Name,Supplier Post Code (first 4 digits),Payment Date,Amount �
82451233,Travel,Highways & Transport,Concessionary Travel,3rd Party Payments,Concessionary Travel Subsidy,24/7 SWINDON TAXIS,SN4 ,21/04/2023,580.92
81982235,Physical Support,Adults,Physical Support 65 and over,3rd Party Payments,Personal Budget - Domiciliary care,247 HOME CARE LTD,SN5 ,21/04/2023,-162.87
80753250,Physical Support,Adults,Physical Support 65 and over,3rd Party Payments,Personal Budget - Domiciliary care,247 HOME CARE LTD,SN5 ,14/04/2023,946.45
81982234,Physical Support,Adults,Physical Support 18 - 64,3rd Party Payments,Personal Budget - Domiciliary care,247 HOME CARE LTD,SN5 ,21/04/2023,"1,161.89"
79663233,Physical Support,Adults,Physical Support 65 and over,3rd Party Payments,Personal Budget - Domiciliary care,247 HOME CARE LTD,SN5 ,05/04/2023,894.23
81982235,Physical Support,Adults,Physical Support 65 and over,3rd Party Payments,Personal Budget - Domiciliary care,247 HOME CARE LTD,SN5 ,21/04/2023,946.45
79662233,Physical Support,Adults,Physical Support 18 - 64,3rd Party Payments,Personal Budget - Domiciliary care,247 HOME CARE LTD,SN5 ,05/04/2023,"1,100.56"
79663233,Physical Support,Adults,Physical Support 65 and over,3rd Party Payments,Personal Budget - Domiciliary care,247 HOME CARE LTD,SN5 ,05/04/2023,-162.87
79662233,Physical Support,Adults,Physical Support 18 - 64,3rd Party Payments,Carers,247 HOME CARE LTD,SN5 ,05/04/2023,151.44
79662233,Physical Support,Adults,Physical Support 18 - 64,3rd Party Payments,Personal Budget - Domiciliary care,247 HOME CARE LTD,SN5 ,05/04/2023,-3.80
81982234,Physical Support,Adults,Physical Support 18 - 64,3rd Party Payments,Carers,247 HOME CARE LTD,SN5 ,21/04/2023,151.44
82823233,Physical Support,Adults,Physical Support 18 - 64,3rd Party Payments,Personal Budget - Domiciliary care,247 HOME CARE LTD,SN5 ,24/04/2023,-3.80
81982234,Physical Support,Adults,Physical Support 18 - 64,3rd Party Payments,Personal Budget - Domiciliary care,247 HOME CARE LTD,SN5 ,21/04/2023,-3.80
79662234,Physical Support,Adults,Physical Support 65 and over,3rd Party Payments,Personal Budget - Domiciliary care,247 HOME CARE LTD,SN5 ,05/04/2023,"1,099.98"
82823233,Physical Support,Adults,Physical Support 18 - 64,3rd Party Payments,Carers,247 HOME CARE LTD,SN5 ,24/04/2023,176.68
82823233,Physical Support,Adults,Physical Support 18 - 64,3rd Party Payments,Personal Budget - Domiciliary care,247 HOME CARE LTD,SN5 ,24/04/2023,"1,184.42"
81771233,Physical Support,Adults,Physical Support 65 and over,3rd Party Payments,Personal Budget - Domiciliary care,247 HOME CARE LTD,SN5 ,19/04/2023,"1,257.12"
80753250,Physical Support,Adults,Physical Support 65 and over,3rd Party Payments,Personal Budget - Domiciliary care,247 HOME CARE LTD,SN5 ,14/04/2023,-162.87
80471233,School Transport,"Education, Inclusion and Skills",Mainstream School Transport,Transport Costs,Home to School Transport,4K TRAVEL LTD,SN2 ,12/04/2023,"6,527.40"
80472233,School Transport,"Education, Inclusion and Skills",Special Educational Needs Transport,Transport Costs,Home to School Transport,4K TRAVEL LTD,SN2 ,12/04/2023,"2,362.50"
81563235,Highways & Transport,Highways & Transport,Traffic Signalling,Premises Costs,Permanent Fixtures and Fittings,4WAY CONSULTING LTD,SK4 ,19/04/2023,657.70
82544344,Homelessness and Travellers,Housing Services,Leased Private Managed Accommodation,Transfer Payments,Payment of Costs,REDACTED PERSONAL DATA,SN3 ,24/04/2023,800.00
82423233,Other Repairs,Repairs,Cyclical Maintenance,Supplies and Services,Testing / Inspection,ABBEY ELECTRICAL (SWINDON) LTD T/A ABBEY ELECTRICAL UK,SN6 ,21/04/2023,960.53
80838234,Other Repairs,Repairs,Cyclical Maintenance,Supplies and Services,Testing / Inspection,ABBEY ELECTRICAL (SWINDON) LTD T/A ABBEY ELECTRICAL UK,SN6 ,14/04/2023,564.59
82138233,Early Years Block,DSG Skills and Attainment,Free Nursery Education Commissioning - three & four  year olds,3rd Party Payments,Contracts - Child Care,ABBEY FARM EDUCATE TOGETHER PRIMARY,SN25,19/04/2023,"7,013.71"
80930233,High Needs Block,DSG Skills and Attainment,SEN Resourcing Assessment Panel,3rd Party Payments,Top up funding - Academies and Free Schools Pre 16,ABBEY MEADS COMMUNITY PRIMARY SCHOOL,SN25,14/04/2023,"6,215.42"
82248234,Early Years Block,DSG Skills and Attainment,Free Nursery Education Commissioning - three & four  year olds,3rd Party Payments,Contracts - Child Care,ABBEY MEADS COMMUNITY PRIMARY SCHOOL,SN25,19/04/2023,"32,623.67"
82442233,Public Health,Public Health,Sexual Health & Health Protection Budget,3rd Party Payments,Contract Payments,ABBEY MEADS MEDICAL GROUP,SN25,21/04/2023,646.00
83214233,Public Protection,Public Health,Food Safety,Supplies and Services,Materials,ABC FOOD LAW LIMITED,NR4 ,26/04/2023,"1,350.00"
81022233,Physical Support,Adults,Physical Support 18 - 64,3rd Party Payments,Personal Budget - Domiciliary care,ABICARE SERVICES LTD,BS32,14/04/2023,605.60
80345233,Physical Support,Adults,Physical Support 18 - 64,3rd Party Payments,Personal Budget - Domiciliary care,ABICARE SERVICES LTD,BS32,12/04/2023,571.78
83573233,Physical Support,Adults,Physical Support 18 - 64,3rd Party Payments,Personal Budget - Domiciliary care,ABICARE SERVICES LTD,BS32,26/04/2023,586.96
83577233,Physical Support,Adults,Physical Support 18 - 64,3rd Party Payments,Personal Budget - Domiciliary care,ABICARE SERVICES LTD (LIVE IN),SP2 ,26/04/2023,"1,106.00"
83576233,Physical Support,Adults,Physical Support 18 - 64,3rd Party Payments,Personal Budget - Domiciliary care,ABICARE SERVICES LTD (LIVE IN),SP2 ,26/04/2023,"1,200.00"
80353233,Physical Support,Adults,Physical Support 18 - 64,3rd Party Payments,Personal Budget - Domiciliary care,ABICARE SERVICES LTD (LIVE IN),SP2 ,12/04/2023,"1,106.00"
81025233,Mental Health,Adults,Mental Health 65 and over,3rd Party Payments,Personal Budget - Domiciliary care,ABICARE SERVICES LTD (LIVE IN),SP2 ,14/04/2023,"1,106.00"
81026233,Mental Health,Adults,Mental Health 65 and over,3rd Party Payments,Personal Budget - Domiciliary care,ABICARE SERVICES LTD (LIVE IN),SP2 ,14/04/2023,"1,106.00"
80355233,Mental Health,Adults,Mental Health 65 and over,3rd Party Payments,Personal Budget - Domiciliary care,ABICARE SERVICES LTD (LIVE IN),SP2 ,12/04/2023,"1,106.00"
82549276,Physical Support,Adults,Physical Support 18 - 64,3rd Party Payments,Personal Budget - Domiciliary care,ABICARE SERVICES LTD (LIVE IN),SP2 ,21/04/2023,"1,200.00"
82010234,Physical Support,Adults,Physical Support 18 - 64,3rd Party Payments,Personal Budget - Domiciliary care,ABICARE SERVICES LTD (LIVE IN),SP2 ,19/04/2023,"1,106.00"
80352233,Physical Support,Adults,Physical Support 18 - 64,3rd Party Payments,Personal Budget - Domiciliary care,ABICARE SERVICES LTD (LIVE IN),SP2 ,12/04/2023,"1,200.00"
81024234,Physical Support,Adults,Physical Support 18 - 64,3rd Party Payments,Personal Budget - Domiciliary care,ABICARE SERVICES LTD (LIVE IN),SP2 ,14/04/2023,"1,106.00"
80354233,Mental Health,Adults,Mental Health 65 and over,3rd Party Payments,Personal Budget - Domiciliary care,ABICARE SERVICES LTD (LIVE IN),SP2 ,12/04/2023,"1,106.00"
83578233,Mental Health,Adults,Mental Health 65 and over,3rd Party Payments,Personal Budget - Domiciliary care,ABICARE SERVICES LTD (LIVE IN),SP2 ,26/04/2023,"1,106.00"
81024233,Physical Support,Adults,Physical Support 18 - 64,3rd Party Payments,Personal Budget - Domiciliary care,ABICARE SERVICES LTD (LIVE IN),SP2 ,14/04/2023,"1,200.00"
82011233,Mental Health,Adults,Mental Health 65 and over,3rd Party Payments,Personal Budget - Domiciliary care,ABICARE SERVICES LTD (LIVE IN),SP2 ,19/04/2023,"1,106.00"
83579233,Mental Health,Adults,Mental Health 65 and over,3rd Party Payments,Personal Budget - Domiciliary care,ABICARE SERVICES LTD (LIVE IN),SP2 ,26/04/2023,"1,106.00"
82012233,Mental Health,Adults,Mental Health 65 and over,3rd Party Payments,Personal Budget - Domiciliary care,ABICARE SERVICES LTD (LIVE IN),SP2 ,19/04/2023,"1,106.00"
81542233,Social Care,"Children, Families and Community Health Services",Unaccompanied Asylum Seeking Children (UASC),3rd Party Payments,Semi Independent,ABIDING LIMITED T/A ABIDING CARE,OX4 ,19/04/2023,"15,511.08"
81541237,Social Care,"Children, Families and Community Health Services",Unaccompanied Asylum Seeking Children (UASC),3rd Party Payments,Semi Independent,ABIDING LIMITED T/A ABIDING CARE,OX4 ,19/04/2023,"27,198.08"
82216233,Early Years Block,DSG Skills and Attainment,Free Nursery Education Commissioning - three & four  year olds,3rd Party Payments,Contracts - Child Care,REDACTED PERSONAL DATA,SN2 ,19/04/2023,"1,050.80"
80107233,Streetsmart,Streetsmart,Waterside Fleet Hires,Transport Costs,Vehicle Hire / Contract,ACCESS HIRE NATIONWIDE,WF6 ,12/04/2023,"1,527.86"
80106233,Streetsmart,Streetsmart,Waterside Fleet Hires,Transport Costs,Vehicle Hire / Contract,ACCESS HIRE NATIONWIDE,WF6 ,12/04/2023,"1,592.14"
80105233,Streetsmart,Streetsmart,Waterside Fleet Hires,Transport Costs,Vehicle Hire / Contract,ACCESS HIRE NATIONWIDE,WF6 ,12/04/2023,"1,585.43"
80294233,Digital & Business Change,Digital & Business Change,IT Systems,Supplies and Services,License Costs,ACCESS UK LTD,CO7 ,12/04/2023,"4,000.00"
80267233,Digital & Business Change,Digital & Business Change,IT Systems,Supplies and Services,License Costs,ACCESS UK LTD,CO7 ,12/04/2023,"54,412.02"
80292233,Digital & Business Change,Digital & Business Change,IT Systems,Supplies and Services,License Costs,ACCESS UK LTD,CO7 ,12/04/2023,"9,906.71"
80384233,Landscaping & Open Space,Culture & Heritage & Art,GWCF - Trees for Climate,Capital,Contractor Payments,ACCESSIBLE VEHICLE CONVERSIONS CIC,EX4 ,12/04/2023,"90,335.00"
82544403,Homelessness and Travellers,Housing Services,Leased Private Managed Accommodation,Transfer Payments,Payment of Costs,REDACTED PERSONAL DATA,SN8 ,24/04/2023,650.00
82544365,Homelessness and Travellers,Housing Services,Leased Private Managed Accommodation,Transfer Payments,Payment of Costs,REDACTED PERSONAL DATA,SN8 ,24/04/2023,700.00
82545263,Social Care,"Children, Families and Community Health Services",Children's Resource and Home Finding Team,3rd Party Payments,Independent Fostering Agency Placements,ACTION FOR CHILDREN,WD18,21/04/2023,"2,864.12"
82545269,Social Care,"Children, Families and Community Health Services",Children's Resource and Home Finding Team,3rd Party Payments,Independent Fostering Agency Placements,ACTION FOR CHILDREN,WD18,21/04/2023,"3,660.17"
82545266,Social Care,"Children, Families and Community Health Services",Children's Resource and Home Finding Team,3rd Party Payments,Independent Fostering Agency Placements,ACTION FOR CHILDREN,WD18,21/04/2023,"3,305.96"
82545265,Social Care,"Children, Families and Community Health Services",Children's Resource and Home Finding Team,3rd Party Payments,Independent Fostering Agency Placements,ACTION FOR CHILDREN,WD18,21/04/2023,"3,305.96"
82545268,Social Care,"Children, Families and Community Health Services",Children's Resource and Home Finding Team,3rd Party Payments,Independent Fostering Agency Placements,ACTION FOR CHILDREN,WD18,21/04/2023,"3,175.33"
82545267,Social Care,"Children, Families and Community Health Services",Children's Resource and Home Finding Team,3rd Party Payments,Independent Fostering Agency Placements,ACTION FOR CHILDREN,WD18,21/04/2023,"3,170.99"
82545264,Social Care,"Children, Families and Community Health Services",Children's Resource and Home Finding Team,3rd Party Payments,Independent Fostering Agency Placements,ACTION FOR CHILDREN,WD18,21/04/2023,"2,868.04"
82545270,Social Care,"Children, Families and Community Health Services",Children's Resource and Home Finding Team,3rd Party Payments,Independent Fostering Agency Placements,ACTION FOR CHILDREN,WD18,21/04/2023,"3,660.17"
82632233,Disabled Children,"Children, Families and Community Health Services",ICES Paediatric,Supplies and Services,Equipment,ACTIVATE FOR KIDS LTD,SP2 ,24/04/2023,"1,318.60"
80982233,High Needs Block,DSG Skills and Attainment,SEN Resourcing Assessment Panel,3rd Party Payments,Top up funding - Academies and Free Schools Post 16,ACTIVATE LEARNING EDUCATION TRUST,OX1 ,14/04/2023,"2,372.83"
81773233,Social Care,"Children, Families and Community Health Services",Children's Resource and Home Finding Team,3rd Party Payments,Independent Fostering Agency Placements,ACTIVE CARE SOLUTIONS LTD,B60 ,19/04/2023,"3,256.80"
81308233,Social Care,"Children, Families and Community Health Services",Children's Resource and Home Finding Team,3rd Party Payments,Independent Fostering Agency Placements,ACTIVE CARE SOLUTIONS LTD,B60 ,17/04/2023,"3,171.30"
81306233,Social Care,"Children, Families and Community Health Services",Children's Resource and Home Finding Team,3rd Party Payments,Independent Fostering Agency Placements,ACTIVE CARE SOLUTIONS LTD,B60 ,17/04/2023,"6,188.40"
81307233,Social Care,"Children, Families and Community Health Services",Unaccompanied Asylum Seeking Children (UASC),3rd Party Payments,Independent Fostering Agency Placements,ACTIVE CARE SOLUTIONS LTD,B60 ,17/04/2023,"4,205.40"
82421233,Adults - Staffing and Supporting People,Adults,ASC Leadership Team,Supplies and Services,Subscriptions,ADASS,SW1P,21/04/2023,"2,484.00"
82544364,Homelessness and Travellers,Housing Services,Leased Private Managed Accommodation,Transfer Payments,Payment of Costs,ADVANCE HOUSING & SUPPORT LTD,OX28,24/04/2023,"1,074.00"
80387233,Social Care,"Children, Families and Community Health Services",Legal Fees,Supplies and Services,Fees,ADVANCED CHILD CARE ASSESSMENTS LTD,PR7 ,12/04/2023,"3,228.60"
83224233,Other Repairs,Repairs,Cyclical Maintenance,Supplies and Services,Testing / Inspection,AFFLECK ELECTRICAL LTD,SN3 ,26/04/2023,709.64
83228233,Other Repairs,Repairs,Cyclical Maintenance,Supplies and Services,Testing / Inspection,AFFLECK ELECTRICAL LTD,SN3 ,26/04/2023,894.37
82506370,Learning Disabilities,Adults,Learning Disability 65 and over,3rd Party Payments,Supported Lodgings (Childrens)/Supported Living (Adults),AGINCARE ENABLE LTD,DT5 ,21/04/2023,"2,462.60"
82506370,Learning Disabilities,Adults,Learning Disability 65 and over,3rd Party Payments,Supported Lodgings (Childrens)/Supported Living (Adults),AGINCARE ENABLE LTD,DT5 ,21/04/2023,"5,835.00"
82506370,Learning Disabilities,Adults,Learning Disability 65 and over,Income,Client Contribution - Supported Living,AGINCARE ENABLE LTD,DT5 ,21/04/2023,-476.60
82506302,Physical Support,Adults,Physical Support 65 and over,Income,Client Contribution - Residential,AGINCARE LTD,DT5 ,21/04/2023,"-1,231.12"
82506302,Physical Support,Adults,Physical Support 65 and over,3rd Party Payments,Residential Care,AGINCARE LTD,DT5 ,21/04/2023,"3,600.00"
80458233,Physical Support,Adults,Physical Support 65 and over,Transport Costs,Home to Centre Transport,AKCESS CIC,SN2 ,12/04/2023,"2,968.29"
80455233,Learning Disabilities,Adults,Learning Disability 18 - 64,Transport Costs,Home to Centre Transport,AKCESS CIC,SN2 ,12/04/2023,"5,934.71"
79982235,School Transport,"Education, Inclusion and Skills",Special Educational Needs Transport,Transport Costs,Home to School Transport,AKCESS CIC,SN2 ,05/04/2023,"6,323.63"
80454233,Learning Disabilities,Adults,Learning Disability 18 - 64,Transport Costs,Home to Centre Transport,AKCESS CIC,SN2 ,12/04/2023,"20,778.00"
80457233,Physical Support,Adults,Physical Support 65 and over,Transport Costs,Home to Centre Transport,AKCESS CIC,SN2 ,12/04/2023,"5,934.71"
80460233,School Transport,"Education, Inclusion and Skills",Special Educational Needs Transport,Transport Costs,Home to School Transport,AKCESS CIC,SN2 ,12/04/2023,"3,277.50"
81874234,Travel,Highways & Transport,Public Transport,3rd Party Payments,Contract Payments,AKCESS CIC,SN2 ,19/04/2023,"16,284.67"
79982237,School Transport,"Education, Inclusion and Skills",Mainstream School Transport,Transport Costs,Home to School Transport,AKCESS CIC,SN2 ,05/04/2023,"64,598.21"
80456233,Physical Support,Adults,Physical Support 65 and over,Transport Costs,Home to Centre Transport,AKCESS CIC,SN2 ,12/04/2023,"5,934.71"
80459233,School Transport,"Education, Inclusion and Skills",Mainstream School Transport,Transport Costs,Home to School Transport,AKCESS CIC,SN2 ,12/04/2023,"2,165.63"
79982233,School Transport,"Education, Inclusion and Skills",Special Educational Needs Transport,Employees,Temporary / Agency - by Accounts Payable,AKCESS CIC,SN2 ,05/04/2023,"13,566.00"
81610233,Learning Disabilities,Adults,Learning Disability 18 - 64,3rd Party Payments,Supported Accommodation Scheme,REDACTED PERSONAL DATA,SN2 ,21/04/2023,"2,206.03"
82138235,Early Years Block,DSG Skills and Attainment,Free Nursery Education Commissioning - three & four  year olds,3rd Party Payments,Contracts - Child Care,ALFRESCO CHILDCARE,SN6 ,19/04/2023,"7,495.22"
81638235,Learning Disabilities,Adults,Learning Disability 18 - 64,3rd Party Payments,Supported Accommodation Scheme,REDACTED PERSONAL DATA,SN1 ,21/04/2023,"2,619.60"
82430290,School Transport,"Education, Inclusion and Skills",Special Educational Needs Transport,Transport Costs,Home to School Transport,REDACTED PERSONAL DATA,SN5 ,24/04/2023,518.18
79218233,School Transport,"Education, Inclusion and Skills",Special Educational Needs Transport,Transport Costs,Home to School Transport,REDACTED PERSONAL DATA,SN5 ,03/04/2023,518.18
81639233,Learning Disabilities,Adults,Learning Disability 18 - 64,3rd Party Payments,Supported Accommodation Scheme,REDACTED PERSONAL DATA,SN2 ,21/04/2023,"1,829.31"
81639233,Learning Disabilities,Adults,Learning Disability 18 - 64,3rd Party Payments,Supported Accommodation Scheme,REDACTED PERSONAL DATA,SN2 ,21/04/2023,"1,790.40"
81639233,Learning Disabilities,Adults,Learning Disability 18 - 64,3rd Party Payments,Supported Accommodation Scheme,REDACTED PERSONAL DATA,SN2 ,21/04/2023,"2,127.21"
82250234,Early Years Block,DSG Skills and Attainment,Free Nursery Education Commissioning - two year olds,3rd Party Payments,Contracts - Child Care,REDACTED PERSONAL DATA,SN25,19/04/2023,958.04
82484233,Early Years Block,DSG Skills and Attainment,Free Nursery Education Commissioning - two year olds,3rd Party Payments,Contracts - Child Care,REDACTED PERSONAL DATA,SN25,21/04/2023,"1,916.07"
82484233,Early Years Block,DSG Skills and Attainment,Free Nursery Education Commissioning - three & four  year olds,3rd Party Payments,Contracts - Child Care,REDACTED PERSONAL DATA,SN25,21/04/2023,"6,659.61"
82249233,Early Years Block,DSG Skills and Attainment,Free Nursery Education Commissioning - three & four  year olds,3rd Party Payments,Contracts - Child Care,REDACTED PERSONAL DATA,SN25,19/04/2023,"1,637.61"
82138237,Early Years Block,DSG Skills and Attainment,Free Nursery Education Commissioning - three & four  year olds,3rd Party Payments,Contracts - Child Care,REDACTED PERSONAL DATA,SN1 ,19/04/2023,"1,623.96"
Corporate Card Transaction,ASC Finance Services Teams,ASC Finance Services,ASC Money Management Team,Supplies and Services,Services,Allpay *the Guinness Part,,14/04/2023,805.92
80796233,Schools Maintenance,Skills & Attainment,Condition Works,Capital,Contractor Payments,ALL PUMP SOLUTIONS LLP,SY1 ,14/04/2023,"7,708.67"
81753233,Streetsmart,Streetsmart,Waterside Fleet Workshops,Supplies and Services,Equipment,ALLIANCE AUTOMOTIVE UK T/A BRAYMARC,BD4 ,19/04/2023,150.00
81753233,Streetsmart,Streetsmart,Waterside Fleet Workshops,Supplies and Services,Equipment,ALLIANCE AUTOMOTIVE UK T/A BRAYMARC,BD4 ,19/04/2023,894.50
81764233,Streetsmart,Streetsmart,Waterside Fleet Workshops,Supplies and Services,Equipment,ALLIANCE AUTOMOTIVE UK T/A BRAYMARC,BD4 ,19/04/2023,-450.00
80214233,Treasury,Corporate Finance,Treasury,Supplies and Services,Bank Charges,ALLPAY-NET LIMITED,HR1 ,12/04/2023,831.14
81719233,Landlord Services,Supervision & Management,Estate Management Team,Supplies and Services,Contracts,ALLPAY-NET LIMITED,HR1 ,19/04/2023,"1,879.46"
82252234,Early Years Block,DSG Skills and Attainment,Free Nursery Education Commissioning - three & four  year olds,3rd Party Payments,Contracts - Child Care,ALPHA PRE-SCHOOL,SN5 ,19/04/2023,"10,310.76"
82251233,Early Years Block,DSG Skills and Attainment,Free Nursery Education Commissioning - two year olds,3rd Party Payments,Contracts - Child Care,ALPHA PRE-SCHOOL,SN5 ,19/04/2023,"5,748.21"
81333233,Social Care,"Children, Families and Community Health Services",Looked After Children Service,3rd Party Payments,Personal Needs,ALPHA24 HEALTHCARE LTD,WC1V,17/04/2023,709.28
83498233,Parking & Bus lanes,Highway Operations and Car Parking,Car Parking,Supplies and Services,Materials,ALSOPRINT LIMITED,CR0 ,26/04/2023,"3,600.00"
82506374,Physical Support,Adults,Physical Support 65 and over,Income,Client Contribution - Nursing,ALTOGETHER CARE WEYMOUTH CARE HOME,DT4 ,21/04/2023,-627.80
82506374,Physical Support,Adults,Physical Support 65 and over,3rd Party Payments,Nursing Care,ALTOGETHER CARE WEYMOUTH CARE HOME,DT4 ,21/04/2023,"4,023.28"
80312233,"Volutary Sector, Equipment and Carers",Adults,Voluntary Sector Adults,3rd Party Payments,Contracts - Social Care,ALZHEIMERS SOCIETY,PL2 ,12/04/2023,"2,433.00"
81572270,Disabled Children,"Children, Families and Community Health Services",Aiming High for Disabled Children,3rd Party Payments,Cash Support,REDACTED PERSONAL DATA,SN4 ,19/04/2023,703.00
Corporate Card Transaction,Social Care,"Children, Families and Community Health Services",Placement - Care Leaver Team,Supplies and Services,Materials,Amazon.Co.Uk*7h9wu7av5,,18/04/2023,550
Corporate Card Transaction,Disabled Revenue Codes,Disabled Codes 2,Pinetrees,Supplies and Services,Materials,Amazon.Co.Uk*9u2c92qo5,,17/04/2023,690.7
Corporate Card Transaction,Social Care,"Children, Families and Community Health Services",Placement - Care Leaver Team,Supplies and Services,Materials,Amazon.Co.Uk*j89p41dm5,,12/04/2023,500
Corporate Card Transaction,Social Care,"Children, Families and Community Health Services",Placement - Care Leaver Team,Supplies and Services,Materials,Amazon.Co.Uk*m40vr2xi5,,18/04/2023,550
Corporate Card Transaction,Social Care,"Children, Families and Community Health Services",Placement - Care Leaver Team,Supplies and Services,Materials,Amazon.Co.Uk*te8016i45,,12/04/2023,500
82545260,Social Care,"Children, Families and Community Health Services",Children's Resource and Home Finding Team,3rd Party Payments,Residential Care,AMBERLEIGH CARE LTD,TF2 ,21/04/2023,"20,340.00"
79507233,Social Care,"Children, Families and Community Health Services",Children's Resource and Home Finding Team,3rd Party Payments,Residential Care,AMBERLEIGH CARE LTD,TF2 ,05/04/2023,"21,018.00"
81301233,Social Care,"Children, Families and Community Health Services",Children's Resource and Home Finding Team,3rd Party Payments,Residential Care,AMEGREEN CHILDREN'S SERVICES LTD,RG7 ,17/04/2023,"16,875.00"
81190233,Responsive Repairs,Repairs,Responsive Repairs,Premises Costs,Repairs - Buildings,AMELIO UTILITIES(GLOU) LTD T/A 3 COUNTIES DRAIN SERVICES,GL1 ,14/04/2023,127.35
81190233,Responsive Repairs,Repairs,Responsive Repairs,Premises Costs,Repairs - Buildings,AMELIO UTILITIES(GLOU) LTD T/A 3 COUNTIES DRAIN SERVICES,GL1 ,14/04/2023,159.94
81190233,Responsive Repairs,Repairs,Responsive Repairs,Premises Costs,Repairs - Buildings,AMELIO UTILITIES(GLOU) LTD T/A 3 COUNTIES DRAIN SERVICES,GL1 ,14/04/2023,287.29
81190233,Responsive Repairs,Repairs,Responsive Repairs,Premises Costs,Repairs - Buildings,AMELIO UTILITIES(GLOU) LTD T/A 3 COUNTIES DRAIN SERVICES,GL1 ,14/04/2023,254.70
81190233,Responsive Repairs,Repairs,Responsive Repairs,Premises Costs,Repairs - Buildings,AMELIO UTILITIES(GLOU) LTD T/A 3 COUNTIES DRAIN SERVICES,GL1 ,14/04/2023,350.96
82437233,Routes to Employment,"Education, Inclusion and Skills",Multiply,Supplies and Services,Materials,AMENA HANMAN (DYSLEXIA ASSESSOR),SN3 ,21/04/2023,"3,600.00"
82545275,Social Care,"Children, Families and Community Health Services",Children's Resource and Home Finding Team,3rd Party Payments,Independent Fostering Agency Placements,AMICUS FOSTER CARE,BS2 ,21/04/2023,"5,086.50"
81121233,Social Care,"Children, Families and Community Health Services",Children's Resource and Home Finding Team,3rd Party Payments,Independent Fostering Agency Placements,AMICUS FOSTER CARE,BS2 ,14/04/2023,"5,256.05"
80008234,Highways Inspections & Maintenance,Highway Operations and Car Parking,Streetlighting,Supplies and Services,Materials,AMR TRAFFIC MANAGEMENT LTD,RG14,05/04/2023,480.00
Corporate Card Transaction,Elections & Democracy,Elections and Democracy,Local Elections,Supplies and Services,Equipment,Amznmktplace,,31/03/2023,521.45
81572265,Disabled Children,"Children, Families and Community Health Services",DCT Daytime Short Breaks,Transfer Payments,Personal Budget - Direct Payments - Other,REDACTED PERSONAL DATA,SN2 ,19/04/2023,"1,702.00"
79581233,Planning & Regulatory,Strategic Planning,Landscape & Countryside Works,Supplies and Services,Discretionary Costs,ANDREW CUNNINGHAM ARBORICULTURAL CONSULTANT LIMITED (ACAC),GL5 ,05/04/2023,"1,400.00"
82544245,Homelessness and Travellers,Housing Services,Leased Private Managed Accommodation,Transfer Payments,Payment of Costs,REDACTED PERSONAL DATA,SN26,24/04/2023,675.00
82324234,Early Years Block,DSG Skills and Attainment,Free Nursery Education Commissioning - three & four  year olds,3rd Party Payments,Contracts - Child Care,REDACTED PERSONAL DATA,SN5 ,19/04/2023,"173,695.83"
82325234,Early Years Block,DSG Skills and Attainment,Free Nursery Education Commissioning - two year olds,3rd Party Payments,Contracts - Child Care,REDACTED PERSONAL DATA,SN5 ,19/04/2023,"9,580.35"
82938233,High Needs Block,DSG Skills and Attainment,SEN Resourcing Assessment Panel,3rd Party Payments,Top up funding - Maintained providers Pre 16,REDACTED PERSONAL DATA,SN5 ,26/04/2023,936.00
82544356,Homelessness and Travellers,Housing Services,Leased Private Managed Accommodation,Transfer Payments,Payment of Costs,ANGELVIEW PROPERTIES LTD,ALBO,24/04/2023,590.00
81572281,Disabled Children,"Children, Families and Community Health Services",Aiming High for Disabled Children,3rd Party Payments,Cash Support,REDACTED PERSONAL DATA,SN3 ,19/04/2023,587.50
81934233,HRA Overheads,Supervision & Management,Admin / Management General,Premises Costs,Insurance - Premises,AON UK LIMITED,EC3V,19/04/2023,"2,450.73"
82541234,Supported Employment,Housing Services,Community Meals,Supplies and Services,Food,APETITO LIMITED,BA14,21/04/2023,"1,169.72"
82076233,Supported Employment,Housing Services,Community Meals,Supplies and Services,Food,APETITO LIMITED,BA14,19/04/2023,"1,098.63"
82078233,Supported Employment,Housing Services,Community Meals,Supplies and Services,Food,APETITO LIMITED,BA14,19/04/2023,"1,029.99"
79986233,Responsive Repairs,Repairs,Responsive Repairs,3rd Party Payments,Contract Payments,APEX SCAFFOLDING SERVICES,SN2 ,05/04/2023,725.00
79985233,Responsive Repairs,Repairs,Responsive Repairs,3rd Party Payments,Contract Payments,APEX SCAFFOLDING SERVICES,SN2 ,05/04/2023,680.00
81327233,,,Balance Sheet,Balance Sheet & Recharge,Resources Recharges,APOGEE CORPORATION LIMITED,EC2A,17/04/2023,"11,658.28"
81169233,,,Balance Sheet,Balance Sheet & Recharge,Resources Recharges,APOGEE CORPORATION LIMITED,EC2A,14/04/2023,"15,201.42"
83232233,,,Balance Sheet,Balance Sheet & Recharge,Resources Recharges,APOGEE CORPORATION LIMITED,EC2A,26/04/2023,"12,904.79"
82506312,Learning Disabilities,Adults,Learning Disability 18 - 64,Income,Client Contribution - Residential,APPLEFORD LTD T/A DANESWOOD,BS25,21/04/2023,-438.80
82506312,Learning Disabilities,Adults,Learning Disability 18 - 64,3rd Party Payments,Residential Care,APPLEFORD LTD T/A DANESWOOD,BS25,21/04/2023,"20,190.92"
83205233,Early Years Block,DSG Skills and Attainment,Free Nursery Education Commissioning - three & four  year olds,3rd Party Payments,Contracts - Child Care,REDACTED PERSONAL DATA,SN2 ,26/04/2023,"13,830.97"
82253234,Early Years Block,DSG Skills and Attainment,Free Nursery Education Commissioning - three & four  year olds,3rd Party Payments,Contracts - Child Care,REDACTED PERSONAL DATA,SN2 ,19/04/2023,"15,491.39"
82926233,High Needs Block,DSG Skills and Attainment,SEN Resourcing Assessment Panel,3rd Party Payments,Top up funding - Maintained providers Pre 16,REDACTED PERSONAL DATA,SN2 ,26/04/2023,"13,830.97"
80449276,Elections & Democracy,Elections and Democracy,Local Elections,Premises Costs,Rents,ARKELLS BREWERY LTD,SN2 ,12/04/2023,650.00
80109233,Streetsmart,Streetsmart,Waterside Fleet Hires,Transport Costs,Vehicle Hire / Contract,ARNOLD PLANT HIRE LIMITED,SK6 ,12/04/2023,"1,219.00"
80108233,Streetsmart,Streetsmart,Waterside Fleet Hires,Transport Costs,Vehicle Hire / Contract,ARNOLD PLANT HIRE LIMITED,SK6 ,12/04/2023,"1,610.00"
80400233,Human Resources and Organisational Development,"People, Culture and Organisational Resilience",Pay & Reward,Supplies and Services,Design & Printing Costs,ARTHOUSE 97 & EASY READ UK,WF2 ,12/04/2023,60.00
80400233,Human Resources and Organisational Development,"People, Culture and Organisational Resilience",Pay & Reward,Supplies and Services,Design & Printing Costs,ARTHOUSE 97 & EASY READ UK,WF2 ,12/04/2023,875.00
80400233,Human Resources and Organisational Development,"People, Culture and Organisational Resilience",Pay & Reward,Supplies and Services,Design & Printing Costs,ARTHOUSE 97 & EASY READ UK,WF2 ,12/04/2023,120.00
79585233,Town Centre,"Economy, Growth and Place",Kimmerfields enabling works,Capital,Contractor Payments,ARTSITE LIMITED,SN1 ,05/04/2023,"12,114.00"
82506313,Mental Health,Adults,Mental Health 18-64,3rd Party Payments,Residential Care,ASH VIEW HOUSE,BS15,21/04/2023,"7,476.36"
82506313,Mental Health,Adults,Mental Health 18-64,Income,Client Contribution - Residential,ASH VIEW HOUSE,BS15,21/04/2023,-418.80
82506241,Mental Health,Adults,Mental Health 65 and over,3rd Party Payments,Residential Care,ASHBURY LODGE,SN3 ,21/04/2023,"2,560.12"
82506241,Physical Support,Adults,Physical Support 65 and over,3rd Party Payments,Residential Care,ASHBURY LODGE,SN3 ,21/04/2023,"2,651.55"
82506241,Physical Support,Adults,Physical Support 65 and over,Income,Client Contribution - Residential,ASHBURY LODGE,SN3 ,21/04/2023,818.09
82506241,Physical Support,Adults,Physical Support 65 and over,Income,Client Contribution - Residential,ASHBURY LODGE,SN3 ,21/04/2023,426.01
82506241,Physical Support,Adults,Physical Support 65 and over,Income,Client Contribution - Residential,ASHBURY LODGE,SN3 ,21/04/2023,-610.00
82506241,Physical Support,Adults,Physical Support 65 and over,Income,Client Contribution - Residential,ASHBURY LODGE,SN3 ,21/04/2023,-875.20
82506241,Physical Support,Adults,Physical Support 65 and over,Income,Client Contribution - Residential,ASHBURY LODGE,SN3 ,21/04/2023,-627.80
82506241,Physical Support,Adults,Physical Support 65 and over,Income,Client Contribution - Residential,ASHBURY LODGE,SN3 ,21/04/2023,"-1,160.40"
82506241,Physical Support,Adults,Physical Support 65 and over,Income,Client Contribution - Residential,ASHBURY LODGE,SN3 ,21/04/2023,784.75
82506241,Physical Support,Adults,Physical Support 65 and over,Income,Client Contribution - Residential,ASHBURY LODGE,SN3 ,21/04/2023,-692.36
82506241,Physical Support,Adults,Physical Support 65 and over,Income,Client Contribution - Residential,ASHBURY LODGE,SN3 ,21/04/2023,-730.76
82506241,Physical Support,Adults,Physical Support 65 and over,Income,Client Contribution - Residential,ASHBURY LODGE,SN3 ,21/04/2023,-691.20
82506241,Physical Support,Adults,Physical Support 65 and over,Income,Client Contribution - Residential,ASHBURY LODGE,SN3 ,21/04/2023,-657.68
82506241,Physical Support,Adults,Physical Support 65 and over,3rd Party Payments,Residential Care,ASHBURY LODGE,SN3 ,21/04/2023,"2,560.12"
82506241,Physical Support,Adults,Physical Support 65 and over,3rd Party Payments,Residential Care,ASHBURY LODGE,SN3 ,21/04/2023,"-3,474.45"
82506241,Care Management & Safeguarding,Adults,Intermediate Care Team,3rd Party Payments,Residential Care,ASHBURY LODGE,SN3 ,21/04/2023,"-2,102.96"
82506241,Mental Health,Adults,Mental Health 65 and over,Income,Client Contribution - Residential,ASHBURY LODGE,SN3 ,21/04/2023,-627.80
82506241,Mental Health,Adults,Mental Health 65 and over,3rd Party Payments,Residential Care,ASHBURY LODGE,SN3 ,21/04/2023,"2,102.96"
82506241,Mental Health,Adults,Mental Health 65 and over,Income,Client Contribution - Residential,ASHBURY LODGE,SN3 ,21/04/2023,-582.96
82506241,Physical Support,Adults,Physical Support 65 and over,Income,Client Contribution - Residential,ASHBURY LODGE,SN3 ,21/04/2023,"-1,020.32"
82506241,Physical Support,Adults,Physical Support 65 and over,3rd Party Payments,Residential Care,ASHBURY LODGE,SN3 ,21/04/2023,"2,668.72"
82506241,Care Management & Safeguarding,Adults,Intermediate Care Team,3rd Party Payments,Residential Care,ASHBURY LODGE,SN3 ,21/04/2023,"2,742.99"
82506241,Mental Health,Adults,Mental Health 65 and over,3rd Party Payments,Residential Care,ASHBURY LODGE,SN3 ,21/04/2023,"2,377.25"
82506241,Mental Health,Adults,Mental Health 65 and over,3rd Party Payments,Residential Care,ASHBURY LODGE,SN3 ,21/04/2023,"2,668.72"
82506241,Physical Support,Adults,Physical Support 65 and over,Income,Client Contribution - Residential,ASHBURY LODGE,SN3 ,21/04/2023,43.06
82506241,Physical Support,Adults,Physical Support 65 and over,Income,Client Contribution - Residential,ASHBURY LODGE,SN3 ,21/04/2023,-587.40
82506241,Physical Support,Adults,Physical Support 65 and over,3rd Party Payments,Residential Care,ASHBURY LODGE,SN3 ,21/04/2023,"-9,341.42"
82506241,Mental Health,Adults,Mental Health 65 and over,Income,Client Contribution - Residential,ASHBURY LODGE,SN3 ,21/04/2023,-805.32
82506241,Physical Support,Adults,Physical Support 65 and over,Income,Client Contribution - Residential,ASHBURY LODGE,SN3 ,21/04/2023,-886.60
82506241,Physical Support,Adults,Physical Support 65 and over,3rd Party Payments,Residential Care,ASHBURY LODGE,SN3 ,21/04/2023,"3,600.00"
82506240,Physical Support,Adults,Physical Support 65 and over,3rd Party Payments,Nursing Care,ASHGROVE HOUSE NURSING HOME,SN5 ,21/04/2023,"6,080.00"
82506240,Physical Support,Adults,Physical Support 65 and over,Income,Client Contribution - Nursing,ASHGROVE HOUSE NURSING HOME,SN5 ,21/04/2023,-677.20
82506240,Physical Support,Adults,Physical Support 65 and over,Income,Client Contribution - Nursing,ASHGROVE HOUSE NURSING HOME,SN5 ,21/04/2023,-459.53
82506240,Physical Support,Adults,Physical Support 65 and over,Income,Client Contribution - Nursing,ASHGROVE HOUSE NURSING HOME,SN5 ,21/04/2023,221.59
81577233,Public Health,Public Health,Sexual Health & Health Protection Budget,3rd Party Payments,Contract Payments,ASHINGTON HOUSE SURGERY,SN5 ,19/04/2023,778.00
80128233,Libraries,"Education, Inclusion and Skills",Library Delivery,Supplies and Services,Materials,ASKEWS AND HOLTS LIBRARY SERVICES LIMITED,PR1 ,12/04/2023,739.31
82402233,Libraries,"Education, Inclusion and Skills",Library Delivery,Supplies and Services,Materials,ASKEWS AND HOLTS LIBRARY SERVICES LIMITED,PR1 ,21/04/2023,"2,044.34"
82506283,Learning Disabilities,Adults,Learning Disability 18 - 64,3rd Party Payments,Residential Care,ASPECTS & MILESTONES TRUST,BS16,21/04/2023,"6,426.36"
82506283,Learning Disabilities,Adults,Learning Disability 18 - 64,Income,Client Contribution - Residential,ASPECTS & MILESTONES TRUST,BS16,21/04/2023,-425.60
82506321,Physical Support,Adults,Physical Support 18 - 64,3rd Party Payments,Supported Lodgings (Childrens)/Supported Living (Adults),ASPECTS 2 LTD,B70 ,21/04/2023,"3,931.20"
82506321,Learning Disabilities,Adults,Learning Disability 18 - 64,Income,Client Contribution - Residential,ASPECTS 2 LTD,B70 ,21/04/2023,-438.80
82506321,Learning Disabilities,Adults,Learning Disability 18 - 64,3rd Party Payments,Residential Care,ASPECTS 2 LTD,B70 ,21/04/2023,"8,284.52"
82506321,Mental Health,Adults,Mental Health 65 and over,3rd Party Payments,Supported Lodgings (Childrens)/Supported Living (Adults),ASPECTS 2 LTD,B70 ,21/04/2023,"1,356.80"
81872233,High Needs Block,DSG Skills and Attainment,Out of Borough School Fees,3rd Party Payments,Independent Special School- Pre 16,ASPRIS CHILDREN'S SERVICES,DL1 ,19/04/2023,"33,424.04"
82506342,Learning Disabilities,Adults,Learning Disability 18 - 64,Income,Client Contribution - Residential,ASTON CARE LIMITED,RG30,21/04/2023,-262.40
82506341,Learning Disabilities,Adults,Learning Disability 65 and over,3rd Party Payments,Residential Care,ASTON CARE LIMITED,RG30,21/04/2023,"6,607.12"
82506341,Learning Disabilities,Adults,Learning Disability 18 - 64,Income,Client Contribution - Residential,ASTON CARE LIMITED,RG30,21/04/2023,-410.80
82506341,Learning Disabilities,Adults,Learning Disability 18 - 64,3rd Party Payments,Residential Care,ASTON CARE LIMITED,RG30,21/04/2023,"6,909.40"
82506342,Learning Disabilities,Adults,Learning Disability 18 - 64,3rd Party Payments,Residential Care,ASTON CARE LIMITED,RG30,21/04/2023,"9,182.84"
82506341,Learning Disabilities,Adults,Learning Disability 18 - 64,3rd Party Payments,Residential Care,ASTON CARE LIMITED,RG30,21/04/2023,"6,350.24"
82506341,Learning Disabilities,Adults,Learning Disability 18 - 64,Income,Client Contribution - Residential,ASTON CARE LIMITED,RG30,21/04/2023,-594.36
82506341,Learning Disabilities,Adults,Learning Disability 18 - 64,Income,Client Contribution - Residential,ASTON CARE LIMITED,RG30,21/04/2023,"-1,033.20"
82506341,Learning Disabilities,Adults,Learning Disability 18 - 64,3rd Party Payments,Residential Care,ASTON CARE LIMITED,RG30,21/04/2023,"9,104.80"
80268233,Social Care,"Children, Families and Community Health Services",CP & CIN Social Work - South,Employees,Temporary / Agency - by Accounts Payable,ATTENTI LTD,EC2R,12/04/2023,"2,183.00"
80270234,Social Care,"Children, Families and Community Health Services",CP & CIN Social Work - South,Employees,Temporary / Agency - by Accounts Payable,ATTENTI LTD,EC2R,12/04/2023,"3,245.00"
80287233,Social Care,"Children, Families and Community Health Services",CP & CIN Social Work - South,Employees,Temporary / Agency - by Accounts Payable,ATTENTI LTD,EC2R,12/04/2023,"2,360.00"
80279233,Social Care,"Children, Families and Community Health Services",CP & CIN Social Work - South,Employees,Temporary / Agency - by Accounts Payable,ATTENTI LTD,EC2R,12/04/2023,"2,183.00"
80269233,Senior Management Team,"Children, Families and Community Health Services",Senior Management Team - Staffing,Employees,Temporary / Agency - by Accounts Payable,ATTENTI LTD,EC2R,12/04/2023,"2,950.00"
79424233,Social Care,"Children, Families and Community Health Services",CP & CIN Social Work - South,Employees,Temporary / Agency - by Accounts Payable,ATTENTI LTD,EC2R,03/04/2023,"2,183.00"
83256234,Senior Management Team,"Children, Families and Community Health Services",Senior Management Team - Staffing,Employees,Temporary / Agency - by Accounts Payable,ATTENTI LTD,EC2R,26/04/2023,"3,304.00"
80271233,Senior Management Team,"Children, Families and Community Health Services",Senior Management Team - Staffing,Employees,Temporary / Agency - by Accounts Payable,ATTENTI LTD,EC2R,12/04/2023,"3,245.00"
79412233,Senior Management Team,"Children, Families and Community Health Services",Senior Management Team - Staffing,Employees,Temporary / Agency - by Accounts Payable,ATTENTI LTD,EC2R,03/04/2023,"1,770.00"
80274234,Social Care,"Children, Families and Community Health Services",CP & CIN Social Work - South,Employees,Temporary / Agency - by Accounts Payable,ATTENTI LTD,EC2R,12/04/2023,"3,245.00"
80271234,Senior Management Team,"Children, Families and Community Health Services",Senior Management Team - Staffing,Employees,Temporary / Agency - by Accounts Payable,ATTENTI LTD,EC2R,12/04/2023,"3,540.00"
80288233,Social Care,"Children, Families and Community Health Services",CP & CIN Social Work - South,Employees,Temporary / Agency - by Accounts Payable,ATTENTI LTD,EC2R,12/04/2023,"2,360.00"
80278233,Social Care,"Children, Families and Community Health Services",CP & CIN Social Work - South,Employees,Temporary / Agency - by Accounts Payable,ATTENTI LTD,EC2R,12/04/2023,"2,360.00"
80282233,Senior Management Team,"Children, Families and Community Health Services",Senior Management Team - Staffing,Employees,Temporary / Agency - by Accounts Payable,ATTENTI LTD,EC2R,12/04/2023,"3,540.00"
82506369,Physical Support,Adults,Physical Support 65 and over,3rd Party Payments,Nursing Care,AURA CARE LIVING CIRENCESTER LTD,GL7 ,21/04/2023,"2,985.71"
82506369,Physical Support,Adults,Physical Support 65 and over,3rd Party Payments,Nursing Care,AURA CARE LIVING CIRENCESTER LTD,GL7 ,21/04/2023,"4,400.00"
82506369,Physical Support,Adults,Physical Support 65 and over,Income,Client Contribution - Nursing,AURA CARE LIVING CIRENCESTER LTD,GL7 ,21/04/2023,-396.40
82506369,Physical Support,Adults,Physical Support 65 and over,Income,Client Contribution - Nursing,AURA CARE LIVING CIRENCESTER LTD,GL7 ,21/04/2023,-544.88
82506369,Physical Support,Adults,Physical Support 65 and over,3rd Party Payments,Nursing Care,AURA CARE LIVING CIRENCESTER LTD,GL7 ,21/04/2023,"15,714.29"
82506369,Care Management & Safeguarding,Adults,Intermediate Care Team,3rd Party Payments,Residential Care,AURA CARE LIVING CIRENCESTER LTD,GL7 ,21/04/2023,178.57
82506369,Physical Support,Adults,Physical Support 65 and over,3rd Party Payments,Nursing Care,AURA CARE LIVING CIRENCESTER LTD,GL7 ,21/04/2023,"2,200.00"
82506369,Physical Support,Adults,Physical Support 65 and over,3rd Party Payments,Nursing Care,AURA CARE LIVING CIRENCESTER LTD,GL7 ,21/04/2023,"5,400.00"
82506369,Physical Support,Adults,Physical Support 65 and over,Income,Client Contribution - Nursing,AURA CARE LIVING CIRENCESTER LTD,GL7 ,21/04/2023,-369.74
82506369,Care Management & Safeguarding,Adults,Intermediate Care Team,3rd Party Payments,Residential Care,AURA CARE LIVING CIRENCESTER LTD,GL7 ,21/04/2023,"-7,678.57"
82506369,Care Management & Safeguarding,Adults,Intermediate Care Team,3rd Party Payments,Residential Care,AURA CARE LIVING CIRENCESTER LTD,GL7 ,21/04/2023,535.71
82506369,Care Management & Safeguarding,Adults,Intermediate Care Team,3rd Party Payments,Residential Care,AURA CARE LIVING CIRENCESTER LTD,GL7 ,21/04/2023,"4,400.00"
82506369,Physical Support,Adults,Physical Support 65 and over,3rd Party Payments,Nursing Care,AURA CARE LIVING CIRENCESTER LTD,GL7 ,21/04/2023,"-15,714.29"
82506369,Physical Support,Adults,Physical Support 65 and over,Income,Client Contribution - Nursing,AURA CARE LIVING CIRENCESTER LTD,GL7 ,21/04/2023,-252.82
82506369,Mental Health,Adults,Mental Health 65 and over,3rd Party Payments,Residential Care,AURA CARE LIVING CIRENCESTER LTD,GL7 ,21/04/2023,"5,600.00"
82506369,Physical Support,Adults,Physical Support 65 and over,3rd Party Payments,Nursing Care,AURA CARE LIVING CIRENCESTER LTD,GL7 ,21/04/2023,"-18,030.25"
82506369,Physical Support,Adults,Physical Support 65 and over,Income,Client Contribution - Nursing,AURA CARE LIVING CIRENCESTER LTD,GL7 ,21/04/2023,"2,242.14"
82506369,Mental Health,Adults,Mental Health 18-64,3rd Party Payments,Residential Care,AURA CARE LIVING CIRENCESTER LTD,GL7 ,21/04/2023,"6,720.00"
82506369,Mental Health,Adults,Mental Health 18-64,3rd Party Payments,Nursing Care,AURA CARE LIVING CIRENCESTER LTD,GL7 ,21/04/2023,"5,400.00"
82506369,Mental Health,Adults,Mental Health 18-64,3rd Party Payments,Residential Care,AURA CARE LIVING CIRENCESTER LTD,GL7 ,21/04/2023,"4,600.00"
82506369,Care Management & Safeguarding,Adults,Intermediate Care Team,3rd Party Payments,Residential Care,AURA CARE LIVING CIRENCESTER LTD,GL7 ,21/04/2023,"3,800.00"
82975234,High Needs Block,DSG Skills and Attainment,Out of Borough School Fees,3rd Party Payments,OLA Special schools- Pre 16,AURORA FOXES ACADEMY,GL2 ,26/04/2023,"21,760.00"
83125234,High Needs Block,DSG Skills and Attainment,Out of Borough School Fees,3rd Party Payments,OLA Special schools- Pre 16,AURORA FOXES ACADEMY,GL2 ,26/04/2023,"20,170.95"
82506351,Learning Disabilities,Adults,Learning Disability 65 and over,3rd Party Payments,Residential Care,AUTONOMY LIFE LIMITED,SN12,21/04/2023,"9,460.00"
82506351,Learning Disabilities,Adults,Learning Disability 65 and over,Income,Client Contribution - Residential,AUTONOMY LIFE LIMITED,SN12,21/04/2023,-528.80
81469233,Social Care,"Children, Families and Community Health Services",Unaccompanied Asylum Seeking Children (UASC),3rd Party Payments,Semi Independent,AVISANT CONSULTING LTD,EC1V,17/04/2023,"1,660.71"
81358234,Social Care,"Children, Families and Community Health Services",Unaccompanied Asylum Seeking Children (UASC),3rd Party Payments,Semi Independent,AVISANT CONSULTING LTD,EC1V,17/04/2023,"1,500.00"
81640234,Property Management,Property,Property Assets,Supplies and Services,Fees,AVISON YOUNG (UK) LTD,B1 2,19/04/2023,"1,740.00"
81638234,Property Management,Property,Property Assets,Supplies and Services,Fees,AVISON YOUNG (UK) LTD,B1 2,19/04/2023,"1,258.56"
81894234,Streetsmart,Streetsmart,Waterside Depot Improvements,Capital,Contractor Payments,AVIUM,SN25,19/04/2023,"2,600.00"
81895233,Streetsmart,Streetsmart,Waterside Depot Improvements,Capital,Contractor Payments,AVIUM,SN25,19/04/2023,"23,467.00"
81896233,Streetsmart,Streetsmart,Waterside Depot Improvements,Capital,Contractor Payments,AVIUM,SN25,19/04/2023,"19,400.00"
82506253,Learning Disabilities,Adults,Learning Disability 18 - 64,3rd Party Payments,Residential Care,AVON AUTISTIC FOUNDATION LTD,BS11,21/04/2023,"5,075.96"
82506253,Learning Disabilities,Adults,Learning Disability 18 - 64,Income,Client Contribution - Residential,AVON AUTISTIC FOUNDATION LTD,BS11,21/04/2023,-438.80
82506254,Learning Disabilities,Adults,Learning Disability 18 - 64,Income,Client Contribution - Residential,AVON AUTISTIC FOUNDATION LTD,BS11,21/04/2023,-414.20
82506254,Learning Disabilities,Adults,Learning Disability 18 - 64,3rd Party Payments,Residential Care,AVON AUTISTIC FOUNDATION LTD,BS11,21/04/2023,"7,100.28"
82544297,Homelessness and Travellers,Housing Services,Leased Private Managed Accommodation,Transfer Payments,Payment of Costs,AVONPARK PROPERTIES LTD,SN3 ,24/04/2023,800.00
82544392,Homelessness and Travellers,Housing Services,Leased Private Managed Accommodation,Transfer Payments,Payment of Costs,AVONPARK PROPERTIES LTD,SN3 ,24/04/2023,550.00
82544296,Homelessness and Travellers,Housing Services,Leased Private Managed Accommodation,Transfer Payments,Payment of Costs,AVONPARK PROPERTIES LTD,SN3 ,24/04/2023,615.00
81033233,Town Centre,"Economy, Growth and Place",Carriage Works Phase 3,Capital,Professional Fees,BAILEY PARTNERSHIP (CONSULTANTS) LLP,PL1 ,14/04/2023,"2,300.00"
82553233,Streetsmart,Streetsmart,Lydiard House & Hotel Improvements,Capital,Contractor Payments,BAILEY PARTNERSHIP (CONSULTANTS) LLP,PL1 ,21/04/2023,"12,403.15"
83179233,Town Centre,"Economy, Growth and Place","No 7, 9 & 11 Carriage works @ Railway Village",Capital,Consultants,BAILEY PARTNERSHIP (CONSULTANTS) LLP,PL1 ,26/04/2023,"3,000.00"
82582233,Streetsmart,Streetsmart,Lydiard House & Hotel Improvements,Capital,Contractor Payments,BAILEY PARTNERSHIP (CONSULTANTS) LLP,PL1 ,24/04/2023,"1,631.15"
81717233,Senior Management Team,"Children, Families and Community Health Services",Senior Management Team - Staffing,Employees,Temporary / Agency - by Accounts Payable,REDACTED PERSONAL DATA,BS1 ,19/04/2023,"3,125.00"
83025233,Senior Management Team,"Children, Families and Community Health Services",Senior Management Team - Non Staffing,Supplies and Services,Consultants,REDACTED PERSONAL DATA,BS1 ,26/04/2023,"2,500.00"
81946233,Senior Management Team,"Children, Families and Community Health Services",Senior Management Team - Non Staffing,Supplies and Services,Consultants,REDACTED PERSONAL DATA,BS1 ,19/04/2023,"2,500.00"
79403233,Senior Management Team,"Children, Families and Community Health Services",Senior Management Team - Non Staffing,Supplies and Services,Consultants,REDACTED PERSONAL DATA,BS1 ,03/04/2023,"3,125.00"
79479233,Senior Management Team,"Children, Families and Community Health Services",Senior Management Team - Non Staffing,Supplies and Services,Consultants,REDACTED PERSONAL DATA,BS1 ,05/04/2023,"3,125.00"
79405233,Senior Management Team,"Children, Families and Community Health Services",Senior Management Team - Non Staffing,Supplies and Services,Consultants,REDACTED PERSONAL DATA,BS1 ,03/04/2023,"3,125.00"
81159233,Licencing,Regulatory Services,Taxis & Private Hire,Supplies and Services,Testing / Inspection,BANSAL MOTORS,SN2 ,14/04/2023,"2,400.00"
82506347,Memory & Cognition,Adults,Support for Memory and Cognition 65 and over,3rd Party Payments,Nursing Care,BARCHESTER HEALTHCARE HOMES,GL7 ,21/04/2023,"6,271.84"
82254234,Early Years Block,DSG Skills and Attainment,Free Nursery Education Commissioning - three & four  year olds,3rd Party Payments,Contracts - Child Care,BARN OWL PRE-SCHOOL,SN25,19/04/2023,"32,711.37"
80886236,School Transport,"Education, Inclusion and Skills",Mainstream School Transport,Transport Costs,Home to School Transport,BARNES COACHES LTD,SN3 ,14/04/2023,"8,516.48"
80886234,School Transport,"Education, Inclusion and Skills",Mainstream School Transport,Transport Costs,Home to School Transport,BARNES COACHES LTD,SN3 ,14/04/2023,"9,960.00"
80886237,School Transport,"Education, Inclusion and Skills",Mainstream School Transport,Transport Costs,Home to School Transport,BARNES COACHES LTD,SN3 ,14/04/2023,"8,030.40"
80886233,School Transport,"Education, Inclusion and Skills",Mainstream School Transport,Transport Costs,Home to School Transport,BARNES COACHES LTD,SN3 ,14/04/2023,"9,697.48"
80886238,School Transport,"Education, Inclusion and Skills",Mainstream School Transport,Transport Costs,Home to School Transport,BARNES COACHES LTD,SN3 ,14/04/2023,"12,275.92"
81882233,Libraries,"Education, Inclusion and Skills",Library Shop,Supplies and Services,Goods for resale,BARNES COACHES LTD,SN3 ,19/04/2023,874.31
83436233,Landscaping & Open Space,Culture & Heritage & Art,Moredon Recreation - Multi Sports Hub,Capital,Professional Fees,BATES WELLS & BRAITHWAITE LONDON LLP,EC4R,26/04/2023,"1,500.00"
83461233,Social Care,"Children, Families and Community Health Services",Childrens Placement Team,Supplies and Services,Fees,BCP COUNCIL,BH2 ,26/04/2023,"1,997.22"
81647250,Schools - Primary,DSG Skills and Attainment,Primary School Budgets,3rd Party Payments,Mainstream Delegated Funding,BEECHCROFT INFANT SCHOOL,SN2 ,19/04/2023,"96,892.00"
80908233,High Needs Block,DSG Skills and Attainment,SEN Resourcing Assessment Panel,3rd Party Payments,Top up funding - Maintained providers Pre 16,BEECHCROFT INFANT SCHOOL,SN2 ,14/04/2023,"16,422.09"
81648249,DSG Other Funding,DSG Skills and Attainment,DFE Additional Grants,3rd Party Payments,Payment of Pupil Premium to school,BEECHCROFT INFANT SCHOOL,SN2 ,19/04/2023,"8,389.00"
79853233,Schools - Primary,DSG Skills and Attainment,Primary School Budgets,3rd Party Payments,Mainstream Delegated Funding,BEECHCROFT INFANT SCHOOL,SN2 ,05/04/2023,"101,123.80"
82506310,Learning Disabilities,Adults,Learning Disability 18 - 64,3rd Party Payments,Residential Care,BEECHWOOD COURT LTD,CF10,21/04/2023,"26,739.16"
82506310,Learning Disabilities,Adults,Learning Disability 18 - 64,3rd Party Payments,Residential Care,BEECHWOOD COURT LTD,CF10,21/04/2023,"18,598.72"
82506310,Learning Disabilities,Adults,Learning Disability 18 - 64,Income,Client Contribution - Residential,BEECHWOOD COURT LTD,CF10,21/04/2023,-322.56
82083233,Supported Employment,Housing Services,EW - Timber,Supplies and Services,Equipment,BEESLEYS TOOLS,SN2 ,19/04/2023,609.00
80555233,Public Health,Public Health,Contain Outbreak Management Fund (COMF),Supplies and Services,Services,BETTER BRAND AGENCY,TS2 ,12/04/2023,"8,500.00"
81622234,Void Repairs,Supervision & Management,Void Property Repairs,Employees,Temporary / Agency - by Accounts Payable,BEVAN BRITTAN,BS2 ,19/04/2023,"5,412.00"
82552233,Libraries,"Education, Inclusion and Skills",Library Delivery,Supplies and Services,Repairs & Maintenance,BIBLIOTHECA LTD,SK8 ,21/04/2023,"1,276.56"
79260233,School Transport,"Education, Inclusion and Skills",Special Educational Needs Transport,Transport Costs,Home to School Transport,REDACTED PERSONAL DATA,SN2 ,03/04/2023,812.16
82430335,School Transport,"Education, Inclusion and Skills",Special Educational Needs Transport,Transport Costs,Home to School Transport,REDACTED PERSONAL DATA,SN2 ,24/04/2023,812.16
79840233,Schools - Primary,DSG Skills and Attainment,Primary School Budgets,3rd Party Payments,Mainstream Delegated Funding,BISHOPSTONE C E PRIMARY SCHOOL,SN6 ,05/04/2023,"27,798.70"
81648240,DSG Other Funding,DSG Skills and Attainment,DFE Additional Grants,3rd Party Payments,Payment of Pupil Premium to school,BISHOPSTONE C E PRIMARY SCHOOL,SN6 ,19/04/2023,"1,660.00"
81647242,Schools - Primary,DSG Skills and Attainment,Primary School Budgets,3rd Party Payments,Mainstream Delegated Funding,BISHOPSTONE C E PRIMARY SCHOOL,SN6 ,19/04/2023,"27,037.00"
Corporate Card Transaction,Homelessness and Travellers,Housing Services,Homelessness Prevention,Transfer Payments,Payment of Costs,Bkg*booking.Com Hotel,,25/04/2023,500
Corporate Card Transaction,Homelessness and Travellers,Housing Services,Bed and Breakfast Accommodation,Transfer Payments,Payment of Costs,Bkg*booking.Com Hotel,,19/04/2023,586.67
Corporate Card Transaction,Homelessness and Travellers,Housing Services,Bed and Breakfast Accommodation,Transfer Payments,Payment of Costs,Bkg*booking.Com Hotel,,18/04/2023,677
Corporate Card Transaction,Homelessness and Travellers,Housing Services,Bed and Breakfast Accommodation,Transfer Payments,Payment of Costs,Bkg*booking.Com Hotel,,18/04/2023,857.63
Corporate Card Transaction,Homelessness and Travellers,Housing Services,Bed and Breakfast Accommodation,Transfer Payments,Payment of Costs,Bkg*booking.Com Hotel,,05/04/2023,566.93
Corporate Card Transaction,Homelessness and Travellers,Housing Services,Bed and Breakfast Accommodation,Transfer Payments,Payment of Costs,Bkg*booking.Com Hotel,,04/04/2023,530.93
Corporate Card Transaction,Homelessness and Travellers,Housing Services,Bed and Breakfast Accommodation,Transfer Payments,Payment of Costs,Bkg*booking.Com Hotel,,04/04/2023,606.92
Corporate Card Transaction,Homelessness and Travellers,Housing Services,Bed and Breakfast Accommodation,Transfer Payments,Payment of Costs,Bkg*booking.Com Hotel,,31/03/2023,531.93
Corporate Card Transaction,Homelessness and Travellers,Housing Services,Bed and Breakfast Accommodation,Transfer Payments,Payment of Costs,Bkg*booking.Com Hotel,,29/03/2023,616.93
Corporate Card Transaction,Homelessness and Travellers,Housing Services,Bed and Breakfast Accommodation,Transfer Payments,Payment of Costs,Bkg*booking.Com Hotel,,29/03/2023,616.93
80110233,Streetsmart,Streetsmart,Waterside Fleet Hires,Transport Costs,Vehicle Hire / Contract,BLAKEDALE LTD,PR7 ,12/04/2023,805.00
79579234,Landscaping & Open Space,Culture & Heritage & Art,Moredon Recreation - Multi Sports Hub,Capital,Contractor Payments,BLB KILMINSTER BEER LLP,SN1 ,05/04/2023,"5,200.00"
80847233,Social Care,"Children, Families and Community Health Services",Children's Resource and Home Finding Team,3rd Party Payments,Independent Fostering Agency Placements,BLUE SKY,HA1 ,14/04/2023,"6,510.00"
82545273,Social Care,"Children, Families and Community Health Services",Children's Resource and Home Finding Team,3rd Party Payments,Independent Fostering Agency Placements,BLUE SKY,HA1 ,21/04/2023,"3,645.60"
80843233,Social Care,"Children, Families and Community Health Services",Children's Resource and Home Finding Team,3rd Party Payments,Parent & Child Placements,BLUE SKY,HA1 ,14/04/2023,"6,882.00"
80844233,Social Care,"Children, Families and Community Health Services",Children's Resource and Home Finding Team,3rd Party Payments,Independent Fostering Agency Placements,BLUE SKY,HA1 ,14/04/2023,"5,934.02"
82545271,Social Care,"Children, Families and Community Health Services",Children's Resource and Home Finding Team,3rd Party Payments,Independent Fostering Agency Placements,BLUE SKY,HA1 ,21/04/2023,"5,742.60"
82545274,Social Care,"Children, Families and Community Health Services",Children's Resource and Home Finding Team,3rd Party Payments,Independent Fostering Agency Placements,BLUE SKY,HA1 ,21/04/2023,"6,300.00"
80846233,Social Care,"Children, Families and Community Health Services",Children's Resource and Home Finding Team,3rd Party Payments,Independent Fostering Agency Placements,BLUE SKY,HA1 ,14/04/2023,"3,767.12"
80845233,Social Care,"Children, Families and Community Health Services",Children's Resource and Home Finding Team,3rd Party Payments,Independent Fostering Agency Placements,BLUE SKY,HA1 ,14/04/2023,"3,767.12"
82545272,Social Care,"Children, Families and Community Health Services",Children's Resource and Home Finding Team,3rd Party Payments,Independent Fostering Agency Placements,BLUE SKY,HA1 ,21/04/2023,"3,645.60"
81446233,Physical Support,Adults,Physical Support 65 and over,3rd Party Payments,Carers,BLUEBIRD CARE (SWINDON),SN25,17/04/2023,"1,012.00"
81444233,Learning Disabilities,Adults,Learning Disability 18 - 64,3rd Party Payments,Personal Budget - Domiciliary care,BLUEBIRD CARE (SWINDON),SN25,17/04/2023,526.24
81443233,Learning Disabilities,Adults,Learning Disability 18 - 64,3rd Party Payments,Personal Budget - Domiciliary care,BLUEBIRD CARE (SWINDON),SN25,17/04/2023,"1,366.20"
81447233,Learning Disabilities,Adults,Learning Disability 18 - 64,3rd Party Payments,Personal Budget - Domiciliary care,BLUEBIRD CARE (SWINDON),SN25,17/04/2023,850.08
81447234,Learning Disabilities,Adults,Learning Disability 18 - 64,3rd Party Payments,Personal Budget - Domiciliary care,BLUEBIRD CARE (SWINDON),SN25,17/04/2023,"1,543.30"
82257234,Early Years Block,DSG Skills and Attainment,Free Nursery Education Commissioning - three & four  year olds,3rd Party Payments,Contracts - Child Care,REDACTED PERSONAL DATA,SN3 ,19/04/2023,"27,287.53"
82571240,Early Years Block,DSG Skills and Attainment,Free Nursery Education Commissioning - three & four  year olds,3rd Party Payments,Contracts - Child Care,REDACTED PERSONAL DATA,SN3 ,26/04/2023,"2,850.00"
82506334,Mental Health,Adults,Mental Health 65 and over,3rd Party Payments,Residential Care,BOLEALLER HOUSE LTD,EX15,21/04/2023,"4,719.32"
80568233,Physical Support,Adults,Fessey House,Supplies and Services,Food,BOOKER LIMITED,CH5 ,12/04/2023,620.62
80568233,Physical Support,Adults,Fessey House,Supplies and Services,Food,BOOKER LIMITED,CH5 ,12/04/2023,119.61
82506278,Physical Support,Adults,Physical Support 65 and over,Income,Client Contribution - Nursing,BOTHWELLS LTD,HA6 ,21/04/2023,"1,481.78"
82506278,Physical Support,Adults,Physical Support 65 and over,Income,Client Contribution - Nursing,BOTHWELLS LTD,HA6 ,21/04/2023,"-1,622.86"
82506278,Physical Support,Adults,Physical Support 65 and over,Income,Client Contribution - Nursing,BOTHWELLS LTD,HA6 ,21/04/2023,-779.00
82506278,Physical Support,Adults,Physical Support 18 - 64,Income,Client Contribution - Nursing,BOTHWELLS LTD,HA6 ,21/04/2023,-414.20
82506278,Physical Support,Adults,Physical Support 65 and over,Income,Client Contribution - Nursing,BOTHWELLS LTD,HA6 ,21/04/2023,-608.80
82506278,Physical Support,Adults,Physical Support 65 and over,3rd Party Payments,Nursing Care,BOTHWELLS LTD,HA6 ,21/04/2023,"2,560.12"
82506278,Physical Support,Adults,Physical Support 65 and over,Income,Client Contribution - Nursing,BOTHWELLS LTD,HA6 ,21/04/2023,-781.40
82506278,Physical Support,Adults,Physical Support 65 and over,Income,Client Contribution - Nursing,BOTHWELLS LTD,HA6 ,21/04/2023,-659.80
82506278,Physical Support,Adults,Physical Support 65 and over,Income,Client Contribution - Nursing,BOTHWELLS LTD,HA6 ,21/04/2023,481.79
82506278,Physical Support,Adults,Physical Support 65 and over,Income,Client Contribution - Nursing,BOTHWELLS LTD,HA6 ,21/04/2023,-909.16
82506278,Physical Support,Adults,Physical Support 18 - 64,3rd Party Payments,Nursing Care,BOTHWELLS LTD,HA6 ,21/04/2023,"2,560.12"
82506278,Physical Support,Adults,Physical Support 65 and over,3rd Party Payments,Nursing Care,BOTHWELLS LTD,HA6 ,21/04/2023,"3,733.20"
82506278,Physical Support,Adults,Physical Support 65 and over,3rd Party Payments,Nursing Care,BOTHWELLS LTD,HA6 ,21/04/2023,"3,396.88"
82506278,Physical Support,Adults,Physical Support 65 and over,Income,Client Contribution - Nursing,BOTHWELLS LTD,HA6 ,21/04/2023,-528.61
82506278,Learning Disabilities,Adults,Learning Disability 18 - 64,3rd Party Payments,Nursing Care,BOTHWELLS LTD,HA6 ,21/04/2023,"-3,496.35"
82506278,Physical Support,Adults,Physical Support 65 and over,3rd Party Payments,Nursing Care,BOTHWELLS LTD,HA6 ,21/04/2023,"2,920.32"
82506278,Physical Support,Adults,Physical Support 65 and over,3rd Party Payments,Nursing Care,BOTHWELLS LTD,HA6 ,21/04/2023,"2,384.04"
82506278,Physical Support,Adults,Physical Support 18 - 64,Income,Client Contribution - Nursing,BOTHWELLS LTD,HA6 ,21/04/2023,-425.60
82506278,Physical Support,Adults,Physical Support 65 and over,3rd Party Payments,Nursing Care,BOTHWELLS LTD,HA6 ,21/04/2023,"4,156.12"
83096234,Responsive Repairs,Repairs,Responsive Repairs,3rd Party Payments,Contract Payments,BOUNDARY SCAFFOLDING LTD,SN6 ,26/04/2023,"1,120.00"
80803234,Legal Services,Legal Services,Legal Services,Employees,Training,BPP PROFESSIONAL EDUCATION,M1 6,14/04/2023,"1,382.00"
82571233,Early Years Block,DSG Skills and Attainment,Free Nursery Education Commissioning - three & four  year olds,3rd Party Payments,Contracts - Child Care,BRAMBLE HOUSE DAY NURSERY LTD,SN2 ,26/04/2023,"2,280.00"
82258233,Early Years Block,DSG Skills and Attainment,Free Nursery Education Commissioning - three & four  year olds,3rd Party Payments,Contracts - Child Care,BRAMBLE HOUSE DAY NURSERY LTD,SN2 ,19/04/2023,"49,455.82"
82258236,Early Years Block,DSG Skills and Attainment,Free Nursery Education Commissioning - two year olds,3rd Party Payments,Contracts - Child Care,BRAMBLE HOUSE DAY NURSERY LTD,SN2 ,19/04/2023,"6,706.25"
81299233,Social Care,"Children, Families and Community Health Services",Children's Resource and Home Finding Team,3rd Party Payments,Residential Care,BRANAS ISAF LIMITED,EN6 ,17/04/2023,"23,785.80"
83884234,Property & Assets,Property & Assets,General Enhancement Works Corporate Buildings,Capital,Contractor Payments,BRAND ENERGY AND INFRASTRUCTURE SERVICES UK LTD,KT22,28/04/2023,"2,340.00"
81612233,Mental Health,Adults,Mental Health 18-64,Transport Costs,Travel,BRAYFIELD KENNELS,SN5 ,19/04/2023,"1,280.00"
81323234,Highways Schemes,Strategic Planning and Highways,Wichelstowe Travel Plan,Capital,Contractor Payments,BRITISH CYCLING FEDERATION,M11 ,17/04/2023,"1,750.00"
83166233,Property Estates,Property,Carriage Works,Premises Costs,Electricity,BRITISH GAS TRADING LTD,S98 ,26/04/2023,"1,194.02"
83023233,,,Balance Sheet,Balance Sheet & Recharge,British Telecom invoices,BRITISH TELECOMMUNICATIONS PLC,S98 ,26/04/2023,100.00
83023233,,,Balance Sheet,Balance Sheet & Recharge,British Telecom invoices,BRITISH TELECOMMUNICATIONS PLC,S98 ,26/04/2023,"22,158.58"
81608233,Corporate,Corporate Finance,Corporate Financial Management,Supplies and Services,Fees,BROADSTONE CONSULTANTS & ACTUARIES LTD,BS1 ,19/04/2023,"2,355.00"
81607233,Corporate,Corporate Finance,Corporate Financial Management,Supplies and Services,Fees,BROADSTONE CONSULTANTS & ACTUARIES LTD,BS1 ,19/04/2023,"5,290.00"
81644233,Corporate,Corporate Finance,Corporate Financial Management,Supplies and Services,Fees,BROADSTONE CONSULTANTS & ACTUARIES LTD,BS1 ,19/04/2023,"3,815.73"
80988233,High Needs Block,DSG Skills and Attainment,Post 16 - New Responsibilties,3rd Party Payments,Independent Service Provider- Post 16,BRUNEL EDUCATION,SN25,14/04/2023,"112,221.50"
80954233,High Needs Block,DSG Skills and Attainment,SEN Resourcing Assessment Panel,3rd Party Payments,Top up funding - Academies and Free Schools Pre 16,BRUNEL EDUCATION,SN25,14/04/2023,"11,437.26"
81659233,High Needs Block,DSG Skills and Attainment,Advisory Teacher Services,Supplies and Services,Payments to Educational Bodies,REDACTED PERSONAL DATA,SN25,19/04/2023,"7,250.00"
80981233,High Needs Block,DSG Skills and Attainment,SEN Resourcing Assessment Panel,3rd Party Payments,Top up funding - Academies and Free Schools Post 16,REDACTED PERSONAL DATA,SN25,14/04/2023,"49,927.43"
80960233,High Needs Block,DSG Skills and Attainment,SEN Resourcing Assessment Panel,3rd Party Payments,Top up funding - Academies and Free Schools Pre 16,REDACTED PERSONAL DATA,SN25,14/04/2023,"135,577.95"
82910234,School Transport,"Education, Inclusion and Skills",Special Educational Needs Transport,Employees,Temporary / Agency - by Accounts Payable,REDACTED PERSONAL DATA,SN25,26/04/2023,"3,064.00"
80973233,High Needs Block,DSG Skills and Attainment,SEN Resourcing Assessment Panel,3rd Party Payments,Top up funding - Academies and Free Schools Pre 16,REDACTED PERSONAL DATA,SN25,14/04/2023,"9,249.73"
79721235,High Needs Block,DSG Skills and Attainment,Advisory Teacher Services,Supplies and Services,Payments to Educational Bodies,REDACTED PERSONAL DATA,SN25,05/04/2023,"7,250.00"
79721236,High Needs Block,DSG Skills and Attainment,Advisory Teacher Services,Supplies and Services,Payments to Educational Bodies,REDACTED PERSONAL DATA,SN25,05/04/2023,"11,325.00"
80824233,School Transport,"Education, Inclusion and Skills",Special Educational Needs Transport,Employees,Temporary / Agency - by Accounts Payable,REDACTED PERSONAL DATA,SN25,17/04/2023,"2,234.72"
80977233,High Needs Block,DSG Skills and Attainment,SEN Resourcing Assessment Panel,3rd Party Payments,Top up funding - Academies and Free Schools Pre 16,REDACTED PERSONAL DATA,SN25,14/04/2023,"17,363.64"
80966233,High Needs Block,DSG Skills and Attainment,SEN Resourcing Assessment Panel,3rd Party Payments,Top up funding - Academies and Free Schools Pre 16,REDACTED PERSONAL DATA,SN25,14/04/2023,"29,070.81"
80956233,High Needs Block,DSG Skills and Attainment,SEN Resourcing Assessment Panel,3rd Party Payments,Top up funding - Academies and Free Schools Pre 16,REDACTED PERSONAL DATA,SN25,14/04/2023,"80,424.41"
80955233,High Needs Block,DSG Skills and Attainment,SEN Resourcing Assessment Panel,3rd Party Payments,Top up funding - Academies and Free Schools Pre 16,REDACTED PERSONAL DATA,SN25,14/04/2023,"22,125.88"
80941233,High Needs Block,DSG Skills and Attainment,SEN Resourcing Assessment Panel,3rd Party Payments,Top up funding - Academies and Free Schools Pre 16,REDACTED PERSONAL DATA,SN25,14/04/2023,"2,132.08"
82243233,Early Years Block,DSG Skills and Attainment,Free Nursery Education Commissioning - three & four  year olds,3rd Party Payments,Contracts - Child Care,REDACTED PERSONAL DATA,SN25,19/04/2023,"6,258.39"
81660233,High Needs Block,DSG Skills and Attainment,Advisory Teacher Services,Supplies and Services,Payments to Educational Bodies,REDACTED PERSONAL DATA,SN25,19/04/2023,"11,325.00"
80978233,High Needs Block,DSG Skills and Attainment,SEN Resourcing Assessment Panel,3rd Party Payments,Top up funding - Academies and Free Schools Pre 16,REDACTED PERSONAL DATA,SN25,14/04/2023,"21,422.08"
80957233,High Needs Block,DSG Skills and Attainment,SEN Resourcing Assessment Panel,3rd Party Payments,Top up funding - Academies and Free Schools Pre 16,REDACTED PERSONAL DATA,SN25,14/04/2023,"133,667.85"
80953233,High Needs Block,DSG Skills and Attainment,SEN Resourcing Assessment Panel,3rd Party Payments,Top up funding - Academies and Free Schools Pre 16,REDACTED PERSONAL DATA,SN25,14/04/2023,"118,423.21"
82583233,NEV,"Economy, Growth and Place",Southern Connector Road,Capital,Contractor Payments,BRUTON KNOWLES,GL2 ,24/04/2023,"1,706.71"
82587233,Highways & Transport,Highways & Transport,Highways Management,Supplies and Services,Subscriptions,BUILDING SOFTWARE LTD,EX16,24/04/2023,"17,150.00"
81276233,Property Management,Property,Corporate Repairs & Maintenance Programme,Premises Costs,Maintenance - Buildings,BUILDTECH SW LIMITED,GL53,14/04/2023,"1,020.00"
80799233,Housing & Supported Living,Adults,ASC Equipment,Capital,Contractor Payments,BUILDTECH SW LIMITED,GL53,14/04/2023,"37,832.88"
81940233,Other Repairs,Repairs,Delivery Team & Overheads,Supplies and Services,Materials,BUILDTECH SW LIMITED,GL53,19/04/2023,"16,101.18"
81940233,Other Repairs,Repairs,Delivery Team & Overheads,Supplies and Services,Materials,BUILDTECH SW LIMITED,GL53,19/04/2023,"4,654.57"
80799233,Housing & Supported Living,Adults,ASC Equipment,Capital,Contractor Payments,BUILDTECH SW LIMITED,GL53,14/04/2023,"11,928.31"
81276233,Property Management,Property,Corporate Repairs & Maintenance Programme,Premises Costs,Maintenance - Buildings,BUILDTECH SW LIMITED,GL53,14/04/2023,"3,698.00"
81930233,Human Resources and Organisational Development,"People, Culture and Organisational Resilience",HR Systems & Strategy,Employees,Temporary / Agency - by Accounts Payable,BURMAN HR,DT1 ,19/04/2023,"2,250.00"
83482234,Human Resources and Organisational Development,"People, Culture and Organisational Resilience",HR System,Employees,Temporary / Agency - by Accounts Payable,BURMAN HR,DT1 ,26/04/2023,"1,714.86"
81932233,Human Resources and Organisational Development,"People, Culture and Organisational Resilience",HR Systems & Strategy,Employees,Temporary / Agency - by Accounts Payable,BURMAN HR,DT1 ,19/04/2023,"2,250.00"
81929233,Human Resources and Organisational Development,"People, Culture and Organisational Resilience",HR Systems & Strategy,Employees,Temporary / Agency - by Accounts Payable,BURMAN HR,DT1 ,19/04/2023,"2,250.00"
82139233,Early Years Block,DSG Skills and Attainment,Free Nursery Education Commissioning - three & four  year olds,3rd Party Payments,Contracts - Child Care,"BUSY BEES, BROOME MANOR",SN3 ,19/04/2023,"15,379.89"
82140233,Early Years Block,DSG Skills and Attainment,Free Nursery Education Commissioning - two year olds,3rd Party Payments,Contracts - Child Care,"BUSY BEES, BROOME MANOR",SN3 ,19/04/2023,718.53
82927233,High Needs Block,DSG Skills and Attainment,SEN Resourcing Assessment Panel,3rd Party Payments,Top up funding - Maintained providers Pre 16,"BUSY BEES, BROOME MANOR",SN3 ,26/04/2023,624.00
82142233,Early Years Block,DSG Skills and Attainment,Free Nursery Education Commissioning - three & four  year olds,3rd Party Payments,Contracts - Child Care,"BUSY BEES, PEATMOOR",SN5 ,19/04/2023,"15,025.07"
82141233,Early Years Block,DSG Skills and Attainment,Free Nursery Education Commissioning - two year olds,3rd Party Payments,Contracts - Child Care,"BUSY BEES, PEATMOOR",SN5 ,19/04/2023,718.53
82928233,High Needs Block,DSG Skills and Attainment,SEN Resourcing Assessment Panel,3rd Party Payments,Top up funding - Maintained providers Pre 16,"BUSY BEES, PEATMOOR",SN5 ,26/04/2023,624.00
82144233,Early Years Block,DSG Skills and Attainment,Free Nursery Education Commissioning - two year olds,3rd Party Payments,Contracts - Child Care,"BUSY BEES, ST ANDREWS RIDGE",SN25,19/04/2023,718.53
82143233,Early Years Block,DSG Skills and Attainment,Free Nursery Education Commissioning - three & four  year olds,3rd Party Payments,Contracts - Child Care,"BUSY BEES, ST ANDREWS RIDGE",SN25,19/04/2023,"21,056.94"
80558233,Homelessness and Travellers,Housing Services,Asylum Dispersal,Supplies and Services,Fees,BUZZ GYM SWINDON LTD,SN1 ,12/04/2023,"8,250.00"
81243233,Museums & Heritage,Culture & Heritage,Steam:Education & Curatorial,Supplies and Services,Discretionary Costs,REDACTED PERSONAL DATA,SO30,17/04/2023,710.55
80559233,Highways Schemes,Strategic Planning and Highways,"Rapid Transit - QBC Wichelstowe, North and UTMC",Capital,Contractor Payments,C H CONTRACTING (SOUTH WEST) LTD,BA11,12/04/2023,418.00
82589234,Property Estates,Property,Estates - Kendrick Close,Supplies and Services,Repairs & Maintenance,C J COOK CONTRACTORS LTD,GL53,24/04/2023,"4,950.00"
83884233,Planned Maintenance Programme,HRA Capital Financing,Aids & Adaptations,Capital,Contractor Payments,C.A.P. SECURITY LTD,BS15,28/04/2023,"2,514.39"
82506293,Learning Disabilities,Adults,Learning Disability 18 - 64,3rd Party Payments,Residential Care,C.H.O.I.C.E LTD,RG12,21/04/2023,"12,920.00"
82506297,Learning Disabilities,Adults,Learning Disability 18 - 64,3rd Party Payments,Residential Care,C.H.O.I.C.E LTD,RG12,21/04/2023,"9,917.64"
82506297,Learning Disabilities,Adults,Learning Disability 18 - 64,Income,Client Contribution - Residential,C.H.O.I.C.E LTD,RG12,21/04/2023,-454.80
82506295,Learning Disabilities,Adults,Learning Disability 65 and over,3rd Party Payments,Residential Care,C.H.O.I.C.E LTD,RG12,21/04/2023,"9,836.00"
82506292,Learning Disabilities,Adults,Learning Disability 18 - 64,Income,Client Contribution - Residential,C.H.O.I.C.E LTD,RG12,21/04/2023,990.32
82506296,Learning Disabilities,Adults,Learning Disability 65 and over,3rd Party Payments,Residential Care,C.H.O.I.C.E LTD,RG12,21/04/2023,"9,268.00"
82506291,Learning Disabilities,Adults,Learning Disability 18 - 64,3rd Party Payments,Residential Care,C.H.O.I.C.E LTD,RG12,21/04/2023,"40,038.28"
82506297,Learning Disabilities,Adults,Learning Disability 18 - 64,3rd Party Payments,Residential Care,C.H.O.I.C.E LTD,RG12,21/04/2023,"12,384.00"
82506296,Learning Disabilities,Adults,Learning Disability 18 - 64,3rd Party Payments,Residential Care,C.H.O.I.C.E LTD,RG12,21/04/2023,"8,828.00"
82506291,Learning Disabilities,Adults,Learning Disability 18 - 64,Income,Client Contribution - Residential,C.H.O.I.C.E LTD,RG12,21/04/2023,-298.20
82506296,Learning Disabilities,Adults,Learning Disability 65 and over,3rd Party Payments,Residential Care,C.H.O.I.C.E LTD,RG12,21/04/2023,"-10,310.14"
82506296,Learning Disabilities,Adults,Learning Disability 65 and over,Income,Client Contribution - Residential,C.H.O.I.C.E LTD,RG12,21/04/2023,-419.19
82506297,Learning Disabilities,Adults,Learning Disability 18 - 64,3rd Party Payments,Residential Care,C.H.O.I.C.E LTD,RG12,21/04/2023,"7,494.51"
82506292,Learning Disabilities,Adults,Learning Disability 18 - 64,3rd Party Payments,Residential Care,C.H.O.I.C.E LTD,RG12,21/04/2023,"8,992.00"
82506297,Learning Disabilities,Adults,Learning Disability 18 - 64,Income,Client Contribution - Residential,C.H.O.I.C.E LTD,RG12,21/04/2023,-248.79
82506296,Learning Disabilities,Adults,Learning Disability 65 and over,3rd Party Payments,Residential Care,C.H.O.I.C.E LTD,RG12,21/04/2023,"5,936.14"
82506291,Learning Disabilities,Adults,Learning Disability 18 - 64,3rd Party Payments,Residential Care,C.H.O.I.C.E LTD,RG12,21/04/2023,"12,000.00"
82506296,Learning Disabilities,Adults,Learning Disability 18 - 64,3rd Party Payments,Residential Care,C.H.O.I.C.E LTD,RG12,21/04/2023,"28,106.24"
82506293,Learning Disabilities,Adults,Learning Disability 18 - 64,3rd Party Payments,Residential Care,C.H.O.I.C.E LTD,RG12,21/04/2023,"27,785.10"
82506297,Learning Disabilities,Adults,Learning Disability 18 - 64,Income,Client Contribution - Residential,C.H.O.I.C.E LTD,RG12,21/04/2023,116.10
82506292,Learning Disabilities,Adults,Learning Disability 18 - 64,Income,Client Contribution - Residential,C.H.O.I.C.E LTD,RG12,21/04/2023,-423.00
82506296,Learning Disabilities,Adults,Learning Disability 65 and over,3rd Party Payments,Residential Care,C.H.O.I.C.E LTD,RG12,21/04/2023,"4,374.00"
82506296,Learning Disabilities,Adults,Learning Disability 65 and over,Income,Client Contribution - Residential,C.H.O.I.C.E LTD,RG12,21/04/2023,-550.84
82506295,Learning Disabilities,Adults,Learning Disability 65 and over,Income,Client Contribution - Residential,C.H.O.I.C.E LTD,RG12,21/04/2023,-607.60
82506292,Learning Disabilities,Adults,Learning Disability 18 - 64,3rd Party Payments,Residential Care,C.H.O.I.C.E LTD,RG12,21/04/2023,"-30,338.48"
82506294,Learning Disabilities,Adults,Learning Disability 18 - 64,3rd Party Payments,Residential Care,C.H.O.I.C.E LTD,SO23,21/04/2023,"8,203.60"
82506297,Learning Disabilities,Adults,Learning Disability 18 - 64,Income,Client Contribution - Residential,C.H.O.I.C.E LTD,RG12,21/04/2023,-138.30
82506296,Learning Disabilities,Adults,Learning Disability 18 - 64,Income,Client Contribution - Residential,C.H.O.I.C.E LTD,RG12,21/04/2023,-391.00
82506293,Learning Disabilities,Adults,Learning Disability 18 - 64,Income,Client Contribution - Residential,C.H.O.I.C.E LTD,RG12,21/04/2023,-415.00
82506296,Learning Disabilities,Adults,Learning Disability 65 and over,3rd Party Payments,Residential Care,C.H.O.I.C.E LTD,RG12,21/04/2023,"8,748.00"
82506295,Learning Disabilities,Adults,Learning Disability 65 and over,3rd Party Payments,Residential Care,C.H.O.I.C.E LTD,RG12,21/04/2023,"19,485.50"
82506296,Learning Disabilities,Adults,Learning Disability 65 and over,Income,Client Contribution - Residential,C.H.O.I.C.E LTD,RG12,21/04/2023,749.95
82506296,Learning Disabilities,Adults,Learning Disability 65 and over,Income,Client Contribution - Residential,C.H.O.I.C.E LTD,RG12,21/04/2023,-617.76
82506297,Learning Disabilities,Adults,Learning Disability 18 - 64,Income,Client Contribution - Residential,C.H.O.I.C.E LTD,RG12,21/04/2023,222.43
82506297,Learning Disabilities,Adults,Learning Disability 18 - 64,Income,Client Contribution - Residential,C.H.O.I.C.E LTD,RG12,21/04/2023,-276.60
82506296,Learning Disabilities,Adults,Learning Disability 65 and over,3rd Party Payments,Residential Care,C.H.O.I.C.E LTD,RG12,21/04/2023,"13,015.04"
82506295,Learning Disabilities,Adults,Learning Disability 65 and over,3rd Party Payments,Residential Care,C.H.O.I.C.E LTD,RG12,21/04/2023,"2,009.52"
82506295,Learning Disabilities,Adults,Learning Disability 65 and over,3rd Party Payments,Residential Care,C.H.O.I.C.E LTD,RG12,21/04/2023,"9,224.00"
82506292,Learning Disabilities,Adults,Learning Disability 18 - 64,3rd Party Payments,Residential Care,C.H.O.I.C.E LTD,RG12,21/04/2023,"32,296.18"
82506296,Learning Disabilities,Adults,Learning Disability 65 and over,Income,Client Contribution - Residential,C.H.O.I.C.E LTD,RG12,21/04/2023,-277.88
82506297,Physical Support,Adults,Physical Support 18 - 64,3rd Party Payments,Residential Care,C.H.O.I.C.E LTD,RG12,21/04/2023,"10,222.80"
82506297,Learning Disabilities,Adults,Learning Disability 18 - 64,3rd Party Payments,Residential Care,C.H.O.I.C.E LTD,RG12,21/04/2023,"11,468.00"
82506295,Learning Disabilities,Adults,Learning Disability 65 and over,Income,Client Contribution - Residential,C.H.O.I.C.E LTD,RG12,21/04/2023,-773.20
82506297,Physical Support,Adults,Physical Support 18 - 64,Income,Client Contribution - Residential,C.H.O.I.C.E LTD,RG12,21/04/2023,-414.20
81297233,Social Care,"Children, Families and Community Health Services",Children's Resource and Home Finding Team,3rd Party Payments,Residential Care,CALCOT SERVICES FOR CHILDREN LTD,RG7 ,17/04/2023,"28,414.20"
81298233,Social Care,"Children, Families and Community Health Services",Children's Resource and Home Finding Team,3rd Party Payments,Residential Care,CALCOT SERVICES FOR CHILDREN LTD,RG7 ,17/04/2023,"28,928.40"
81305233,Social Care,"Children, Families and Community Health Services",Children's Resource and Home Finding Team,3rd Party Payments,Independent Fostering Agency Placements,CALDECOTT FOSTERING LTD,TN25,17/04/2023,"6,915.99"
80123233,Lydiard Park,Culture & Heritage,Lydiard : Hotel Operations,Premises Costs,Gas,CALOR GAS LTD,CV34,12/04/2023,"1,571.90"
83165233,Social Care,"Children, Families and Community Health Services",Fostering Service Team,Supplies and Services,Service Charges,CAN DIGITAL SOLUTIONS LIMITED,EC1N,26/04/2023,950.00
81464235,Void Repairs,Supervision & Management,Void Property Repairs,3rd Party Payments,Contract Payments,CANTILLON GROUP LTD,SN25,17/04/2023,"40,000.00"
81464235,Void Repairs,Supervision & Management,Void Property Repairs,3rd Party Payments,Contract Payments,CANTILLON GROUP LTD,SN25,17/04/2023,"6,079.41"
81464235,Void Repairs,Supervision & Management,Void Property Repairs,3rd Party Payments,Contract Payments,CANTILLON GROUP LTD,SN25,17/04/2023,"3,904.83"
81464235,Void Repairs,Supervision & Management,Void Property Repairs,3rd Party Payments,Contract Payments,CANTILLON GROUP LTD,SN25,17/04/2023,"2,222.78"
81464235,Void Repairs,Supervision & Management,Void Property Repairs,3rd Party Payments,Contract Payments,CANTILLON GROUP LTD,SN25,17/04/2023,"3,714.90"
81464235,Void Repairs,Supervision & Management,Void Property Repairs,3rd Party Payments,Contract Payments,CANTILLON GROUP LTD,SN25,17/04/2023,"8,292.79"
81464235,Void Repairs,Supervision & Management,Void Property Repairs,3rd Party Payments,Contract Payments,CANTILLON GROUP LTD,SN25,17/04/2023,"-40,000.00"
81464235,Void Repairs,Supervision & Management,Void Property Repairs,3rd Party Payments,Contract Payments,CANTILLON GROUP LTD,SN25,17/04/2023,"4,425.00"
81464235,Void Repairs,Supervision & Management,Void Property Repairs,3rd Party Payments,Contract Payments,CANTILLON GROUP LTD,SN25,17/04/2023,545.85
81464235,Void Repairs,Supervision & Management,Void Property Repairs,3rd Party Payments,Contract Payments,CANTILLON GROUP LTD,SN25,17/04/2023,"3,512.04"
81464235,Void Repairs,Supervision & Management,Void Property Repairs,3rd Party Payments,Contract Payments,CANTILLON GROUP LTD,SN25,17/04/2023,"11,466.35"
81464235,Void Repairs,Supervision & Management,Void Property Repairs,3rd Party Payments,Contract Payments,CANTILLON GROUP LTD,SN25,17/04/2023,"5,223.71"
81464235,Void Repairs,Supervision & Management,Void Property Repairs,3rd Party Payments,Contract Payments,CANTILLON GROUP LTD,SN25,17/04/2023,"2,159.64"
81464235,Void Repairs,Supervision & Management,Void Property Repairs,3rd Party Payments,Contract Payments,CANTILLON GROUP LTD,SN25,17/04/2023,"6,311.57"
81464235,Planned Maintenance Programme,HRA Capital Financing,Kitchens,Capital,Contractor Payments,CANTILLON GROUP LTD,SN25,17/04/2023,"3,430.68"
81464235,Void Repairs,Supervision & Management,Void Property Repairs,3rd Party Payments,Contract Payments,CANTILLON GROUP LTD,SN25,17/04/2023,"10,095.50"
81464235,Planned Maintenance Programme,HRA Capital Financing,Bathrooms,Capital,Contractor Payments,CANTILLON GROUP LTD,SN25,17/04/2023,"2,299.15"
81464235,Void Repairs,Supervision & Management,Void Property Repairs,3rd Party Payments,Contract Payments,CANTILLON GROUP LTD,SN25,17/04/2023,"6,452.76"
81464235,Void Repairs,Supervision & Management,Void Property Repairs,3rd Party Payments,Contract Payments,CANTILLON GROUP LTD,SN25,17/04/2023,"3,682.19"
79678233,Business Development,Supervision & Management,ICT & Administration,Supplies and Services,Equipment,CAPITA BUSINESS SERVICES LTD,DL1 ,05/04/2023,"9,150.00"
79679233,Business Development,Supervision & Management,ICT & Administration,Supplies and Services,Equipment,CAPITA BUSINESS SERVICES LTD,DL1 ,05/04/2023,"5,625.00"
83315233,Business Development,Supervision & Management,ICT & Administration,Supplies and Services,Equipment,CAPITA BUSINESS SERVICES LTD,DL1 ,26/04/2023,"5,750.00"
80639233,Human Resources and Organisational Development,"People, Culture and Organisational Resilience",HR Systems & Strategy,Supplies and Services,Fees,CAPITA RESOURCING LTD,RG22,12/04/2023,"2,178.00"
80639233,Human Resources and Organisational Development,"People, Culture and Organisational Resilience",HR Systems & Strategy,Supplies and Services,Fees,CAPITA RESOURCING LTD,RG22,12/04/2023,910.36
81773235,Social Care,"Children, Families and Community Health Services",Children's Resource and Home Finding Team,3rd Party Payments,Independent Fostering Agency Placements,CAPSTONE FOSTER CARE (SW) LTD,TQ12,19/04/2023,"3,644.70"
81773236,Social Care,"Children, Families and Community Health Services",Children's Resource and Home Finding Team,3rd Party Payments,Independent Fostering Agency Placements,CAPSTONE FOSTER CARE (SW) LTD,TQ12,19/04/2023,"7,627.50"
80505233,Disabled Children,"Children, Families and Community Health Services",ICES Paediatric,Supplies and Services,Equipment,CARE & INDEPENDENCE SYSTEMS LTD,OX26,12/04/2023,442.50
82540233,Human Resources and Organisational Development,"People, Culture and Organisational Resilience",HR Operations,Employees,Employee Related Schemes,CARE FIRST,GL3 ,21/04/2023,"3,063.57"
82506368,Learning Disabilities,Adults,Learning Disability 18 - 64,3rd Party Payments,Supported Lodgings (Childrens)/Supported Living (Adults),CAREFORYOU LTD,N13 ,21/04/2023,"4,882.00"
81705234,Physical Support,Adults,Physical Support 65 and over,3rd Party Payments,Personal Budget - Domiciliary care,CAREWATCH (SWINDON) (INACTIVE SEE 6139207),BA14,19/04/2023,"1,320.98"
81706236,Physical Support,Adults,Physical Support 18 - 64,3rd Party Payments,Personal Budget - Domiciliary care,CAREWATCH (SWINDON) (INACTIVE SEE 6139207),BA14,19/04/2023,"2,986.34"
81703235,Physical Support,Adults,Physical Support 65 and over,3rd Party Payments,Personal Budget - Domiciliary care,CAREWATCH (SWINDON) (INACTIVE SEE 6139207),BA14,19/04/2023,786.42
81705233,Physical Support,Adults,Physical Support 65 and over,3rd Party Payments,Personal Budget - Domiciliary care,CAREWATCH (SWINDON) (INACTIVE SEE 6139207),BA14,19/04/2023,"3,073.72"
81703233,Physical Support,Adults,Physical Support 65 and over,3rd Party Payments,Personal Budget - Domiciliary care,CAREWATCH (SWINDON) (INACTIVE SEE 6139207),BA14,19/04/2023,945.76
81702233,Physical Support,Adults,Physical Support 65 and over,3rd Party Payments,Personal Budget - Domiciliary care,CAREWATCH (SWINDON) (INACTIVE SEE 6139207),BA14,19/04/2023,842.96
81706233,Physical Support,Adults,Physical Support 65 and over,3rd Party Payments,Personal Budget - Domiciliary care,CAREWATCH (SWINDON) (INACTIVE SEE 6139207),BA14,19/04/2023,"1,269.58"
81706234,Physical Support,Adults,Physical Support 65 and over,3rd Party Payments,Personal Budget - Domiciliary care,CAREWATCH (SWINDON) (INACTIVE SEE 6139207),BA14,19/04/2023,"1,439.20"
79544233,Disabled Children,"Children, Families and Community Health Services",DCT Daytime Short Breaks,3rd Party Payments,Respite Care,CARING FOR COMMUNITIES AND PEOPLE (CCP),GL50,05/04/2023,"1,375.60"
80350233,Physical Support,Adults,Physical Support 18 - 64,3rd Party Payments,Personal Budget - Domiciliary care,CARING HEART CARERS LIMITED,SN25,12/04/2023,"1,192.48"
80348233,Physical Support,Adults,Physical Support 18 - 64,3rd Party Payments,Personal Budget - Domiciliary care,CARING HEART CARERS LIMITED,SN25,12/04/2023,853.24
82010233,Physical Support,Adults,Physical Support 65 and over,3rd Party Payments,Personal Budget - Domiciliary care,CARING HEART CARERS LIMITED,SN25,19/04/2023,638.98
82010233,Physical Support,Adults,Physical Support 65 and over,3rd Party Payments,Personal Budget - Domiciliary care,CARING HEART CARERS LIMITED,SN25,19/04/2023,680.88
80349233,Physical Support,Adults,Physical Support 65 and over,3rd Party Payments,Personal Budget - Domiciliary care,CARING HEART CARERS LIMITED,SN25,12/04/2023,992.02
82260234,Early Years Block,DSG Skills and Attainment,Free Nursery Education Commissioning - three & four  year olds,3rd Party Payments,Contracts - Child Care,REDACTED PERSONAL DATA,SN25,19/04/2023,"2,301.94"
82259233,Early Years Block,DSG Skills and Attainment,Free Nursery Education Commissioning - three & four  year olds,3rd Party Payments,Contracts - Child Care,REDACTED PERSONAL DATA,SN4 ,19/04/2023,"1,822.37"
81572256,Disabled Children,"Children, Families and Community Health Services",DCT Daytime Short Breaks,Transfer Payments,Personal Budget - Direct Payments - Other,REDACTED PERSONAL DATA,SN3 ,19/04/2023,"3,254.00"
82145233,Early Years Block,DSG Skills and Attainment,Free Nursery Education Commissioning - three & four  year olds,3rd Party Payments,Contracts - Child Care,REDACTED PERSONAL DATA,SN3 ,19/04/2023,719.36
81052233,Physical Support,Adults,Physical Support 18 - 64,Supplies and Services,Services,CARPET WAREHOUSE SWINDON LTD,SN2 ,14/04/2023,"1,150.00"
82096233,Responsive Repairs,Repairs,Responsive Repairs,3rd Party Payments,Contract Payments,CARPET WAREHOUSE SWINDON LTD,SN2 ,19/04/2023,791.50
82093233,Responsive Repairs,Repairs,Responsive Repairs,3rd Party Payments,Contract Payments,CARPET WAREHOUSE SWINDON LTD,SN2 ,19/04/2023,780.00
82088233,Responsive Repairs,Repairs,Responsive Repairs,3rd Party Payments,Contract Payments,CARPET WAREHOUSE SWINDON LTD,SN2 ,19/04/2023,580.00
82095233,Responsive Repairs,Repairs,Responsive Repairs,3rd Party Payments,Contract Payments,CARPET WAREHOUSE SWINDON LTD,SN2 ,19/04/2023,684.44
81250234,Responsive Repairs,Repairs,Responsive Repairs,3rd Party Payments,Contract Payments,CARPET WAREHOUSE SWINDON LTD,SN2 ,14/04/2023,965.57
83430240,Responsive Repairs,Repairs,Responsive Repairs,3rd Party Payments,Contract Payments,CARPET WAREHOUSE SWINDON LTD,SN2 ,26/04/2023,"1,186.65"
82090233,Responsive Repairs,Repairs,Responsive Repairs,3rd Party Payments,Contract Payments,CARPET WAREHOUSE SWINDON LTD,SN2 ,19/04/2023,866.24
82089233,Responsive Repairs,Repairs,Responsive Repairs,3rd Party Payments,Contract Payments,CARPET WAREHOUSE SWINDON LTD,SN2 ,19/04/2023,743.09
83430239,Responsive Repairs,Repairs,Responsive Repairs,3rd Party Payments,Contract Payments,CARPET WAREHOUSE SWINDON LTD,SN2 ,26/04/2023,942.39
82087233,Responsive Repairs,Repairs,Responsive Repairs,3rd Party Payments,Contract Payments,CARPET WAREHOUSE SWINDON LTD,SN2 ,19/04/2023,864.42
83330233,Responsive Repairs,Repairs,Responsive Repairs,3rd Party Payments,Contract Payments,CARPET WAREHOUSE SWINDON LTD,SN2 ,26/04/2023,793.79
82097233,Responsive Repairs,Repairs,Responsive Repairs,3rd Party Payments,Contract Payments,CARPET WAREHOUSE SWINDON LTD,SN2 ,19/04/2023,"1,348.10"
80090233,Responsive Repairs,Repairs,Responsive Repairs,3rd Party Payments,Contract Payments,CARPET WAREHOUSE SWINDON LTD,SN2 ,12/04/2023,614.25
82543237,Responsive Repairs,Repairs,Responsive Repairs,3rd Party Payments,Contract Payments,CARPET WAREHOUSE SWINDON LTD,SN2 ,21/04/2023,"1,370.65"
82094233,Responsive Repairs,Repairs,Responsive Repairs,3rd Party Payments,Contract Payments,CARPET WAREHOUSE SWINDON LTD,SN2 ,19/04/2023,928.44
82092233,Responsive Repairs,Repairs,Responsive Repairs,3rd Party Payments,Contract Payments,CARPET WAREHOUSE SWINDON LTD,SN2 ,19/04/2023,600.00
82091233,Responsive Repairs,Repairs,Responsive Repairs,3rd Party Payments,Contract Payments,CARPET WAREHOUSE SWINDON LTD,SN2 ,19/04/2023,"1,135.06"
81251234,Responsive Repairs,Repairs,Responsive Repairs,3rd Party Payments,Contract Payments,CARPET WAREHOUSE SWINDON LTD,SN2 ,14/04/2023,"2,058.33"
82649233,Traded Services,"Education, Inclusion and Skills",Plas Pencelli Outdoor Education Centre,Supplies and Services,Materials,CASTELL HOWELL FOODS LIMITED,SA14,24/04/2023,896.52
82649233,Traded Services,"Education, Inclusion and Skills",Plas Pencelli Outdoor Education Centre,Supplies and Services,Materials,CASTELL HOWELL FOODS LIMITED,SA14,24/04/2023,256.88
83499233,Treasury,Corporate Finance,Private Finance Initiatives (PFI),Supplies and Services,Services,CASTLE GATE LEGAL & COMMERCIAL LTD,NG12,26/04/2023,"2,000.00"
80546233,Treasury,Corporate Finance,Private Finance Initiatives (PFI),Supplies and Services,Services,CASTLE GATE LEGAL & COMMERCIAL LTD,NG12,12/04/2023,"2,018.88"
79608233,Treasury,Corporate Finance,Private Finance Initiatives (PFI),Supplies and Services,Services,CASTLE GATE LEGAL & COMMERCIAL LTD,NG12,05/04/2023,"2,000.00"
82506264,Learning Disabilities,Adults,Learning Disability 18 - 64,Income,Client Contribution - Supported Living,CATHEDRAL HOMES,GL1 ,21/04/2023,-414.20
82506264,Learning Disabilities,Adults,Learning Disability 18 - 64,3rd Party Payments,Supported Lodgings (Childrens)/Supported Living (Adults),CATHEDRAL HOMES,GL1 ,21/04/2023,"1,597.04"
82506264,Learning Disabilities,Adults,Learning Disability 18 - 64,Income,Client Contribution - Personal Budget - Fairer Charging,CATHEDRAL HOMES,GL1 ,21/04/2023,-164.80
82506264,Learning Disabilities,Adults,Learning Disability 18 - 64,3rd Party Payments,Supported Lodgings (Childrens)/Supported Living (Adults),CATHEDRAL HOMES,GL1 ,21/04/2023,"4,176.92"
82506264,Learning Disabilities,Adults,Learning Disability 18 - 64,3rd Party Payments,Supported Lodgings (Childrens)/Supported Living (Adults),CATHEDRAL HOMES,GL1 ,21/04/2023,"3,018.60"
82506264,Learning Disabilities,Adults,Learning Disability 18 - 64,3rd Party Payments,Supported Lodgings (Childrens)/Supported Living (Adults),CATHEDRAL HOMES,GL1 ,21/04/2023,631.80
82506264,Learning Disabilities,Adults,Learning Disability 18 - 64,3rd Party Payments,Supported Lodgings (Childrens)/Supported Living (Adults),CATHEDRAL HOMES,GL1 ,21/04/2023,"2,176.20"
82147233,Early Years Block,DSG Skills and Attainment,Free Nursery Education Commissioning - three & four  year olds,3rd Party Payments,Contracts - Child Care,REDACTED PERSONAL DATA,SN5 ,19/04/2023,573.16
81638233,Learning Disabilities,Adults,Learning Disability 18 - 64,3rd Party Payments,Supported Accommodation Scheme,REDACTED PERSONAL DATA,SN6 ,21/04/2023,"1,790.40"
81638233,Learning Disabilities,Adults,Learning Disability 18 - 64,3rd Party Payments,Supported Accommodation Scheme,REDACTED PERSONAL DATA,SN6 ,21/04/2023,"2,206.03"
79433233,Physical Support,Adults,Physical Support 65 and over,3rd Party Payments,Personal Budget - Domiciliary care,CELTIC CARE SERVICES LTD,SN15,03/04/2023,"1,439.20"
79432233,Mental Health,Adults,Mental Health 65 and over,3rd Party Payments,Personal Budget - Domiciliary care,CELTIC CARE SERVICES LTD,SN15,03/04/2023,575.68
79431234,Physical Support,Adults,Physical Support 65 and over,3rd Party Payments,Personal Budget - Domiciliary care,CELTIC CARE SERVICES LTD,SN15,03/04/2023,"2,590.56"
82263233,Early Years Block,DSG Skills and Attainment,Free Nursery Education Commissioning - two year olds,3rd Party Payments,Contracts - Child Care,CENTRAL PRE-SCHOOL,SN1 ,19/04/2023,"3,065.71"
82262233,Early Years Block,DSG Skills and Attainment,Free Nursery Education Commissioning - three & four  year olds,3rd Party Payments,Contracts - Child Care,CENTRAL PRE-SCHOOL,SN1 ,19/04/2023,"52,348.93"
82051233,Streetsmart,Streetsmart,Waterside Fleet Hires,Transport Costs,Vehicle Fuel,CERTAS ENERGY UK LTD,WA3 ,19/04/2023,"9,699.61"
83004233,Other Repairs,Repairs,Delivery Team & Overheads,Supplies and Services,Materials,CERTSURE LLP,LU5 ,26/04/2023,540.00
82125233,Void Repairs,Supervision & Management,Void Property Repairs,3rd Party Payments,Contract Payments,CHARLES HARDING ESTATE AGENTS LIMITED,SN1 ,19/04/2023,35.00
79681233,Void Repairs,Supervision & Management,Void Property Repairs,3rd Party Payments,Contract Payments,CHARLES HARDING ESTATE AGENTS LIMITED,SN1 ,05/04/2023,35.00
82566233,Void Repairs,Supervision & Management,Void Property Repairs,3rd Party Payments,Contract Payments,CHARLES HARDING ESTATE AGENTS LIMITED,SN1 ,21/04/2023,35.00
79599233,Lydiard Park,Culture & Heritage,Lydiard : Forest Caf�,Supplies and Services,Food,CHARLES SAUNDERS LTD,BS37,05/04/2023,202.35
79599233,Lydiard Park,Culture & Heritage,Lydiard : Forest Caf�,Supplies and Services,Confectionary,CHARLES SAUNDERS LTD,BS37,05/04/2023,605.62
82342233,Early Years Block,DSG Skills and Attainment,Free Nursery Education Commissioning - two year olds,3rd Party Payments,Contracts - Child Care,CHEEKY CHIMPS,SN2 ,19/04/2023,"8,622.32"
82341233,Early Years Block,DSG Skills and Attainment,Free Nursery Education Commissioning - three & four  year olds,3rd Party Payments,Contracts - Child Care,CHEEKY CHIMPS,SN2 ,19/04/2023,"42,359.51"
82244233,Early Years Block,DSG Skills and Attainment,Free Nursery Education Commissioning - three & four  year olds,3rd Party Payments,Contracts - Child Care,CHILD BASE NURSERIES,MK16,19/04/2023,"15,871.46"
79864233,Responsive Repairs,Repairs,Responsive Repairs,3rd Party Payments,Contract Payments,CHILD SCAFFOLDING LTD,SN1 ,05/04/2023,840.00
79863233,Responsive Repairs,Repairs,Responsive Repairs,3rd Party Payments,Contract Payments,CHILD SCAFFOLDING LTD,SN1 ,05/04/2023,"1,320.00"
81203233,Responsive Repairs,Repairs,Responsive Repairs,3rd Party Payments,Contract Payments,CHILD SCAFFOLDING LTD,SN1 ,14/04/2023,660.00
81205233,Responsive Repairs,Repairs,Responsive Repairs,3rd Party Payments,Contract Payments,CHILD SCAFFOLDING LTD,SN1 ,14/04/2023,660.00
81206233,Responsive Repairs,Repairs,Responsive Repairs,3rd Party Payments,Contract Payments,CHILD SCAFFOLDING LTD,SN1 ,14/04/2023,880.00
82566237,Responsive Repairs,Repairs,Responsive Repairs,3rd Party Payments,Contract Payments,CHILD SCAFFOLDING LTD,SN1 ,21/04/2023,780.00
81200233,Responsive Repairs,Repairs,Responsive Repairs,3rd Party Payments,Contract Payments,CHILD SCAFFOLDING LTD,SN1 ,14/04/2023,560.00
81202233,Responsive Repairs,Repairs,Responsive Repairs,3rd Party Payments,Contract Payments,CHILD SCAFFOLDING LTD,SN1 ,14/04/2023,520.00
81207233,Responsive Repairs,Repairs,Responsive Repairs,3rd Party Payments,Contract Payments,CHILD SCAFFOLDING LTD,SN1 ,14/04/2023,720.00
81197233,Responsive Repairs,Repairs,Responsive Repairs,3rd Party Payments,Contract Payments,CHILD SCAFFOLDING LTD,SN1 ,14/04/2023,860.00
81201233,Responsive Repairs,Repairs,Responsive Repairs,3rd Party Payments,Contract Payments,CHILD SCAFFOLDING LTD,SN1 ,14/04/2023,480.00
83102233,Responsive Repairs,Repairs,Responsive Repairs,3rd Party Payments,Contract Payments,CHILD SCAFFOLDING LTD,SN1 ,26/04/2023,480.00
83100233,Responsive Repairs,Repairs,Responsive Repairs,3rd Party Payments,Contract Payments,CHILD SCAFFOLDING LTD,SN1 ,26/04/2023,720.00
83101233,Responsive Repairs,Repairs,Responsive Repairs,3rd Party Payments,Contract Payments,CHILD SCAFFOLDING LTD,SN1 ,26/04/2023,480.00
81199233,Responsive Repairs,Repairs,Responsive Repairs,3rd Party Payments,Contract Payments,CHILD SCAFFOLDING LTD,SN1 ,14/04/2023,840.00
83097233,Responsive Repairs,Repairs,Responsive Repairs,3rd Party Payments,Contract Payments,CHILD SCAFFOLDING LTD,SN1 ,26/04/2023,440.00
82566239,Responsive Repairs,Repairs,Responsive Repairs,3rd Party Payments,Contract Payments,CHILD SCAFFOLDING LTD,SN1 ,21/04/2023,"1,950.00"
83098233,Responsive Repairs,Repairs,Responsive Repairs,3rd Party Payments,Contract Payments,CHILD SCAFFOLDING LTD,SN1 ,26/04/2023,440.00
81272233,Responsive Repairs,Repairs,Responsive Repairs,3rd Party Payments,Contract Payments,CHILD SCAFFOLDING LTD,SN1 ,14/04/2023,985.00
82545262,Social Care,"Children, Families and Community Health Services",Unaccompanied Asylum Seeking Children (UASC),3rd Party Payments,Independent Fostering Agency Placements,REDACTED PERSONAL DATA,B60 ,21/04/2023,"3,393.00"
80547233,Parking & Bus lanes,Highway Operations and Car Parking,Car Parking,Supplies and Services,Fees,CHIPSIDE LTD,SN15,12/04/2023,958.44
81873233,Parking & Bus lanes,Highway Operations and Car Parking,Street Parking,Supplies and Services,Materials,CHIPSIDE LTD,SN15,19/04/2023,636.12
81873233,Parking & Bus lanes,Highway Operations and Car Parking,Bus Lane Enforcement,Supplies and Services,Materials,CHIPSIDE LTD,SN15,19/04/2023,"2,037.18"
81873233,Parking & Bus lanes,Highway Operations and Car Parking,Street Parking,Supplies and Services,Materials,CHIPSIDE LTD,SN15,19/04/2023,514.50
81873233,Parking & Bus lanes,Highway Operations and Car Parking,Bus Lane Enforcement,Supplies and Services,Materials,CHIPSIDE LTD,SN15,19/04/2023,422.10
82382233,Early Years Block,DSG Skills and Attainment,Free Nursery Education Commissioning - three & four  year olds,3rd Party Payments,Contracts - Child Care,CHISELDON PRIMARY SCHOOL,SN4 ,19/04/2023,"4,028.39"
82383233,Early Years Block,DSG Skills and Attainment,Free Nursery Education Commissioning - two year olds,3rd Party Payments,Contracts - Child Care,CHISELDON PRIMARY SCHOOL,SN4 ,19/04/2023,862.23
79842233,Schools - Primary,DSG Skills and Attainment,Primary School Budgets,3rd Party Payments,Mainstream Delegated Funding,CHISELDON PRIMARY SCHOOL,SN4 ,05/04/2023,"74,503.25"
81647243,Schools - Primary,DSG Skills and Attainment,Primary School Budgets,3rd Party Payments,Mainstream Delegated Funding,CHISELDON PRIMARY SCHOOL,SN4 ,19/04/2023,"71,288.00"
81648241,DSG Other Funding,DSG Skills and Attainment,DFE Additional Grants,3rd Party Payments,Payment of Pupil Premium to school,CHISELDON PRIMARY SCHOOL,SN4 ,19/04/2023,"5,632.00"
82506279,Learning Disabilities,Adults,Learning Disability 65 and over,Income,Client Contribution - Residential,CHOSEN CARE LTD,GL3 ,21/04/2023,930.34
82506279,Learning Disabilities,Adults,Learning Disability 65 and over,Income,Client Contribution - Residential,CHOSEN CARE LTD,GL3 ,21/04/2023,-528.74
82506279,Learning Disabilities,Adults,Learning Disability 65 and over,Income,Client Contribution - Residential,CHOSEN CARE LTD,GL3 ,21/04/2023,-779.20
82506279,Learning Disabilities,Adults,Learning Disability 65 and over,3rd Party Payments,Residential Care,CHOSEN CARE LTD,GL3 ,21/04/2023,"6,254.74"
82506279,Learning Disabilities,Adults,Learning Disability 65 and over,3rd Party Payments,Residential Care,CHOSEN CARE LTD,GL3 ,21/04/2023,"7,297.20"
82506279,Learning Disabilities,Adults,Learning Disability 65 and over,Income,Client Contribution - Residential,CHOSEN CARE LTD,GL3 ,21/04/2023,-596.74
82506279,Learning Disabilities,Adults,Learning Disability 18 - 64,3rd Party Payments,Residential Care,CHOSEN CARE LTD,GL3 ,21/04/2023,"7,145.08"
82506279,Learning Disabilities,Adults,Learning Disability 65 and over,3rd Party Payments,Residential Care,CHOSEN CARE LTD,GL3 ,21/04/2023,"4,951.67"
82506279,Learning Disabilities,Adults,Learning Disability 18 - 64,3rd Party Payments,Residential Care,CHOSEN CARE LTD,GL3 ,21/04/2023,"7,137.76"
82506279,Learning Disabilities,Adults,Learning Disability 18 - 64,Income,Client Contribution - Residential,CHOSEN CARE LTD,GL3 ,21/04/2023,-359.00
82506279,Learning Disabilities,Adults,Learning Disability 65 and over,3rd Party Payments,Residential Care,CHOSEN CARE LTD,GL3 ,21/04/2023,"-11,206.41"
82506279,Learning Disabilities,Adults,Learning Disability 18 - 64,Income,Client Contribution - Residential,CHOSEN CARE LTD,GL3 ,21/04/2023,-319.00
82506279,Learning Disabilities,Adults,Learning Disability 18 - 64,3rd Party Payments,Residential Care,CHOSEN CARE LTD,GL3 ,21/04/2023,"-8,406.87"
80396233,Town Centre,"Economy, Growth and Place",Heritage Action Zone (HAZ),Supplies and Services,Publicity,CHRIS BLANDFORD ASSOCIATES LIMITED,NG1 ,12/04/2023,"8,290.50"
82628237,Care Management & Safeguarding,Adults,Mental Capacity & DOL,3rd Party Payments,Contracts - Social Care,CHRIS HORNE BIA/AMHP LIMITED,OX18,24/04/2023,537.80
79976306,Social Care,"Children, Families and Community Health Services",Placement Adoption Service,3rd Party Payments,Adoption Allowances,REDACTED PERSONAL DATA,SN6 ,05/04/2023,"1,055.64"
79976305,Social Care,"Children, Families and Community Health Services",Placement Adoption Service,3rd Party Payments,Adoption Allowances,REDACTED PERSONAL DATA,SN6 ,05/04/2023,699.84
82741236,Social Care,"Children, Families and Community Health Services",Placement Adoption Service,3rd Party Payments,Adoption Allowances,REDACTED PERSONAL DATA,SN6 ,24/04/2023,699.84
82742233,Social Care,"Children, Families and Community Health Services",Placement Adoption Service,3rd Party Payments,Adoption Allowances,REDACTED PERSONAL DATA,SN6 ,24/04/2023,"1,055.64"
81541235,Social Care,"Children, Families and Community Health Services",Children's Resource and Home Finding Team,3rd Party Payments,Independent Fostering Agency Placements,CHRYSALISCARE LTD,DA7 ,19/04/2023,"5,311.88"
81541236,Social Care,"Children, Families and Community Health Services",Children's Resource and Home Finding Team,3rd Party Payments,Independent Fostering Agency Placements,CHRYSALISCARE LTD,DA7 ,19/04/2023,"5,881.01"
81541233,Social Care,"Children, Families and Community Health Services",Children's Resource and Home Finding Team,3rd Party Payments,Independent Fostering Agency Placements,CHRYSALISCARE LTD,DA7 ,19/04/2023,"5,951.96"
81541234,Social Care,"Children, Families and Community Health Services",Children's Resource and Home Finding Team,3rd Party Payments,Independent Fostering Agency Placements,CHRYSALISCARE LTD,DA7 ,19/04/2023,"6,589.67"
83236233,Other Repairs,Repairs,Asbestos Services,Premises Costs,Permanent Fixtures and Fittings,CHUBB FIRE & SECURITY T/A CHUBB COMMUNITY CARE,BB1 ,26/04/2023,"37,972.29"
80088233,Planned Maintenance Programme,HRA Capital Financing,Contingent Major Repairs,Capital,Contractor Payments,CHUBB FIRE & SECURITY T/A CHUBB COMMUNITY CARE,BB1 ,12/04/2023,"16,258.22"
82506314,Physical Support,Adults,Physical Support 65 and over,Income,Client Contribution - Nursing,CHURCH VIEW,SN3 ,21/04/2023,-610.00
82506314,Physical Support,Adults,Physical Support 65 and over,Income,Client Contribution - Nursing,CHURCH VIEW,SN3 ,21/04/2023,-802.88
82506314,Physical Support,Adults,Physical Support 65 and over,3rd Party Payments,Nursing Care,CHURCH VIEW,SN3 ,21/04/2023,"6,692.68"
82506314,Physical Support,Adults,Physical Support 65 and over,3rd Party Payments,Nursing Care,CHURCH VIEW,SN3 ,21/04/2023,"-2,478.10"
82506314,Physical Support,Adults,Physical Support 65 and over,Income,Client Contribution - Nursing,CHURCH VIEW,SN3 ,21/04/2023,-304.90
82506314,Physical Support,Adults,Physical Support 65 and over,3rd Party Payments,Nursing Care,CHURCH VIEW,SN3 ,21/04/2023,"5,235.68"
82506314,Physical Support,Adults,Physical Support 65 and over,Income,Client Contribution - Nursing,CHURCH VIEW,SN3 ,21/04/2023,"-1,288.96"
82506314,Physical Support,Adults,Physical Support 65 and over,Income,Client Contribution - Nursing,CHURCH VIEW,SN3 ,21/04/2023,-606.52
82506314,Physical Support,Adults,Physical Support 65 and over,Income,Client Contribution - Nursing,CHURCH VIEW,SN3 ,21/04/2023,773.98
82506314,Physical Support,Adults,Physical Support 65 and over,Income,Client Contribution - Nursing,CHURCH VIEW,SN3 ,21/04/2023,"-1,222.47"
82506314,Physical Support,Adults,Physical Support 65 and over,Income,Client Contribution - Nursing,CHURCH VIEW,SN3 ,21/04/2023,"1,771.29"
82506314,Physical Support,Adults,Physical Support 65 and over,3rd Party Payments,Nursing Care,CHURCH VIEW,SN3 ,21/04/2023,"2,668.72"
82506314,Physical Support,Adults,Physical Support 65 and over,Income,Client Contribution - Nursing,CHURCH VIEW,SN3 ,21/04/2023,426.01
82506314,Physical Support,Adults,Physical Support 18 - 64,3rd Party Payments,Nursing Care,CHURCH VIEW,SN3 ,21/04/2023,"2,668.72"
82506314,Physical Support,Adults,Physical Support 18 - 64,Income,Client Contribution - Nursing,CHURCH VIEW,SN3 ,21/04/2023,-552.52
82506314,Physical Support,Adults,Physical Support 65 and over,3rd Party Payments,Nursing Care,CHURCH VIEW,SN3 ,21/04/2023,"-2,834.42"
82506314,Physical Support,Adults,Physical Support 65 and over,3rd Party Payments,Nursing Care,CHURCH VIEW,SN3 ,21/04/2023,"-1,737.22"
82506314,Physical Support,Adults,Physical Support 65 and over,Income,Client Contribution - Nursing,CHURCH VIEW,SN3 ,21/04/2023,-979.88
82506314,Physical Support,Adults,Physical Support 65 and over,Income,Client Contribution - Nursing,CHURCH VIEW,SN3 ,21/04/2023,-930.44
82506314,Physical Support,Adults,Physical Support 65 and over,Income,Client Contribution - Nursing,CHURCH VIEW,SN3 ,21/04/2023,-763.24
82506314,Physical Support,Adults,Physical Support 65 and over,Income,Client Contribution - Nursing,CHURCH VIEW,SN3 ,21/04/2023,-741.88
82506314,Physical Support,Adults,Physical Support 65 and over,Income,Client Contribution - Nursing,CHURCH VIEW,SN3 ,21/04/2023,139.27
82506314,Physical Support,Adults,Physical Support 65 and over,Income,Client Contribution - Nursing,CHURCH VIEW,SN3 ,21/04/2023,627.80
82506314,Physical Support,Adults,Physical Support 65 and over,3rd Party Payments,Nursing Care,CHURCH VIEW,SN3 ,21/04/2023,"4,200.00"
82506314,Physical Support,Adults,Physical Support 65 and over,Income,Client Contribution - Nursing,CHURCH VIEW,SN3 ,21/04/2023,-984.92
82506314,Physical Support,Adults,Physical Support 65 and over,Income,Client Contribution - Nursing,CHURCH VIEW,SN3 ,21/04/2023,-668.44
82506314,Physical Support,Adults,Physical Support 65 and over,Income,Client Contribution - Nursing,CHURCH VIEW,SN3 ,21/04/2023,30.95
82506314,Physical Support,Adults,Physical Support 65 and over,3rd Party Payments,Nursing Care,CHURCH VIEW,SN3 ,21/04/2023,"5,800.00"
82506314,Physical Support,Adults,Physical Support 65 and over,Income,Client Contribution - Nursing,CHURCH VIEW,SN3 ,21/04/2023,-800.96
82506314,Physical Support,Adults,Physical Support 65 and over,Income,Client Contribution - Nursing,CHURCH VIEW,SN3 ,21/04/2023,304.90
82506314,Physical Support,Adults,Physical Support 65 and over,Income,Client Contribution - Nursing,CHURCH VIEW,SN3 ,21/04/2023,59.54
82506314,Physical Support,Adults,Physical Support 65 and over,3rd Party Payments,Nursing Care,CHURCH VIEW,SN3 ,21/04/2023,"2,560.12"
82506314,Physical Support,Adults,Physical Support 65 and over,3rd Party Payments,Nursing Care,CHURCH VIEW,SN3 ,21/04/2023,"4,063.41"
82506314,Physical Support,Adults,Physical Support 65 and over,3rd Party Payments,Nursing Care,CHURCH VIEW,SN3 ,21/04/2023,-822.90
82506314,Physical Support,Adults,Physical Support 65 and over,Income,Client Contribution - Nursing,CHURCH VIEW,SN3 ,21/04/2023,-999.64
82506314,Physical Support,Adults,Physical Support 65 and over,Income,Client Contribution - Nursing,CHURCH VIEW,SN3 ,21/04/2023,-620.28
82506314,Physical Support,Adults,Physical Support 65 and over,Income,Client Contribution - Nursing,CHURCH VIEW,SN3 ,21/04/2023,-535.88
82506314,Physical Support,Adults,Physical Support 65 and over,Income,Client Contribution - Nursing,CHURCH VIEW,SN3 ,21/04/2023,-477.36
82506339,Learning Disabilities,Adults,Learning Disability 18 - 64,Income,Client Contribution - Residential,CIDERSTONE HOUSE,SN25,21/04/2023,-425.60
82506339,Learning Disabilities,Adults,Learning Disability 18 - 64,Income,Client Contribution - Residential,CIDERSTONE HOUSE,SN25,21/04/2023,-423.00
82506339,Learning Disabilities,Adults,Learning Disability 18 - 64,3rd Party Payments,Residential Care,CIDERSTONE HOUSE,SN25,21/04/2023,"16,225.85"
82506339,Learning Disabilities,Adults,Learning Disability 18 - 64,3rd Party Payments,Residential Care,CIDERSTONE HOUSE,SN25,21/04/2023,"10,520.00"
82506339,Learning Disabilities,Adults,Learning Disability 18 - 64,3rd Party Payments,Residential Care,CIDERSTONE HOUSE,SN25,21/04/2023,"13,532.11"
82506339,Learning Disabilities,Adults,Learning Disability 18 - 64,3rd Party Payments,Residential Care,CIDERSTONE HOUSE,SN25,21/04/2023,"10,860.00"
82506339,Learning Disabilities,Adults,Learning Disability 18 - 64,3rd Party Payments,Residential Care,CIDERSTONE HOUSE,SN25,21/04/2023,"7,039.19"
82506339,Learning Disabilities,Adults,Learning Disability 18 - 64,Income,Client Contribution - Residential,CIDERSTONE HOUSE,SN25,21/04/2023,-414.20
82506339,Learning Disabilities,Adults,Learning Disability 18 - 64,Income,Client Contribution - Residential,CIDERSTONE HOUSE,SN25,21/04/2023,-438.80
82506339,Learning Disabilities,Adults,Learning Disability 18 - 64,Income,Client Contribution - Residential,CIDERSTONE HOUSE,SN25,21/04/2023,-677.60
82506339,Learning Disabilities,Adults,Learning Disability 18 - 64,3rd Party Payments,Residential Care,CIDERSTONE HOUSE,SN25,21/04/2023,"-2,658.36"
82506339,Learning Disabilities,Adults,Learning Disability 18 - 64,3rd Party Payments,Residential Care,CIDERSTONE HOUSE,SN25,21/04/2023,"5,112.37"
81640233,Digital & Business Change,Digital & Business Change,IT Operations,Supplies and Services,License Costs,CIRCLE I T SOLUTIONS LIMITED,CF23,19/04/2023,"35,807.20"
80991233,High Needs Block,DSG Skills and Attainment,Post 16 - New Responsibilties,3rd Party Payments,FE Colleges,CIRENCESTER COLLEGE,GL7 ,14/04/2023,"3,255.08"
80987233,High Needs Block,DSG Skills and Attainment,Out of Borough School Fees,3rd Party Payments,Other Local Authority Mainstream Schools- Pre 16,CIRENCESTER KINGSHILL SCHOOL,GL7 ,14/04/2023,609.58
80986233,High Needs Block,DSG Skills and Attainment,Out of Borough School Fees,3rd Party Payments,Other Local Authority Mainstream Schools- Pre 16,CIRENCESTER KINGSHILL SCHOOL,GL7 ,14/04/2023,609.58
82544243,Homelessness and Travellers,Housing Services,Leased Private Managed Accommodation,Transfer Payments,Payment of Costs,REDACTED PERSONAL DATA,SN5 ,24/04/2023,575.00
81605233,Public Protection,Public Health,Healthy Neighbourhoods,Supplies and Services,Equipment,CIRRUS RESEARCH PLC,YO14,19/04/2023,"1,242.00"
81726233,Libraries,"Education, Inclusion and Skills",Library Delivery,Supplies and Services,Services,CIVICA UK LTD,DY1 ,19/04/2023,"4,400.00"
83033233,Digital & Business Change,Digital & Business Change,IT Systems,Supplies and Services,Services,CIVICA UK LTD,SE1 ,26/04/2023,"1,250.00"
79998233,Planning & Regulatory,Strategic Planning,Economy & Development Management,Employees,Temporary / Agency - by Accounts Payable,REDACTED PERSONAL DATA,BS37,05/04/2023,"11,001.60"
82265235,Early Years Block,DSG Skills and Attainment,Free Nursery Education Commissioning - three & four  year olds,3rd Party Payments,Contracts - Child Care,REDACTED PERSONAL DATA,SN6 ,19/04/2023,"3,837.89"
82148233,Early Years Block,DSG Skills and Attainment,Free Nursery Education Commissioning - three & four  year olds,3rd Party Payments,Contracts - Child Care,REDACTED PERSONAL DATA,SN2 ,19/04/2023,523.92
81627234,Care Management & Safeguarding,Adults,Swindon Safeguarding Partnershiph,Supplies and Services,Fees,CLARK WARD ASSOCIATES LTD,SN1 ,19/04/2023,580.00
80545233,"Volutary Sector, Equipment and Carers",Adults,Carers Short Term Breaks - Adults,3rd Party Payments,Carers,REDACTED PERSONAL DATA,SN25,12/04/2023,500.00
81247233,Highways Schemes,Strategic Planning and Highways,"Rapid Transit - QBC Wichelstowe, North and UTMC",Capital,Contractor Payments,CLEAR CHANNEL UK LTD,GU22,17/04/2023,"1,527.91"
80420233,Elections & Democracy,Elections and Democracy,Local Elections,Premises Costs,Rents,CLIFTON ST PRE-SCHOOL,SN1 ,12/04/2023,500.00
82265238,Early Years Block,DSG Skills and Attainment,Free Nursery Education Commissioning - three & four  year olds,3rd Party Payments,Contracts - Child Care,CLIFTON ST PRE-SCHOOL,SN1 ,19/04/2023,"24,026.46"
82506306,Physical Support,Adults,Physical Support 65 and over,Income,Client Contribution - Residential,COATE WATER CARE CO LTD,SN3 ,21/04/2023,-516.37
82506306,Physical Support,Adults,Physical Support 65 and over,Income,Client Contribution - Residential,COATE WATER CARE CO LTD,SN3 ,21/04/2023,-662.44
82506306,Physical Support,Adults,Physical Support 65 and over,Income,Client Contribution - Residential,COATE WATER CARE CO LTD,SN3 ,21/04/2023,722.23
82506306,Physical Support,Adults,Physical Support 65 and over,Income,Client Contribution - Residential,COATE WATER CARE CO LTD,SN3 ,21/04/2023,-506.20
82506306,Physical Support,Adults,Physical Support 65 and over,Income,Client Contribution - Residential,COATE WATER CARE CO LTD,SN3 ,21/04/2023,"-2,422.71"
82506306,Physical Support,Adults,Physical Support 65 and over,Income,Client Contribution - Residential,COATE WATER CARE CO LTD,SN3 ,21/04/2023,"-14,399.10"
82506306,Physical Support,Adults,Physical Support 65 and over,Income,Client Contribution - Residential,COATE WATER CARE CO LTD,SN3 ,21/04/2023,"-1,091.33"
82506306,Physical Support,Adults,Physical Support 65 and over,Income,Client Contribution - Residential,COATE WATER CARE CO LTD,SN3 ,21/04/2023,-901.60
82506306,Physical Support,Adults,Physical Support 65 and over,Income,Client Contribution - Residential,COATE WATER CARE CO LTD,SN3 ,21/04/2023,-981.00
82506306,Physical Support,Adults,Physical Support 65 and over,Income,Client Contribution - Residential,COATE WATER CARE CO LTD,SN3 ,21/04/2023,"-1,395.32"
82506306,Physical Support,Adults,Physical Support 65 and over,Income,Client Contribution - Residential,COATE WATER CARE CO LTD,SN3 ,21/04/2023,-955.48
82506306,Physical Support,Adults,Physical Support 65 and over,3rd Party Payments,Residential Care,COATE WATER CARE CO LTD,SN3 ,21/04/2023,"-2,742.99"
82506306,Physical Support,Adults,Physical Support 65 and over,3rd Party Payments,Residential Care,COATE WATER CARE CO LTD,SN3 ,21/04/2023,"-1,645.79"
82506306,Physical Support,Adults,Physical Support 65 and over,3rd Party Payments,Residential Care,COATE WATER CARE CO LTD,SN3 ,21/04/2023,"-1,737.22"
82506306,Physical Support,Adults,Physical Support 65 and over,3rd Party Payments,Residential Care,COATE WATER CARE CO LTD,SN3 ,21/04/2023,"2,668.72"
82506306,Physical Support,Adults,Physical Support 65 and over,3rd Party Payments,Residential Care,COATE WATER CARE CO LTD,SN3 ,21/04/2023,"54,000.00"
82506306,Physical Support,Adults,Physical Support 18 - 64,3rd Party Payments,Residential Care,COATE WATER CARE CO LTD,SN3 ,21/04/2023,"2,560.12"
82506306,Physical Support,Adults,Physical Support 18 - 64,Income,Client Contribution - Residential,COATE WATER CARE CO LTD,SN3 ,21/04/2023,-359.00
81399233,Physical Support,Adults,Physical Support 65 and over,3rd Party Payments,Personal Budget - Respite Care,COATE WATER CARE CO LTD,SN3 ,17/04/2023,"1,002.26"
82506306,Physical Support,Adults,Physical Support 65 and over,Income,Client Contribution - Residential,COATE WATER CARE CO LTD,SN3 ,21/04/2023,392.40
82506306,Physical Support,Adults,Physical Support 65 and over,Income,Client Contribution - Residential,COATE WATER CARE CO LTD,SN3 ,21/04/2023,990.88
82506306,Physical Support,Adults,Physical Support 65 and over,Income,Client Contribution - Residential,COATE WATER CARE CO LTD,SN3 ,21/04/2023,-45.71
82506306,Physical Support,Adults,Physical Support 65 and over,Income,Client Contribution - Residential,COATE WATER CARE CO LTD,SN3 ,21/04/2023,-713.24
82506306,Mental Health,Adults,Mental Health 65 and over,3rd Party Payments,Residential Care,COATE WATER CARE CO LTD,SN3 ,21/04/2023,"2,560.12"
82506306,Physical Support,Adults,Physical Support 65 and over,Income,Client Contribution - Residential,COATE WATER CARE CO LTD,SN3 ,21/04/2023,495.22
82506306,Physical Support,Adults,Physical Support 65 and over,Income,Client Contribution - Residential,COATE WATER CARE CO LTD,SN3 ,21/04/2023,"1,031.39"
82506306,Physical Support,Adults,Physical Support 65 and over,Income,Client Contribution - Residential,COATE WATER CARE CO LTD,SN3 ,21/04/2023,-495.22
82506306,Physical Support,Adults,Physical Support 65 and over,Income,Client Contribution - Residential,COATE WATER CARE CO LTD,SN3 ,21/04/2023,"1,008.96"
82506306,Physical Support,Adults,Physical Support 65 and over,Income,Client Contribution - Residential,COATE WATER CARE CO LTD,SN3 ,21/04/2023,"-1,434.76"
82506306,Physical Support,Adults,Physical Support 65 and over,Income,Client Contribution - Residential,COATE WATER CARE CO LTD,SN3 ,21/04/2023,"-1,328.68"
82506306,Physical Support,Adults,Physical Support 65 and over,Income,Client Contribution - Residential,COATE WATER CARE CO LTD,SN3 ,21/04/2023,-954.00
82506306,Physical Support,Adults,Physical Support 65 and over,Income,Client Contribution - Residential,COATE WATER CARE CO LTD,SN3 ,21/04/2023,-732.00
82506306,Physical Support,Adults,Physical Support 65 and over,3rd Party Payments,Residential Care,COATE WATER CARE CO LTD,SN3 ,21/04/2023,95.31
82506306,Mental Health,Adults,Mental Health 65 and over,3rd Party Payments,Residential Care,COATE WATER CARE CO LTD,SN3 ,21/04/2023,"2,800.00"
81397233,Physical Support,Adults,Physical Support 65 and over,3rd Party Payments,Personal Budget - Respite Care,COATE WATER CARE CO LTD,SN3 ,17/04/2023,561.22
81398233,Physical Support,Adults,Physical Support 65 and over,3rd Party Payments,Personal Budget - Respite Care,COATE WATER CARE CO LTD,SN3 ,17/04/2023,501.13
82506306,Physical Support,Adults,Physical Support 65 and over,Income,Client Contribution - Residential,COATE WATER CARE CO LTD,SN3 ,21/04/2023,426.01
82506306,Physical Support,Adults,Physical Support 65 and over,Income,Client Contribution - Residential,COATE WATER CARE CO LTD,SN3 ,21/04/2023,868.52
82506306,Physical Support,Adults,Physical Support 65 and over,Income,Client Contribution - Residential,COATE WATER CARE CO LTD,SN3 ,21/04/2023,-747.49
82506306,Physical Support,Adults,Physical Support 65 and over,Income,Client Contribution - Residential,COATE WATER CARE CO LTD,SN3 ,21/04/2023,154.66
82506306,Physical Support,Adults,Physical Support 65 and over,Income,Client Contribution - Residential,COATE WATER CARE CO LTD,SN3 ,21/04/2023,-760.96
82506306,Physical Support,Adults,Physical Support 65 and over,Income,Client Contribution - Residential,COATE WATER CARE CO LTD,SN3 ,21/04/2023,-597.40
82506306,Physical Support,Adults,Physical Support 65 and over,Income,Client Contribution - Residential,COATE WATER CARE CO LTD,SN3 ,21/04/2023,471.25
82506306,Physical Support,Adults,Physical Support 65 and over,Income,Client Contribution - Residential,COATE WATER CARE CO LTD,SN3 ,21/04/2023,-727.20
82506306,Physical Support,Adults,Physical Support 65 and over,3rd Party Payments,Residential Care,COATE WATER CARE CO LTD,SN3 ,21/04/2023,"2,560.12"
82506306,Physical Support,Adults,Physical Support 65 and over,3rd Party Payments,Residential Care,COATE WATER CARE CO LTD,SN3 ,21/04/2023,"3,328.00"
82506306,Physical Support,Adults,Physical Support 65 and over,3rd Party Payments,Residential Care,COATE WATER CARE CO LTD,SN3 ,21/04/2023,"5,051.51"
82506306,Care Management & Safeguarding,Adults,Intermediate Care Team,3rd Party Payments,Residential Care,COATE WATER CARE CO LTD,SN3 ,21/04/2023,"2,560.12"
82506306,Mental Health,Adults,Mental Health 65 and over,3rd Party Payments,Residential Care,COATE WATER CARE CO LTD,SN3 ,21/04/2023,344.00
82506306,Mental Health,Adults,Mental Health 65 and over,3rd Party Payments,Residential Care,COATE WATER CARE CO LTD,SN3 ,21/04/2023,"3,474.45"
82506306,Physical Support,Adults,Physical Support 65 and over,Income,Client Contribution - Residential,COATE WATER CARE CO LTD,SN3 ,21/04/2023,"-2,214.83"
82506306,Physical Support,Adults,Physical Support 65 and over,Income,Client Contribution - Residential,COATE WATER CARE CO LTD,SN3 ,21/04/2023,617.86
82506306,Physical Support,Adults,Physical Support 65 and over,Income,Client Contribution - Residential,COATE WATER CARE CO LTD,SN3 ,21/04/2023,-163.91
82506306,Physical Support,Adults,Physical Support 65 and over,Income,Client Contribution - Residential,COATE WATER CARE CO LTD,SN3 ,21/04/2023,-917.88
82506306,Physical Support,Adults,Physical Support 65 and over,Income,Client Contribution - Residential,COATE WATER CARE CO LTD,SN3 ,21/04/2023,-897.48
82506306,Physical Support,Adults,Physical Support 65 and over,Income,Client Contribution - Residential,COATE WATER CARE CO LTD,SN3 ,21/04/2023,-510.92
82506306,Physical Support,Adults,Physical Support 65 and over,Income,Client Contribution - Residential,COATE WATER CARE CO LTD,SN3 ,21/04/2023,-539.40
82506262,Learning Disabilities,Adults,Learning Disability 18 - 64,Income,Client Contribution - Residential,COCKLEBURY FARMHOUSE,SN15,21/04/2023,-425.60
82506262,Learning Disabilities,Adults,Learning Disability 18 - 64,3rd Party Payments,Residential Care,COCKLEBURY FARMHOUSE,SN15,21/04/2023,"-21,904.00"
82506262,Learning Disabilities,Adults,Learning Disability 18 - 64,3rd Party Payments,Residential Care,COCKLEBURY FARMHOUSE,SN15,21/04/2023,"10,364.00"
82506262,Learning Disabilities,Adults,Learning Disability 18 - 64,3rd Party Payments,Residential Care,COCKLEBURY FARMHOUSE,SN15,21/04/2023,"27,390.57"
80018233,Highways Inspections & Maintenance,Highway Operations and Car Parking,Highway Maintenance,Supplies and Services,Materials,COLAS LTD,B37 ,05/04/2023,"1,260.00"
81370233,Town Centre,"Economy, Growth and Place",Fleming Way Improvement Scheme,Capital,Contractor Payments,COLAS LTD,B37 ,17/04/2023,"373,613.56"
82266233,Early Years Block,DSG Skills and Attainment,Free Nursery Education Commissioning - three & four  year olds,3rd Party Payments,Contracts - Child Care,COLEVIEW PRE-SCHOOL,SN3 ,19/04/2023,"26,807.96"
80285233,Disabled Children,"Children, Families and Community Health Services",DCT Daytime Short Breaks,3rd Party Payments,Respite Care,COLLABORATIVE CARE SERVICES LTD,SN2 ,12/04/2023,"28,800.00"
80264233,Legal Services,Legal Services,Legal Services,Employees,Training,COLLEGE OF LAW SERVICES LTD (THE UNIVERSITY OF LAW),EC1Y,12/04/2023,"1,490.00"
82506251,Learning Disabilities,Adults,Learning Disability 18 - 64,3rd Party Payments,Supported Lodgings (Childrens)/Supported Living (Adults),COMMUNITY ACCESS NETWORK LTD,SN25,21/04/2023,"1,215.16"
82506251,Learning Disabilities,Adults,Learning Disability 18 - 64,3rd Party Payments,Supported Lodgings (Childrens)/Supported Living (Adults),COMMUNITY ACCESS NETWORK LTD,SN25,21/04/2023,500.36
82506250,Learning Disabilities,Adults,Learning Disability 65 and over,3rd Party Payments,Supported Lodgings (Childrens)/Supported Living (Adults),COMMUNITY ACCESS NETWORK LTD,SN25,21/04/2023,809.60
82506251,Learning Disabilities,Adults,Learning Disability 18 - 64,Income,Client Contribution - Supported Living,COMMUNITY ACCESS NETWORK LTD,SN25,21/04/2023,-142.80
82506251,Learning Disabilities,Adults,Learning Disability 18 - 64,3rd Party Payments,Supported Lodgings (Childrens)/Supported Living (Adults),COMMUNITY ACCESS NETWORK LTD,SN25,21/04/2023,24.00
82506250,Learning Disabilities,Adults,Learning Disability 18 - 64,3rd Party Payments,Residential Care,COMMUNITY ACCESS NETWORK LTD,SN25,21/04/2023,"6,282.60"
82506251,Learning Disabilities,Adults,Learning Disability 18 - 64,3rd Party Payments,Supported Lodgings (Childrens)/Supported Living (Adults),COMMUNITY ACCESS NETWORK LTD,SN25,21/04/2023,"1,342.76"
82506251,Learning Disabilities,Adults,Learning Disability 18 - 64,3rd Party Payments,Supported Lodgings (Childrens)/Supported Living (Adults),COMMUNITY ACCESS NETWORK LTD,SN25,21/04/2023,24.68
82506250,Learning Disabilities,Adults,Learning Disability 18 - 64,Income,Client Contribution - Residential,COMMUNITY ACCESS NETWORK LTD,SN25,21/04/2023,-293.60
82506251,Learning Disabilities,Adults,Learning Disability 18 - 64,3rd Party Payments,Supported Lodgings (Childrens)/Supported Living (Adults),COMMUNITY ACCESS NETWORK LTD,SN25,21/04/2023,"3,681.24"
82984233,Public Health,Public Health,Child 0-19 Public Health Programmes,3rd Party Payments,Contract Payments,COMMUNITY CENTRE AT CHRIST CHURCH,SN1 ,26/04/2023,590.40
81125233,Social Care,"Children, Families and Community Health Services",Children's Resource and Home Finding Team,3rd Party Payments,Independent Fostering Agency Placements,COMMUNITY FOSTER CARE,GL1 ,14/04/2023,"5,139.80"
81126233,Social Care,"Children, Families and Community Health Services",Children's Resource and Home Finding Team,3rd Party Payments,Independent Fostering Agency Placements,COMMUNITY FOSTER CARE,GL1 ,14/04/2023,"4,058.21"
82506307,Learning Disabilities,Adults,Learning Disability 18 - 64,3rd Party Payments,Residential Care,COMMUNITY THERAPEUTIC SERVICES LTD,BS22,21/04/2023,"11,398.08"
82545236,Social Care,"Children, Families and Community Health Services",Children's Resource and Home Finding Team,3rd Party Payments,Residential Care,COMPASS CHILDREN'S HOMES LTD,LE7 ,21/04/2023,"19,928.66"
80880241,Social Care,"Children, Families and Community Health Services",Children's Resource and Home Finding Team,3rd Party Payments,Independent Fostering Agency Placements,COMPASS FOSTERING WEST LTD,LE11,14/04/2023,"3,009.17"
82545253,Social Care,"Children, Families and Community Health Services",Children's Resource and Home Finding Team,3rd Party Payments,Independent Fostering Agency Placements,COMPASS FOSTERING WEST LTD,LE11,21/04/2023,"2,970.00"
80880242,Social Care,"Children, Families and Community Health Services",Children's Resource and Home Finding Team,3rd Party Payments,Independent Fostering Agency Placements,COMPASS FOSTERING WEST LTD,LE11,14/04/2023,"3,069.00"
82545250,Social Care,"Children, Families and Community Health Services",Children's Resource and Home Finding Team,3rd Party Payments,Independent Fostering Agency Placements,COMPASS FOSTERING WEST LTD,LE11,21/04/2023,"3,135.00"
82545254,Social Care,"Children, Families and Community Health Services",Children's Resource and Home Finding Team,3rd Party Payments,Independent Fostering Agency Placements,COMPASS FOSTERING WEST LTD,LE11,21/04/2023,"3,182.10"
81117233,Social Care,"Children, Families and Community Health Services",Children's Resource and Home Finding Team,3rd Party Payments,Independent Fostering Agency Placements,COMPASS FOSTERING WEST LTD,LE11,14/04/2023,"3,445.65"
73439242,Social Care,"Children, Families and Community Health Services",Children's Resource and Home Finding Team,3rd Party Payments,Independent Fostering Agency Placements,COMPASS FOSTERING WEST LTD,LE11,14/04/2023,"-3,150.68"
80880243,Social Care,"Children, Families and Community Health Services",Children's Resource and Home Finding Team,3rd Party Payments,Independent Fostering Agency Placements,COMPASS FOSTERING WEST LTD,LE11,14/04/2023,"3,288.17"
81120233,Social Care,"Children, Families and Community Health Services",Children's Resource and Home Finding Team,3rd Party Payments,Parent & Child Placements,COMPASS FOSTERING WEST LTD,LE11,14/04/2023,"6,421.34"
80880238,Social Care,"Children, Families and Community Health Services",Placement - Care Leaver Team,3rd Party Payments,Staying Put,COMPASS FOSTERING WEST LTD,LE11,14/04/2023,"2,103.66"
80880240,Social Care,"Children, Families and Community Health Services",Children's Resource and Home Finding Team,3rd Party Payments,Independent Fostering Agency Placements,COMPASS FOSTERING WEST LTD,LE11,14/04/2023,"3,445.65"
82545256,Social Care,"Children, Families and Community Health Services",Children's Resource and Home Finding Team,3rd Party Payments,Independent Fostering Agency Placements,COMPASS FOSTERING WEST LTD,LE11,21/04/2023,"3,334.50"
82545258,Social Care,"Children, Families and Community Health Services",Children's Resource and Home Finding Team,3rd Party Payments,Independent Fostering Agency Placements,COMPASS FOSTERING WEST LTD,LE11,21/04/2023,"5,366.70"
82545255,Social Care,"Children, Families and Community Health Services",Children's Resource and Home Finding Team,3rd Party Payments,Independent Fostering Agency Placements,COMPASS FOSTERING WEST LTD,LE11,21/04/2023,"3,317.40"
73439241,Social Care,"Children, Families and Community Health Services",Children's Resource and Home Finding Team,3rd Party Payments,Independent Fostering Agency Placements,COMPASS FOSTERING WEST LTD,LE11,14/04/2023,"-3,231.54"
81118233,Social Care,"Children, Families and Community Health Services",Children's Resource and Home Finding Team,3rd Party Payments,Independent Fostering Agency Placements,COMPASS FOSTERING WEST LTD,LE11,14/04/2023,"3,239.50"
81119233,Social Care,"Children, Families and Community Health Services",Children's Resource and Home Finding Team,3rd Party Payments,Independent Fostering Agency Placements,COMPASS FOSTERING WEST LTD,LE11,14/04/2023,"5,545.59"
80880244,Social Care,"Children, Families and Community Health Services",Children's Resource and Home Finding Team,3rd Party Payments,Independent Fostering Agency Placements,COMPASS FOSTERING WEST LTD,LE11,14/04/2023,"3,427.98"
80880245,Social Care,"Children, Families and Community Health Services",Children's Resource and Home Finding Team,3rd Party Payments,Independent Fostering Agency Placements,COMPASS FOSTERING WEST LTD,LE11,14/04/2023,-842.72
82545259,Social Care,"Children, Families and Community Health Services",Children's Resource and Home Finding Team,3rd Party Payments,Parent & Child Placements,COMPASS FOSTERING WEST LTD,LE11,21/04/2023,"6,214.20"
82545257,Social Care,"Children, Families and Community Health Services",Children's Resource and Home Finding Team,3rd Party Payments,Independent Fostering Agency Placements,COMPASS FOSTERING WEST LTD,LE11,21/04/2023,"3,135.00"
82545249,Social Care,"Children, Families and Community Health Services",Placement - Care Leaver Team,3rd Party Payments,Staying Put,COMPASS FOSTERING WEST LTD,LE11,21/04/2023,"2,035.80"
82545252,Social Care,"Children, Families and Community Health Services",Children's Resource and Home Finding Team,3rd Party Payments,Independent Fostering Agency Placements,COMPASS FOSTERING WEST LTD,LE11,21/04/2023,"2,912.10"
82545251,Social Care,"Children, Families and Community Health Services",Children's Resource and Home Finding Team,3rd Party Payments,Independent Fostering Agency Placements,COMPASS FOSTERING WEST LTD,LE11,21/04/2023,"3,334.50"
80880239,Social Care,"Children, Families and Community Health Services",Children's Resource and Home Finding Team,3rd Party Payments,Independent Fostering Agency Placements,COMPASS FOSTERING WEST LTD,LE11,14/04/2023,"3,239.50"
80412233,Elections & Democracy,Elections and Democracy,Local Elections,Premises Costs,Rents,COMPASS SERVICES (UK) LTD,SN4 ,12/04/2023,"1,300.00"
81723233,Human Resources and Organisational Development,"People, Culture and Organisational Resilience",Pay & Reward,Employees,Temporary / Agency - by Accounts Payable,COMPAWISE LIMITED,WA14,19/04/2023,"2,400.00"
83012233,Human Resources and Organisational Development,"People, Culture and Organisational Resilience",Pay & Reward,Employees,Temporary / Agency - by Accounts Payable,COMPAWISE LIMITED,WA14,26/04/2023,"3,000.00"
79515233,Human Resources and Organisational Development,"People, Culture and Organisational Resilience",Pay & Reward,Employees,Temporary / Agency - by Accounts Payable,COMPAWISE LIMITED,WA14,05/04/2023,"3,000.00"
81041233,Human Resources and Organisational Development,"People, Culture and Organisational Resilience",Pay & Reward,Employees,Temporary / Agency - by Accounts Payable,COMPAWISE LIMITED,WA14,14/04/2023,"3,000.00"
83451233,Environmental & Regulatory,Highways & Transport,Shaw Farm Landfill Site,Supplies and Services,Testing / Inspection,CONSOLIDATED DISTRIBUTION HOLDINGS LTD T/A HARRIER PNEUMATICS,BS2 ,26/04/2023,801.60
81662233,Environmental & Regulatory,Highways & Transport,Shaw Farm Landfill Site,Supplies and Services,Testing / Inspection,CONSOLIDATED DISTRIBUTION HOLDINGS LTD T/A HARRIER PNEUMATICS,BS2 ,19/04/2023,629.60
81661233,Environmental & Regulatory,Highways & Transport,Shaw Farm Landfill Site,Supplies and Services,Testing / Inspection,CONSOLIDATED DISTRIBUTION HOLDINGS LTD T/A HARRIER PNEUMATICS,BS2 ,19/04/2023,"1,619.95"
80786233,Facilities Management,"People, Culture and Organisational Resilience",Office Accommodation,Premises Costs,Maintenance - Buildings,COOLINK LTD,SN11,14/04/2023,108.00
80786233,Facilities Management,"People, Culture and Organisational Resilience",Office Accommodation,Premises Costs,Maintenance - Buildings,COOLINK LTD,SN11,14/04/2023,184.00
80786233,Facilities Management,"People, Culture and Organisational Resilience",Office Accommodation,Premises Costs,Maintenance - Buildings,COOLINK LTD,SN11,14/04/2023,144.00
80095233,Responsive Repairs,Repairs,Responsive Repairs,3rd Party Payments,Contract Payments,REDACTED PERSONAL DATA,SN2 ,12/04/2023,"2,600.00"
80094234,Responsive Repairs,Repairs,Responsive Repairs,3rd Party Payments,Contract Payments,REDACTED PERSONAL DATA,SN2 ,12/04/2023,"1,000.00"
79963233,Social Care,"Children, Families and Community Health Services",Placement Adoption Service,3rd Party Payments,Adoption Allowances,REDACTED PERSONAL DATA,BA15,05/04/2023,860.00
82690234,Social Care,"Children, Families and Community Health Services",Placement Adoption Service,3rd Party Payments,Adoption Allowances,REDACTED PERSONAL DATA,BA15,24/04/2023,860.00
82506282,Learning Disabilities,Adults,Learning Disability 18 - 64,3rd Party Payments,Residential Care,CORNERSTONES UK LTD,SN9 ,21/04/2023,"5,322.56"
82506282,Learning Disabilities,Adults,Learning Disability 18 - 64,3rd Party Payments,Residential Care,CORNERSTONES UK LTD,SN9 ,21/04/2023,"4,178.84"
82506282,Learning Disabilities,Adults,Learning Disability 18 - 64,Income,Client Contribution - Residential,CORNERSTONES UK LTD,SN9 ,21/04/2023,-414.20
82506282,Learning Disabilities,Adults,Learning Disability 18 - 64,Income,Client Contribution - Residential,CORNERSTONES UK LTD,SN9 ,21/04/2023,-423.00
82506282,Learning Disabilities,Adults,Learning Disability 18 - 64,3rd Party Payments,Residential Care,CORNERSTONES UK LTD,SN9 ,21/04/2023,"6,922.20"
82506282,Learning Disabilities,Adults,Learning Disability 18 - 64,Income,Client Contribution - Residential,CORNERSTONES UK LTD,SN9 ,21/04/2023,-487.80
82506282,Learning Disabilities,Adults,Learning Disability 18 - 64,3rd Party Payments,Residential Care,CORNERSTONES UK LTD,SN9 ,21/04/2023,"7,986.12"
82506282,Learning Disabilities,Adults,Learning Disability 18 - 64,Income,Client Contribution - Residential,CORNERSTONES UK LTD,SN9 ,21/04/2023,-381.00
82506282,Learning Disabilities,Adults,Learning Disability 18 - 64,3rd Party Payments,Residential Care,CORNERSTONES UK LTD,SN9 ,21/04/2023,"8,160.76"
82506282,Learning Disabilities,Adults,Learning Disability 18 - 64,3rd Party Payments,Residential Care,CORNERSTONES UK LTD,SN9 ,21/04/2023,"6,251.16"
82506282,Learning Disabilities,Adults,Learning Disability 18 - 64,Income,Client Contribution - Residential,CORNERSTONES UK LTD,SN9 ,21/04/2023,-438.80
81652233,Housing & Supported Living,Adults,Disabled Facilities Grants,Capital,Grant Payments,COTSWOLD BUILDING RENOVATIONS LTD,GL7 ,19/04/2023,"5,040.00"
82013234,Streetsmart,Streetsmart,Waterside Fleet Hires,Transport Costs,Vehicle Hire / Contract,COTSWOLD RECYCLING COMPANY LTD,GL12,19/04/2023,"2,375.00"
82014233,Streetsmart,Streetsmart,Waterside Fleet Hires,Transport Costs,Vehicle Hire / Contract,COTSWOLD RECYCLING COMPANY LTD,GL12,19/04/2023,"2,375.00"
80075233,Streetsmart,Streetsmart,Waste - Processing,Supplies and Services,Repairs & Maintenance,COVEYA LTD,BS30,05/04/2023,"1,092.00"
82266238,Early Years Block,DSG Skills and Attainment,Free Nursery Education Commissioning - three & four  year olds,3rd Party Payments,Contracts - Child Care,COVINGHAM KINGFISHER PRE-SCHOOL,SN3 ,19/04/2023,"19,902.16"
82266235,Early Years Block,DSG Skills and Attainment,Free Nursery Education Commissioning - two year olds,3rd Party Payments,Contracts - Child Care,COVINGHAM KINGFISHER PRE-SCHOOL,SN3 ,19/04/2023,766.43
79844233,Schools - Primary,DSG Skills and Attainment,Primary School Budgets,3rd Party Payments,Mainstream Delegated Funding,COVINGHAM PARK PRIMARY SCHOOL,SN3 ,05/04/2023,"140,347.65"
81647244,Schools - Primary,DSG Skills and Attainment,Primary School Budgets,3rd Party Payments,Mainstream Delegated Funding,COVINGHAM PARK PRIMARY SCHOOL,SN3 ,19/04/2023,"133,968.00"
81648242,DSG Other Funding,DSG Skills and Attainment,DFE Additional Grants,3rd Party Payments,Payment of Pupil Premium to school,COVINGHAM PARK PRIMARY SCHOOL,SN3 ,19/04/2023,"8,057.00"
80898233,High Needs Block,DSG Skills and Attainment,SEN Resourcing Assessment Panel,3rd Party Payments,Top up funding - Maintained providers Pre 16,COVINGHAM PARK PRIMARY SCHOOL,SN3 ,14/04/2023,"2,161.67"
82267235,Early Years Block,DSG Skills and Attainment,Free Nursery Education Commissioning - two year olds,3rd Party Payments,Contracts - Child Care,COVINGHAM ROUNDABOUT PLAYGROUP,SN3 ,19/04/2023,"5,556.60"
82267234,Early Years Block,DSG Skills and Attainment,Free Nursery Education Commissioning - three & four  year olds,3rd Party Payments,Contracts - Child Care,COVINGHAM ROUNDABOUT PLAYGROUP,SN3 ,19/04/2023,"31,339.90"
82506354,Mental Health,Adults,Mental Health 65 and over,3rd Party Payments,Residential Care,COXWELL HALL AND MEWS NURSING HOME,TW20,21/04/2023,"5,357.14"
82506354,Mental Health,Adults,Mental Health 65 and over,3rd Party Payments,Residential Care,COXWELL HALL AND MEWS NURSING HOME,TW20,21/04/2023,"6,000.00"
82506354,Mental Health,Adults,Mental Health 65 and over,3rd Party Payments,Nursing Care,COXWELL HALL AND MEWS NURSING HOME,TW20,21/04/2023,"5,920.00"
82506354,Memory & Cognition,Adults,Support for Memory and Cognition 65 and over,3rd Party Payments,Residential Care,COXWELL HALL AND MEWS NURSING HOME,TW20,21/04/2023,"5,968.24"
83428233,Property Management,Property,Corporate Repairs & Maintenance Programme,Premises Costs,Repairs - Buildings,CPS CONSTRUCTION LTD,BS15,26/04/2023,"1,437.50"
81277233,Planned Maintenance Programme,HRA Capital Financing,Contingent Major Repairs,Capital,Contractor Payments,CPS CONSTRUCTION LTD,BS15,14/04/2023,"10,629.72"
83427241,Property Management,Property,Corporate Repairs & Maintenance Programme,Premises Costs,Repairs - Buildings,CPS CONSTRUCTION LTD,BS15,26/04/2023,"5,823.00"
79998234,Responsive Repairs,Repairs,Responsive Repairs,Supplies and Services,Materials,CPS CONSTRUCTION LTD,BS15,05/04/2023,"4,424.62"
81918233,Responsive Repairs,Repairs,Responsive Repairs,3rd Party Payments,Contract Payments,CPS CONSTRUCTION LTD,BS15,19/04/2023,750.68
82506256,Learning Disabilities,Adults,Learning Disability 18 - 64,Income,Client Contribution - Residential,CRAEGMOOR HEALTHCARE,BA14,21/04/2023,-414.20
82506256,Learning Disabilities,Adults,Learning Disability 18 - 64,3rd Party Payments,Residential Care,CRAEGMOOR HEALTHCARE,BA14,21/04/2023,"8,639.88"
80071236,Streetsmart,Streetsmart,Waste - Disposal,3rd Party Payments,Contract Payments,CRAPPER & SONS LANDFILL LTD,SN4 ,05/04/2023,"1,159.31"
80071233,Streetsmart,Streetsmart,Waste - Disposal,3rd Party Payments,Contract Payments,CRAPPER & SONS LANDFILL LTD,SN4 ,05/04/2023,"1,102.46"
80072233,Streetsmart,Streetsmart,Waste - Disposal,3rd Party Payments,Contract Payments,CRAPPER & SONS LANDFILL LTD,SN4 ,05/04/2023,"2,943.30"
80078233,Streetsmart,Streetsmart,Waste - Disposal,3rd Party Payments,Contract Payments,CRAPPER & SONS LANDFILL LTD,SN4 ,05/04/2023,"1,422.43"
80070251,Streetsmart,Streetsmart,Waste - Disposal,3rd Party Payments,Contract Payments,CRAPPER & SONS LANDFILL LTD,SN4 ,05/04/2023,"3,574.15"
80081233,Streetsmart,Streetsmart,Waste - Disposal,3rd Party Payments,Contract Payments,CRAPPER & SONS LANDFILL LTD,SN4 ,05/04/2023,521.05
80730233,Physical Support,Adults,Fessey House,Supplies and Services,Food,CREED CATERING SUPPLIES LTD,GL51,14/04/2023,54.22
80730233,Physical Support,Adults,Fessey House,Supplies and Services,Food,CREED CATERING SUPPLIES LTD,GL51,14/04/2023,495.45
83277233,Physical Support,Adults,Fessey House,Supplies and Services,Food,CREED CATERING SUPPLIES LTD,GL51,26/04/2023,72.65
80552233,Physical Support,Adults,Fessey House,Supplies and Services,Food,CREED CATERING SUPPLIES LTD,GL51,12/04/2023,784.41
83357233,Physical Support,Adults,Fessey House,Supplies and Services,Food,CREED CATERING SUPPLIES LTD,GL51,26/04/2023,523.55
80792233,Physical Support,Adults,Fessey House,Supplies and Services,Food,CREED CATERING SUPPLIES LTD,GL51,14/04/2023,808.57
83358233,Physical Support,Adults,Fessey House,Supplies and Services,Food,CREED CATERING SUPPLIES LTD,GL51,26/04/2023,33.87
83357233,Physical Support,Adults,Fessey House,Supplies and Services,Food,CREED CATERING SUPPLIES LTD,GL51,26/04/2023,19.45
83277233,Physical Support,Adults,Fessey House,Supplies and Services,Food,CREED CATERING SUPPLIES LTD,GL51,26/04/2023,757.74
83281233,Physical Support,Adults,Fessey House,Supplies and Services,Food,CREED CATERING SUPPLIES LTD,GL51,26/04/2023,709.48
80792233,Physical Support,Adults,Fessey House,Supplies and Services,Food,CREED CATERING SUPPLIES LTD,GL51,14/04/2023,110.13
80552233,Physical Support,Adults,Fessey House,Supplies and Services,Food,CREED CATERING SUPPLIES LTD,GL51,12/04/2023,64.27
83281233,Physical Support,Adults,Fessey House,Supplies and Services,Food,CREED CATERING SUPPLIES LTD,GL51,26/04/2023,130.45
83358233,Physical Support,Adults,Fessey House,Supplies and Services,Food,CREED CATERING SUPPLIES LTD,GL51,26/04/2023,671.88
82268233,Early Years Block,DSG Skills and Attainment,Free Nursery Education Commissioning - three & four  year olds,3rd Party Payments,Contracts - Child Care,CROFT PLAYGROUP,SN3 ,19/04/2023,"63,710.87"
82571243,Early Years Block,DSG Skills and Attainment,Free Nursery Education Commissioning - three & four  year olds,3rd Party Payments,Contracts - Child Care,CROFT PLAYGROUP,SN3 ,26/04/2023,"2,340.00"
81049233,Licencing,Regulatory Services,Taxis & Private Hire,Supplies and Services,Testing / Inspection,CROSS STREET GARAGE (SWINDON) LTD,SN1 ,14/04/2023,770.00
80886242,School Transport,"Education, Inclusion and Skills",Special Educational Needs Transport,Transport Costs,Home to School Transport,CROSS STREET RADIO CARS,SN1 ,14/04/2023,"1,305.00"
79911233,School Transport,"Education, Inclusion and Skills",Special Educational Needs Transport,Transport Costs,Home to School Transport,CROSS STREET RADIO CARS,SN1 ,05/04/2023,"6,380.00"
80462234,School Transport,"Education, Inclusion and Skills",Special Educational Needs Transport,Transport Costs,Home to School Transport,CROSS STREET RADIO CARS,SN1 ,12/04/2023,"2,070.00"
80886240,School Transport,"Education, Inclusion and Skills",Special Educational Needs Transport,Transport Costs,Home to School Transport,CROSS STREET RADIO CARS,SN1 ,14/04/2023,"4,370.00"
80462233,School Transport,"Education, Inclusion and Skills",Special Educational Needs Transport,Transport Costs,Home to School Transport,CROSS STREET RADIO CARS,SN1 ,12/04/2023,"4,290.00"
80886243,School Transport,"Education, Inclusion and Skills",Special Educational Needs Transport,Transport Costs,Home to School Transport,CROSS STREET RADIO CARS,SN1 ,14/04/2023,"3,680.00"
80461233,School Transport,"Education, Inclusion and Skills",Special Educational Needs Transport,Transport Costs,Home to School Transport,CROSS STREET RADIO CARS,SN1 ,12/04/2023,"6,670.00"
79982241,School Transport,"Education, Inclusion and Skills",Special Educational Needs Transport,Transport Costs,Home to School Transport,CROSS STREET RADIO CARS,SN1 ,05/04/2023,"4,370.00"
80463233,School Transport,"Education, Inclusion and Skills",Special Educational Needs Transport,Transport Costs,Home to School Transport,CROSS STREET RADIO CARS,SN1 ,12/04/2023,"2,530.00"
79982238,School Transport,"Education, Inclusion and Skills",Special Educational Needs Transport,Transport Costs,Home to School Transport,CROSS STREET RADIO CARS,SN1 ,05/04/2023,"3,640.00"
79982242,School Transport,"Education, Inclusion and Skills",Special Educational Needs Transport,Transport Costs,Home to School Transport,CROSS STREET RADIO CARS,SN1 ,05/04/2023,"2,250.00"
79982240,School Transport,"Education, Inclusion and Skills",Special Educational Needs Transport,Transport Costs,Home to School Transport,CROSS STREET RADIO CARS,SN1 ,05/04/2023,"2,015.00"
80914233,High Needs Block,DSG Skills and Attainment,SEN Resourcing Assessment Panel,3rd Party Payments,Top up funding - Maintained providers Pre 16,CROWDYS HILL SCHOOL,SN2 ,14/04/2023,"137,485.03"
81648252,DSG Other Funding,DSG Skills and Attainment,DFE Additional Grants,3rd Party Payments,Payment of Pupil Premium to school,CROWDYS HILL SCHOOL,SN2 ,19/04/2023,"10,239.00"
80915236,High Needs Block,DSG Skills and Attainment,SEN Resourcing Assessment Panel,3rd Party Payments,Top up funding - Maintained providers Post 16,CROWDYS HILL SCHOOL,SN2 ,14/04/2023,"48,865.88"
79855237,High Needs Block,DSG Skills and Attainment,Special School Place,3rd Party Payments,HNB- Place Funding pre 16,CROWDYS HILL SCHOOL,SN2 ,05/04/2023,"170,000.00"
81647253,High Needs Block,DSG Skills and Attainment,Special School Place,3rd Party Payments,HNB- Place Funding post 16,CROWDYS HILL SCHOOL,SN2 ,19/04/2023,"38,333.00"
80913234,High Needs Block,DSG Skills and Attainment,SEN Resourcing Assessment Panel,3rd Party Payments,Top up funding - Maintained providers Pre 16,CROWDYS HILL SCHOOL,SN2 ,14/04/2023,"47,189.81"
81647254,High Needs Block,DSG Skills and Attainment,Special School Place,3rd Party Payments,HNB- Place Funding pre 16,CROWDYS HILL SCHOOL,SN2 ,19/04/2023,"170,000.00"
79855236,High Needs Block,DSG Skills and Attainment,Special School Place,3rd Party Payments,HNB- Place Funding post 16,CROWDYS HILL SCHOOL,SN2 ,05/04/2023,"38,333.00"
Corporate Card Transaction,Community Health & Wellbeing,Public Health,Community Health and Wellbeing Management,Supplies and Services,Food,Cs* Tesco Stores Gc,,11/04/2023,1300
Corporate Card Transaction,Community Health & Wellbeing,Public Health,Swindon Circles,Supplies and Services,Food,Cs* Tesco Stores Gc,,29/03/2023,1000
83289233,"Volutary Sector, Equipment and Carers",Adults,Voluntary Sector Adults,3rd Party Payments,Contracts - Social Care,CRUSE BEREAVEMENT CARE,TW9 ,26/04/2023,"6,250.00"
79660233,Care Management & Safeguarding,Adults,Adults Community Team - Initial Contact Team,3rd Party Payments,Personal Budget - Domiciliary care,CRYSTAL CARING LIMITED,SN2 ,05/04/2023,"1,356.96"
79659233,Physical Support,Adults,Physical Support 65 and over,3rd Party Payments,Personal Budget - Domiciliary care,CRYSTAL CARING LIMITED,SN2 ,05/04/2023,"2,868.12"
79660233,Physical Support,Adults,Physical Support 65 and over,3rd Party Payments,Personal Budget - Domiciliary care,CRYSTAL CARING LIMITED,SN2 ,05/04/2023,"1,757.88"
79658233,Physical Support,Adults,Physical Support 65 and over,3rd Party Payments,Personal Budget - Domiciliary care,CRYSTAL CARING LIMITED,SN2 ,05/04/2023,"1,459.76"
79661233,Physical Support,Adults,Physical Support 18 - 64,3rd Party Payments,Personal Budget - Domiciliary care,CRYSTAL CARING LIMITED,SN2 ,05/04/2023,"4,194.24"
81138233,Social Care,"Children, Families and Community Health Services",Children's Resource and Home Finding Team,3rd Party Payments,Residential Care,CUMBRIAN OUTBOUND LTD,CA3 ,14/04/2023,"11,593.75"
81773245,Social Care,"Children, Families and Community Health Services",Children's Resource and Home Finding Team,3rd Party Payments,Residential Care,CUMBRIAN OUTBOUND LTD,CA3 ,19/04/2023,"9,937.50"
80701233,Planned Maintenance Programme,HRA Capital Financing,Exceptional Extensive,Capital,Contractor Payments,CWE CONSULTANTS LTD,SN1 ,12/04/2023,"1,972.50"
82269233,Early Years Block,DSG Skills and Attainment,Free Nursery Education Commissioning - three & four  year olds,3rd Party Payments,Contracts - Child Care,REDACTED PERSONAL DATA,SN1 ,19/04/2023,"1,637.61"
79639233,NEV,"Economy, Growth and Place",Southern Connector Road,Capital,Professional Fees,REDACTED PERSONAL DATA,CF23,05/04/2023,"16,370.00"
83495233,Landscaping & Open Space,Culture & Heritage & Art,Moredon Recreation - Multi Sports Hub,Capital,Contractor Payments,DAVID JARVIS ASSOCIATES LTD,SN1 ,26/04/2023,995.00
82775244,Social Care,"Children, Families and Community Health Services",Placement Adoption Service,3rd Party Payments,Special Guardianship Orders,REDACTED PERSONAL DATA,B35 ,24/04/2023,676.96
79976392,Social Care,"Children, Families and Community Health Services",Placement Adoption Service,3rd Party Payments,Special Guardianship Orders,REDACTED PERSONAL DATA,B35 ,05/04/2023,676.96
80116233,Streetsmart,Streetsmart,Waterside Fleet Hires,Transport Costs,Vehicle Hire / Contract,DAWSONRENTLES SWEEPERS,HD6 ,12/04/2023,"2,954.77"
80114233,Streetsmart,Streetsmart,Waterside Fleet Hires,Transport Costs,Vehicle Hire / Contract,DAWSONRENTLES SWEEPERS,HD6 ,12/04/2023,"3,215.48"
80117233,Streetsmart,Streetsmart,Waterside Fleet Hires,Transport Costs,Vehicle Hire / Contract,DAWSONRENTLES SWEEPERS,HD6 ,12/04/2023,"2,954.77"
80115233,Streetsmart,Streetsmart,Waterside Fleet Hires,Transport Costs,Vehicle Hire / Contract,DAWSONRENTLES SWEEPERS,HD6 ,12/04/2023,"2,150.90"
80113233,Streetsmart,Streetsmart,Waterside Fleet Hires,Transport Costs,Vehicle Hire / Contract,DAWSONRENTLES SWEEPERS,HD6 ,12/04/2023,"2,867.86"
Corporate Card Transaction,Social Care,"Children, Families and Community Health Services",Placement - Care Leaver Team,Transfer Payments,Grants to Individuals,Dfs Trading Limited,,14/04/2023,898.00
83522233,Social Care,"Children, Families and Community Health Services",No Recourse to Public Funds,3rd Party Payments,Personal Needs,REDACTED PERSONAL DATA,SN1 ,26/04/2023,699.24
79886233,Social Care,"Children, Families and Community Health Services",Placement Fostering Service,3rd Party Payments,Foster Care Additional Allowance,REDACTED PERSONAL DATA,SN5 ,05/04/2023,100.00
82573255,Social Care,"Children, Families and Community Health Services",Placement Fostering Service,3rd Party Payments,Foster Care Additional Allowance,REDACTED PERSONAL DATA,SN5 ,24/04/2023,100.00
82573255,Social Care,"Children, Families and Community Health Services",Placement Fostering Service,3rd Party Payments,Carers Skills Payments - Advanced,REDACTED PERSONAL DATA,SN5 ,24/04/2023,370.00
79886233,Social Care,"Children, Families and Community Health Services",Placement Fostering Service,3rd Party Payments,Birthday Payment,REDACTED PERSONAL DATA,SN5 ,05/04/2023,268.00
79886233,Social Care,"Children, Families and Community Health Services",Placement Fostering Service,3rd Party Payments,Foster Care Basic Payments,REDACTED PERSONAL DATA,SN5 ,05/04/2023,536.00
79886233,Social Care,"Children, Families and Community Health Services",Placement Fostering Service,3rd Party Payments,Carers Skills Payments - Advanced,REDACTED PERSONAL DATA,SN5 ,05/04/2023,370.00
82573255,Social Care,"Children, Families and Community Health Services",Placement Fostering Service,3rd Party Payments,Foster Care Basic Payments,REDACTED PERSONAL DATA,SN5 ,24/04/2023,536.00
82318239,Early Years Block,DSG Skills and Attainment,Free Nursery Education Commissioning - three & four  year olds,3rd Party Payments,Contracts - Child Care,REDACTED PERSONAL DATA,SN5 ,19/04/2023,"3,275.22"
82318242,Early Years Block,DSG Skills and Attainment,Free Nursery Education Commissioning - two year olds,3rd Party Payments,Contracts - Child Care,REDACTED PERSONAL DATA,SN5 ,19/04/2023,958.04
82269235,Early Years Block,DSG Skills and Attainment,Free Nursery Education Commissioning - three & four  year olds,3rd Party Payments,Contracts - Child Care,REDACTED PERSONAL DATA,SN2 ,19/04/2023,"1,637.61"
82270233,Early Years Block,DSG Skills and Attainment,Free Nursery Education Commissioning - three & four  year olds,3rd Party Payments,Contracts - Child Care,REDACTED PERSONAL DATA,SN4 ,19/04/2023,"1,055.05"
81326233,Traded Services,"Education, Inclusion and Skills",Plas Pencelli Outdoor Education Centre,Transport Costs,Repairs & Maintenance - Vehicles,REDACTED PERSONAL DATA,LD3 ,17/04/2023,897.48
81327234,Traded Services,"Education, Inclusion and Skills",Plas Pencelli Outdoor Education Centre,Transport Costs,Repairs & Maintenance - Vehicles,REDACTED PERSONAL DATA,LD3 ,17/04/2023,"1,448.27"
81325233,Traded Services,"Education, Inclusion and Skills",Plas Pencelli Outdoor Education Centre,Transport Costs,Repairs & Maintenance - Vehicles,REDACTED PERSONAL DATA,LD3 ,17/04/2023,"1,098.00"
81325233,Traded Services,"Education, Inclusion and Skills",Plas Pencelli Outdoor Education Centre,Transport Costs,Repairs & Maintenance - Vehicles,REDACTED PERSONAL DATA,LD3 ,17/04/2023,59.99
81328233,Traded Services,"Education, Inclusion and Skills",Plas Pencelli Outdoor Education Centre,Premises Costs,Maintenance - Grounds,REDACTED PERSONAL DATA,LD3 ,17/04/2023,"1,233.04"
81324233,Traded Services,"Education, Inclusion and Skills",Plas Pencelli Outdoor Education Centre,Supplies and Services,Equipment,REDACTED PERSONAL DATA,LD3 ,17/04/2023,"2,051.33"
81331233,Traded Services,"Education, Inclusion and Skills",Plas Pencelli Outdoor Education Centre,Transport Costs,Repairs & Maintenance - Vehicles,REDACTED PERSONAL DATA,LD3 ,17/04/2023,637.80
81640235,Learning Disabilities,Adults,Learning Disability 18 - 64,3rd Party Payments,Supported Accommodation Scheme,REDACTED PERSONAL DATA,SN2 ,21/04/2023,"1,795.03"
81640235,Learning Disabilities,Adults,Learning Disability 18 - 64,3rd Party Payments,Supported Accommodation Scheme,REDACTED PERSONAL DATA,SN2 ,21/04/2023,"1,415.74"
81640235,Learning Disabilities,Adults,Learning Disability 18 - 64,3rd Party Payments,Supported Accommodation Scheme,REDACTED PERSONAL DATA,SN2 ,21/04/2023,"2,147.91"
79438233,Disabled Children,"Children, Families and Community Health Services",DCT Daytime Short Breaks,3rd Party Payments,Respite Care,DGF PSYCHOLOGY LTD,GL4 ,03/04/2023,932.20
79414233,Town Centre,"Economy, Growth and Place",Towns Fund,Supplies and Services,Fees,REDACTED PERSONAL DATA,GL20,03/04/2023,500.00
79414233,Town Centre,"Economy, Growth and Place",Heritage Action Zone (HAZ),Supplies and Services,Publicity,REDACTED PERSONAL DATA,GL20,03/04/2023,500.00
82677236,Social Care,"Children, Families and Community Health Services",Placement Adoption Service,3rd Party Payments,Adoption Allowances,REDACTED PERSONAL DATA,CF44,24/04/2023,500.34
79929233,Social Care,"Children, Families and Community Health Services",Placement Adoption Service,3rd Party Payments,Adoption Allowances,REDACTED PERSONAL DATA,CF44,05/04/2023,500.34
80894240,High Needs Block,DSG Skills and Attainment,SEN Resourcing Assessment Panel,Supplies and Services,Services,REDACTED PERSONAL DATA,SN25,14/04/2023,"2,267.92"
82429233,Regulatory,Regulatory Services,Building control account,Supplies and Services,Subscriptions,DISTRICT SURVEYORS ASSOCIATION LTD T/A LABC,SW8 ,21/04/2023,"2,488.95"
82506343,Physical Support,Adults,Physical Support 65 and over,Income,Client Contribution - Nursing,DIVA CARE LIMITED,GL7 ,21/04/2023,-268.72
82506343,Physical Support,Adults,Physical Support 65 and over,3rd Party Payments,Nursing Care,DIVA CARE LIMITED,GL7 ,21/04/2023,"3,246.44"
79889233,Social Care,"Children, Families and Community Health Services",Placement Fostering Service,3rd Party Payments,Foster Care Basic Payments,REDACTED PERSONAL DATA,SN2 ,05/04/2023,352.00
79889233,Social Care,"Children, Families and Community Health Services",Placement Fostering Service,3rd Party Payments,Foster Care Additional Allowance,REDACTED PERSONAL DATA,SN2 ,05/04/2023,18.00
79889233,Social Care,"Children, Families and Community Health Services",Placement Fostering Service,3rd Party Payments,Carers Skills Payments - Core,REDACTED PERSONAL DATA,SN2 ,05/04/2023,216.00
82573261,Social Care,"Children, Families and Community Health Services",Placement Fostering Service,3rd Party Payments,Carers Skills Payments - Core,REDACTED PERSONAL DATA,SN2 ,24/04/2023,216.00
82573261,Social Care,"Children, Families and Community Health Services",Placement Fostering Service,3rd Party Payments,Foster Care Basic Payments,REDACTED PERSONAL DATA,SN2 ,24/04/2023,352.00
82573261,Social Care,"Children, Families and Community Health Services",Placement Fostering Service,3rd Party Payments,Foster Care Additional Allowance,REDACTED PERSONAL DATA,SN2 ,24/04/2023,18.00
80949233,High Needs Block,DSG Skills and Attainment,SEN Resourcing Assessment Panel,3rd Party Payments,Top up funding - Academies and Free Schools Pre 16,DORCAN ACADEMY,SN3 ,14/04/2023,"5,135.42"
81380233,Routes to Employment,"Education, Inclusion and Skills",Adult Learning,3rd Party Payments,Contract Payments,DORSET & WILTSHIRE FIRE & RESCUE SERVICE,SP1 ,17/04/2023,"6,000.00"
83190234,Human Resources and Organisational Development,"People, Culture and Organisational Resilience",Organisational Development,Employees,Temporary / Agency - by Accounts Payable,DORSET COUNTY COUNCIL,DT1 ,26/04/2023,"15,102.31"
82544383,Homelessness and Travellers,Housing Services,Leased Private Managed Accommodation,Transfer Payments,Payment of Costs,REDACTED PERSONAL DATA,SN6 ,24/04/2023,725.00
82544409,Homelessness and Travellers,Housing Services,Leased Private Managed Accommodation,Transfer Payments,Payment of Costs,REDACTED PERSONAL DATA,SN6 ,24/04/2023,725.00
79517235,Property Service Charged Properties,Property,Service Charged - Kendrick Close,Premises Costs,Repairs - Buildings,DRAIN DEVELOPMENTS LTD,SN5 ,05/04/2023,816.00
79680233,Property Management,Property,Corporate Repairs & Maintenance Programme,Premises Costs,Maintenance - Buildings,DRT SERVICING,TQ9 ,05/04/2023,50.00
79680233,Property Management,Property,Corporate Repairs & Maintenance Programme,Premises Costs,Maintenance - Buildings,DRT SERVICING,TQ9 ,05/04/2023,75.00
79680233,Property Management,Property,Corporate Repairs & Maintenance Programme,Premises Costs,Maintenance - Buildings,DRT SERVICING,TQ9 ,05/04/2023,175.00
79680233,Property Management,Property,Corporate Repairs & Maintenance Programme,Premises Costs,Maintenance - Buildings,DRT SERVICING,TQ9 ,05/04/2023,275.00
79680233,Property Management,Property,Corporate Repairs & Maintenance Programme,Premises Costs,Maintenance - Buildings,DRT SERVICING,TQ9 ,05/04/2023,115.00
82506340,Physical Support,Adults,Physical Support 18 - 64,3rd Party Payments,Nursing Care,DRUMMOND GRANGE NURSING HOME,EH18,21/04/2023,"6,603.00"
81619233,Learning Disabilities,Adults,Learning Disability 18 - 64,3rd Party Payments,Supported Accommodation Scheme,REDACTED PERSONAL DATA,SN25,21/04/2023,"2,206.03"
82506337,Learning Disabilities,Adults,Learning Disability 18 - 64,3rd Party Payments,Supported Lodgings (Childrens)/Supported Living (Adults),DYNAMIC SUPPORT LTD,SN25,21/04/2023,"6,280.64"
82506337,Learning Disabilities,Adults,Learning Disability 18 - 64,3rd Party Payments,Supported Lodgings (Childrens)/Supported Living (Adults),DYNAMIC SUPPORT LTD,SN25,21/04/2023,"2,501.80"
82506337,Learning Disabilities,Adults,Learning Disability 18 - 64,3rd Party Payments,Supported Lodgings (Childrens)/Supported Living (Adults),DYNAMIC SUPPORT LTD,SN25,21/04/2023,"1,536.84"
82506337,Learning Disabilities,Adults,Learning Disability 18 - 64,3rd Party Payments,Supported Lodgings (Childrens)/Supported Living (Adults),DYNAMIC SUPPORT LTD,SN25,21/04/2023,671.36
82506337,Learning Disabilities,Adults,Learning Disability 18 - 64,3rd Party Payments,Supported Lodgings (Childrens)/Supported Living (Adults),DYNAMIC SUPPORT LTD,SN25,21/04/2023,895.16
82506337,Learning Disabilities,Adults,Learning Disability 18 - 64,3rd Party Payments,Supported Lodgings (Childrens)/Supported Living (Adults),DYNAMIC SUPPORT LTD,SN25,21/04/2023,"-1,811.28"
82506337,Learning Disabilities,Adults,Learning Disability 65 and over,3rd Party Payments,Supported Lodgings (Childrens)/Supported Living (Adults),DYNAMIC SUPPORT LTD,SN25,21/04/2023,"2,685.48"
82506337,Learning Disabilities,Adults,Learning Disability 18 - 64,3rd Party Payments,Supported Lodgings (Childrens)/Supported Living (Adults),DYNAMIC SUPPORT LTD,SN25,21/04/2023,"7,533.46"
82506337,Learning Disabilities,Adults,Learning Disability 18 - 64,3rd Party Payments,Supported Lodgings (Childrens)/Supported Living (Adults),DYNAMIC SUPPORT LTD,SN25,21/04/2023,428.88
82506337,Learning Disabilities,Adults,Learning Disability 18 - 64,3rd Party Payments,Supported Lodgings (Childrens)/Supported Living (Adults),DYNAMIC SUPPORT LTD,SN25,21/04/2023,"2,358.84"
82506337,Learning Disabilities,Adults,Learning Disability 18 - 64,3rd Party Payments,Supported Lodgings (Childrens)/Supported Living (Adults),DYNAMIC SUPPORT LTD,SN25,21/04/2023,"-24,950.26"
82506337,Learning Disabilities,Adults,Learning Disability 18 - 64,3rd Party Payments,Supported Lodgings (Childrens)/Supported Living (Adults),DYNAMIC SUPPORT LTD,SN25,21/04/2023,"1,390.40"
82506337,Learning Disabilities,Adults,Learning Disability 18 - 64,3rd Party Payments,Supported Lodgings (Childrens)/Supported Living (Adults),DYNAMIC SUPPORT LTD,SN25,21/04/2023,"6,504.68"
79656233,Learning Disabilities,Adults,Learning Disability 18 - 64,3rd Party Payments,Personal Budget - Domiciliary care,DYNAMIC SUPPORT LTD,SN25,05/04/2023,345.31
82506337,Physical Support,Adults,Physical Support 65 and over,3rd Party Payments,Supported Lodgings (Childrens)/Supported Living (Adults),DYNAMIC SUPPORT LTD,SN25,21/04/2023,"-10,722.00"
79657234,Physical Support,Adults,Physical Support 65 and over,3rd Party Payments,Personal Budget - Domiciliary care,DYNAMIC SUPPORT LTD,SN25,05/04/2023,"15,058.56"
82506337,Mental Health,Adults,Mental Health 18-64,3rd Party Payments,Supported Lodgings (Childrens)/Supported Living (Adults),DYNAMIC SUPPORT LTD,SN25,21/04/2023,"1,342.76"
82506337,Learning Disabilities,Adults,Learning Disability 18 - 64,3rd Party Payments,Supported Lodgings (Childrens)/Supported Living (Adults),DYNAMIC SUPPORT LTD,SN25,21/04/2023,142.96
82506337,Learning Disabilities,Adults,Learning Disability 18 - 64,3rd Party Payments,Supported Lodgings (Childrens)/Supported Living (Adults),DYNAMIC SUPPORT LTD,SN25,21/04/2023,"2,787.72"
82506337,Learning Disabilities,Adults,Learning Disability 18 - 64,3rd Party Payments,Supported Lodgings (Childrens)/Supported Living (Adults),DYNAMIC SUPPORT LTD,SN25,21/04/2023,"1,858.48"
82506337,Learning Disabilities,Adults,Learning Disability 18 - 64,3rd Party Payments,Supported Lodgings (Childrens)/Supported Living (Adults),DYNAMIC SUPPORT LTD,SN25,21/04/2023,"-1,582.54"
82506337,Learning Disabilities,Adults,Learning Disability 18 - 64,3rd Party Payments,Supported Lodgings (Childrens)/Supported Living (Adults),DYNAMIC SUPPORT LTD,SN25,21/04/2023,641.60
82506337,Learning Disabilities,Adults,Learning Disability 18 - 64,3rd Party Payments,Supported Lodgings (Childrens)/Supported Living (Adults),DYNAMIC SUPPORT LTD,SN25,21/04/2023,865.80
82506337,Learning Disabilities,Adults,Learning Disability 18 - 64,Income,Client Contribution - Supported Living,DYNAMIC SUPPORT LTD,SN25,21/04/2023,-336.48
82506337,Learning Disabilities,Adults,Learning Disability 18 - 64,Income,Client Contribution - Supported Living,DYNAMIC SUPPORT LTD,SN25,21/04/2023,-440.60
82506337,Learning Disabilities,Adults,Learning Disability 18 - 64,3rd Party Payments,Supported Lodgings (Childrens)/Supported Living (Adults),DYNAMIC SUPPORT LTD,SN25,21/04/2023,"5,408.64"
82506337,Learning Disabilities,Adults,Learning Disability 18 - 64,3rd Party Payments,Supported Lodgings (Childrens)/Supported Living (Adults),DYNAMIC SUPPORT LTD,SN25,21/04/2023,"3,788.44"
82506337,Learning Disabilities,Adults,Learning Disability 18 - 64,3rd Party Payments,Supported Lodgings (Childrens)/Supported Living (Adults),DYNAMIC SUPPORT LTD,SN25,21/04/2023,"1,572.48"
82506337,Learning Disabilities,Adults,Learning Disability 18 - 64,3rd Party Payments,Supported Lodgings (Childrens)/Supported Living (Adults),DYNAMIC SUPPORT LTD,SN25,21/04/2023,536.12
82506337,Learning Disabilities,Adults,Learning Disability 18 - 64,3rd Party Payments,Supported Lodgings (Childrens)/Supported Living (Adults),DYNAMIC SUPPORT LTD,SN25,21/04/2023,"6,433.20"
79656233,Learning Disabilities,Adults,Learning Disability 18 - 64,3rd Party Payments,Personal Budget - Domiciliary care,DYNAMIC SUPPORT LTD,SN25,05/04/2023,190.79
82506337,Learning Disabilities,Adults,Learning Disability 65 and over,3rd Party Payments,Supported Lodgings (Childrens)/Supported Living (Adults),DYNAMIC SUPPORT LTD,SN25,21/04/2023,"3,502.52"
82506337,Physical Support,Adults,Physical Support 18 - 64,3rd Party Payments,Supported Lodgings (Childrens)/Supported Living (Adults),DYNAMIC SUPPORT LTD,SN25,21/04/2023,"7,505.40"
82506337,Learning Disabilities,Adults,Learning Disability 18 - 64,3rd Party Payments,Supported Lodgings (Childrens)/Supported Living (Adults),DYNAMIC SUPPORT LTD,SN25,21/04/2023,"1,342.76"
82506337,Learning Disabilities,Adults,Learning Disability 18 - 64,3rd Party Payments,Supported Lodgings (Childrens)/Supported Living (Adults),DYNAMIC SUPPORT LTD,SN25,21/04/2023,"7,505.40"
82506337,Learning Disabilities,Adults,Learning Disability 18 - 64,3rd Party Payments,Supported Lodgings (Childrens)/Supported Living (Adults),DYNAMIC SUPPORT LTD,SN25,21/04/2023,"4,475.52"
82506337,Learning Disabilities,Adults,Learning Disability 18 - 64,3rd Party Payments,Supported Lodgings (Childrens)/Supported Living (Adults),DYNAMIC SUPPORT LTD,SN25,21/04/2023,"2,685.48"
81709233,Learning Disabilities,Adults,Learning Disability 18 - 64,3rd Party Payments,Personal Budget - Domiciliary care,DYNAMIC SUPPORT LTD,SN25,19/04/2023,632.96
79656234,Learning Disabilities,Adults,Learning Disability 18 - 64,3rd Party Payments,Personal Budget - Domiciliary care,DYNAMIC SUPPORT LTD,SN25,05/04/2023,"1,582.40"
82506337,Physical Support,Adults,Physical Support 65 and over,3rd Party Payments,Supported Lodgings (Childrens)/Supported Living (Adults),DYNAMIC SUPPORT LTD,SN25,21/04/2023,"3,574.00"
82506337,Mental Health,Adults,Mental Health 18-64,3rd Party Payments,Supported Lodgings (Childrens)/Supported Living (Adults),DYNAMIC SUPPORT LTD,SN25,21/04/2023,"7,505.40"
82506337,Learning Disabilities,Adults,Learning Disability 18 - 64,Income,Client Contribution - Supported Living,DYNAMIC SUPPORT LTD,SN25,21/04/2023,-18.12
82506337,Learning Disabilities,Adults,Learning Disability 18 - 64,3rd Party Payments,Supported Lodgings (Childrens)/Supported Living (Adults),DYNAMIC SUPPORT LTD,SN25,21/04/2023,"1,246.83"
82506337,Learning Disabilities,Adults,Learning Disability 18 - 64,3rd Party Payments,Supported Lodgings (Childrens)/Supported Living (Adults),DYNAMIC SUPPORT LTD,SN25,21/04/2023,267.32
82506337,Learning Disabilities,Adults,Learning Disability 18 - 64,3rd Party Payments,Supported Lodgings (Childrens)/Supported Living (Adults),DYNAMIC SUPPORT LTD,SN25,21/04/2023,123.40
82506337,Learning Disabilities,Adults,Learning Disability 18 - 64,3rd Party Payments,Supported Lodgings (Childrens)/Supported Living (Adults),DYNAMIC SUPPORT LTD,SN25,21/04/2023,"4,717.68"
82506337,Learning Disabilities,Adults,Learning Disability 18 - 64,3rd Party Payments,Supported Lodgings (Childrens)/Supported Living (Adults),DYNAMIC SUPPORT LTD,SN25,21/04/2023,"6,849.68"
82506337,Physical Support,Adults,Physical Support 65 and over,3rd Party Payments,Supported Lodgings (Childrens)/Supported Living (Adults),DYNAMIC SUPPORT LTD,SN25,21/04/2023,"2,501.80"
82506337,Physical Support,Adults,Physical Support 65 and over,3rd Party Payments,Supported Lodgings (Childrens)/Supported Living (Adults),DYNAMIC SUPPORT LTD,SN25,21/04/2023,"4,475.52"
82506337,Physical Support,Adults,Physical Support 18 - 64,3rd Party Payments,Supported Lodgings (Childrens)/Supported Living (Adults),DYNAMIC SUPPORT LTD,SN25,21/04/2023,"2,685.48"
82506337,Learning Disabilities,Adults,Learning Disability 18 - 64,3rd Party Payments,Supported Lodgings (Childrens)/Supported Living (Adults),DYNAMIC SUPPORT LTD,SN25,21/04/2023,"3,132.76"
82506337,Learning Disabilities,Adults,Learning Disability 18 - 64,3rd Party Payments,Supported Lodgings (Childrens)/Supported Living (Adults),DYNAMIC SUPPORT LTD,SN25,21/04/2023,"3,145.12"
82506337,Learning Disabilities,Adults,Learning Disability 18 - 64,3rd Party Payments,Supported Lodgings (Childrens)/Supported Living (Adults),DYNAMIC SUPPORT LTD,SN25,21/04/2023,"1,072.00"
82506337,Learning Disabilities,Adults,Learning Disability 18 - 64,3rd Party Payments,Supported Lodgings (Childrens)/Supported Living (Adults),DYNAMIC SUPPORT LTD,SN25,21/04/2023,"-3,706.75"
82506337,Learning Disabilities,Adults,Learning Disability 18 - 64,3rd Party Payments,Supported Lodgings (Childrens)/Supported Living (Adults),DYNAMIC SUPPORT LTD,SN25,21/04/2023,"25,104.80"
82506337,Learning Disabilities,Adults,Learning Disability 18 - 64,3rd Party Payments,Supported Lodgings (Childrens)/Supported Living (Adults),DYNAMIC SUPPORT LTD,SN25,21/04/2023,"1,572.56"
82506337,Learning Disabilities,Adults,Learning Disability 18 - 64,Income,Client Contribution - Supported Living,DYNAMIC SUPPORT LTD,SN25,21/04/2023,-112.00
82506337,Learning Disabilities,Adults,Learning Disability 18 - 64,3rd Party Payments,Supported Lodgings (Childrens)/Supported Living (Adults),DYNAMIC SUPPORT LTD,SN25,21/04/2023,"5,646.92"
82506337,Learning Disabilities,Adults,Learning Disability 18 - 64,3rd Party Payments,Supported Lodgings (Childrens)/Supported Living (Adults),DYNAMIC SUPPORT LTD,SN25,21/04/2023,"7,219.48"
Corporate Card Transaction,Lydiard Park,Streetsmart,Lydiard House & Park,Supplies and Services,Materials,Earth Anchors Ltd,,11/04/2023,"2,833.00"
81374233,Town Centre,"Economy, Growth and Place","No 7, 9 & 11 Carriage works @ Railway Village",Capital,Contractor Payments,E W BEARD LTD,SN3 ,17/04/2023,"114,968.89"
82381234,Early Years Block,DSG Skills and Attainment,Free Nursery Education Commissioning - three & four  year olds,3rd Party Payments,Contracts - Child Care,EAST WICHEL COMMUNITY PRIMARY SCHOOL,SN1 ,19/04/2023,"46,761.61"
79846233,Schools - Primary,DSG Skills and Attainment,Primary School Budgets,3rd Party Payments,Mainstream Delegated Funding,EAST WICHEL COMMUNITY PRIMARY SCHOOL,SN1 ,05/04/2023,"135,649.70"
80899233,High Needs Block,DSG Skills and Attainment,SEN Resourcing Assessment Panel,3rd Party Payments,Top up funding - Maintained providers Pre 16,EAST WICHEL COMMUNITY PRIMARY SCHOOL,SN1 ,14/04/2023,"3,752.92"
82381233,Early Years Block,DSG Skills and Attainment,Free Nursery Education Commissioning - two year olds,3rd Party Payments,Contracts - Child Care,EAST WICHEL COMMUNITY PRIMARY SCHOOL,SN1 ,19/04/2023,"4,598.57"
81648243,DSG Other Funding,DSG Skills and Attainment,DFE Additional Grants,3rd Party Payments,Payment of Pupil Premium to school,EAST WICHEL COMMUNITY PRIMARY SCHOOL,SN1 ,19/04/2023,"6,006.00"
81647245,Schools - Primary,DSG Skills and Attainment,Primary School Budgets,3rd Party Payments,Mainstream Delegated Funding,EAST WICHEL COMMUNITY PRIMARY SCHOOL,SN1 ,19/04/2023,"129,530.00"
82506303,Learning Disabilities,Adults,Learning Disability 18 - 64,3rd Party Payments,Residential Care,EASTERBROOK FARM LTD,EX20,21/04/2023,"-8,025.93"
82506303,Learning Disabilities,Adults,Learning Disability 18 - 64,3rd Party Payments,Residential Care,EASTERBROOK FARM LTD,EX20,21/04/2023,"4,976.08"
82506303,Learning Disabilities,Adults,Learning Disability 18 - 64,Income,Client Contribution - Residential,EASTERBROOK FARM LTD,EX20,21/04/2023,-485.81
82506303,Learning Disabilities,Adults,Learning Disability 18 - 64,Income,Client Contribution - Residential,EASTERBROOK FARM LTD,EX20,21/04/2023,619.64
82506303,Learning Disabilities,Adults,Learning Disability 18 - 64,3rd Party Payments,Residential Care,EASTERBROOK FARM LTD,EX20,21/04/2023,"4,494.52"
82506303,Learning Disabilities,Adults,Learning Disability 18 - 64,Income,Client Contribution - Residential,EASTERBROOK FARM LTD,EX20,21/04/2023,-483.20
82506303,Learning Disabilities,Adults,Learning Disability 18 - 64,Income,Client Contribution - Residential,EASTERBROOK FARM LTD,EX20,21/04/2023,-327.89
82506303,Learning Disabilities,Adults,Learning Disability 18 - 64,3rd Party Payments,Residential Care,EASTERBROOK FARM LTD,EX20,21/04/2023,"3,049.85"
79549233,DSG Other Funding,DSG Skills and Attainment,LAC pupil premium,3rd Party Payments,Education / Training,EB EDUCATION SERVICES LTD,SK4 ,05/04/2023,"18,226.00"
83589233,Highways Inspections & Maintenance,Highway Operations and Car Parking,Highway Maintenance,Supplies and Services,Equipment,ECON ENGINEERING LTD,HG4 ,28/04/2023,513.68
82378233,,,Balance Sheet,Balance Sheet & Recharge,Electricy Invoices,EDF ENERGY CUSTOMERS LIMITED,PL3 ,21/04/2023,"12,762.71"
82378233,Treasury,Corporate Finance,Treasury,Capital & Treasury Financing,MiRS: Interest Payable and Similar Charges,EDF ENERGY CUSTOMERS LIMITED,PL3 ,21/04/2023,3.60
82954234,Property Estates,Property,Carriage Works,Premises Costs,Electricity,EDF ENERGY CUSTOMERS LIMITED,PL3 ,26/04/2023,"2,411.06"
82506318,Physical Support,Adults,Physical Support 65 and over,Income,Client Contribution - Residential,EDGE HILL,DT5 ,21/04/2023,-649.04
82506318,Physical Support,Adults,Physical Support 65 and over,Income,Client Contribution - Residential,EDGE HILL,DT5 ,21/04/2023,-845.60
82506318,Physical Support,Adults,Physical Support 65 and over,Income,Client Contribution - Residential,EDGE HILL,DT5 ,21/04/2023,"-1,143.49"
82506318,Physical Support,Adults,Physical Support 18 - 64,3rd Party Payments,Residential Care,EDGE HILL,DT5 ,21/04/2023,"4,396.00"
82506318,Physical Support,Adults,Physical Support 65 and over,Income,Client Contribution - Residential,EDGE HILL,DT5 ,21/04/2023,-22.42
82506318,Physical Support,Adults,Physical Support 65 and over,Income,Client Contribution - Residential,EDGE HILL,DT5 ,21/04/2023,-818.56
82506318,Physical Support,Adults,Physical Support 65 and over,Income,Client Contribution - Residential,EDGE HILL,DT5 ,21/04/2023,-627.80
82506318,Physical Support,Adults,Physical Support 65 and over,3rd Party Payments,Residential Care,EDGE HILL,DT5 ,21/04/2023,"-4,853.22"
82506318,Physical Support,Adults,Physical Support 65 and over,3rd Party Payments,Residential Care,EDGE HILL,DT5 ,21/04/2023,135.71
82506318,Physical Support,Adults,Physical Support 65 and over,3rd Party Payments,Residential Care,EDGE HILL,DT5 ,21/04/2023,"2,384.04"
82506318,Physical Support,Adults,Physical Support 65 and over,Income,Client Contribution - Residential,EDGE HILL,DT5 ,21/04/2023,-569.40
82506318,Physical Support,Adults,Physical Support 65 and over,Income,Client Contribution - Residential,EDGE HILL,DT5 ,21/04/2023,80.56
82506318,Physical Support,Adults,Physical Support 65 and over,Income,Client Contribution - Residential,EDGE HILL,DT5 ,21/04/2023,-608.80
82506318,Physical Support,Adults,Physical Support 65 and over,Income,Client Contribution - Residential,EDGE HILL,DT5 ,21/04/2023,-567.28
82506318,Physical Support,Adults,Physical Support 65 and over,3rd Party Payments,Residential Care,EDGE HILL,DT5 ,21/04/2023,"3,328.00"
82506318,Physical Support,Adults,Physical Support 65 and over,3rd Party Payments,Residential Care,EDGE HILL,DT5 ,21/04/2023,"4,000.00"
82506318,Physical Support,Adults,Physical Support 65 and over,Income,Client Contribution - Residential,EDGE HILL,DT5 ,21/04/2023,"-1,083.24"
82506318,Physical Support,Adults,Physical Support 65 and over,3rd Party Payments,Residential Care,EDGE HILL,DT5 ,21/04/2023,"3,980.00"
82506318,Mental Health,Adults,Mental Health 65 and over,Income,Client Contribution - Residential,EDGE HILL,DT5 ,21/04/2023,-441.48
82506318,Physical Support,Adults,Physical Support 65 and over,Income,Client Contribution - Residential,EDGE HILL,DT5 ,21/04/2023,"2,295.96"
82506318,Physical Support,Adults,Physical Support 65 and over,Income,Client Contribution - Residential,EDGE HILL,DT5 ,21/04/2023,-560.54
82506318,Physical Support,Adults,Physical Support 65 and over,Income,Client Contribution - Residential,EDGE HILL,DT5 ,21/04/2023,-703.80
82506318,Physical Support,Adults,Physical Support 65 and over,Income,Client Contribution - Residential,EDGE HILL,DT5 ,21/04/2023,-729.44
82506318,Physical Support,Adults,Physical Support 65 and over,Income,Client Contribution - Residential,EDGE HILL,DT5 ,21/04/2023,-871.20
82506318,Physical Support,Adults,Physical Support 65 and over,3rd Party Payments,Residential Care,EDGE HILL,DT5 ,21/04/2023,"2,844.24"
82506318,Physical Support,Adults,Physical Support 65 and over,3rd Party Payments,Residential Care,EDGE HILL,DT5 ,21/04/2023,"3,392.86"
82506318,Physical Support,Adults,Physical Support 18 - 64,3rd Party Payments,Residential Care,EDGE HILL,DT5 ,21/04/2023,"2,560.12"
82506318,Physical Support,Adults,Physical Support 65 and over,Income,Client Contribution - Residential,EDGE HILL,DT5 ,21/04/2023,"-1,368.48"
82506318,Physical Support,Adults,Physical Support 65 and over,Income,Client Contribution - Residential,EDGE HILL,DT5 ,21/04/2023,-879.52
82506318,Physical Support,Adults,Physical Support 65 and over,Income,Client Contribution - Residential,EDGE HILL,DT5 ,21/04/2023,-862.80
82506318,Physical Support,Adults,Physical Support 65 and over,Income,Client Contribution - Residential,EDGE HILL,DT5 ,21/04/2023,-840.92
82506318,Physical Support,Adults,Physical Support 65 and over,Income,Client Contribution - Residential,EDGE HILL,DT5 ,21/04/2023,-687.80
82506318,Physical Support,Adults,Physical Support 65 and over,3rd Party Payments,Residential Care,EDGE HILL,DT5 ,21/04/2023,"2,560.12"
82506318,Physical Support,Adults,Physical Support 65 and over,3rd Party Payments,Residential Care,EDGE HILL,DT5 ,21/04/2023,"3,400.00"
82506318,Physical Support,Adults,Physical Support 65 and over,3rd Party Payments,Residential Care,EDGE HILL,DT5 ,21/04/2023,"3,920.00"
82506318,Physical Support,Adults,Physical Support 65 and over,3rd Party Payments,Residential Care,EDGE HILL,DT5 ,21/04/2023,"4,663.08"
82506318,Mental Health,Adults,Mental Health 65 and over,3rd Party Payments,Residential Care,EDGE HILL,DT5 ,21/04/2023,"2,560.12"
82506318,Physical Support,Adults,Physical Support 65 and over,Income,Client Contribution - Residential,EDGE HILL,DT5 ,21/04/2023,"-1,906.76"
82506318,Physical Support,Adults,Physical Support 65 and over,Income,Client Contribution - Residential,EDGE HILL,DT5 ,21/04/2023,"-1,122.80"
82506318,Physical Support,Adults,Physical Support 65 and over,Income,Client Contribution - Residential,EDGE HILL,DT5 ,21/04/2023,-657.56
82506318,Physical Support,Adults,Physical Support 65 and over,Income,Client Contribution - Residential,EDGE HILL,DT5 ,21/04/2023,-611.80
82506318,Physical Support,Adults,Physical Support 65 and over,Income,Client Contribution - Residential,EDGE HILL,DT5 ,21/04/2023,"-1,345.29"
82506318,Physical Support,Adults,Physical Support 65 and over,3rd Party Payments,Residential Care,EDGE HILL,DT5 ,21/04/2023,"8,142.86"
82506318,Physical Support,Adults,Physical Support 65 and over,Income,Client Contribution - Residential,EDGE HILL,DT5 ,21/04/2023,"-1,302.04"
82506318,Physical Support,Adults,Physical Support 65 and over,Income,Client Contribution - Residential,EDGE HILL,DT5 ,21/04/2023,"-1,378.16"
79978233,Social Care,"Children, Families and Community Health Services",Legal Fees,Supplies and Services,Fees,REDACTED PERSONAL DATA,WC1R,05/04/2023,"3,427.62"
81323233,Treasury,Corporate Finance,Private Finance Initiatives (PFI),3rd Party Payments,Contract Payments,EDUCATION SUPPORT (SWINDON) LTD,EH3 ,17/04/2023,"1,004,807.64"
81323233,Treasury,Corporate Finance,Private Finance Initiatives (PFI),Supplies and Services,Service Charges,EDUCATION SUPPORT (SWINDON) LTD,EH3 ,17/04/2023,"3,397.53"
81323233,Treasury,Corporate Finance,Private Finance Initiatives (PFI),Income,Settlements,EDUCATION SUPPORT (SWINDON) LTD,EH3 ,17/04/2023,"-1,066.00"
81902233,,,Balance Sheet,Balance Sheet & Recharge,Mobile phone invoices,EE (EVERYTHING EVERYWHERE),S98 ,19/04/2023,"7,624.74"
81902233,,,Balance Sheet,Balance Sheet & Recharge,Mobile phone invoices,EE (EVERYTHING EVERYWHERE),S98 ,19/04/2023,9.85
82573251,Social Care,"Children, Families and Community Health Services",Placement Fostering Service,3rd Party Payments,Foster Care Basic Payments,REDACTED PERSONAL DATA,SN5 ,24/04/2023,506.00
82573251,Social Care,"Children, Families and Community Health Services",Placement Fostering Service,3rd Party Payments,Carers Skills Payments - Advanced,REDACTED PERSONAL DATA,SN5 ,24/04/2023,370.00
79885233,Social Care,"Children, Families and Community Health Services",Placement Fostering Service,3rd Party Payments,Foster Care Basic Payments,REDACTED PERSONAL DATA,SN5 ,05/04/2023,506.00
79885233,Social Care,"Children, Families and Community Health Services",Placement Fostering Service,3rd Party Payments,Christmas Payment,REDACTED PERSONAL DATA,SN5 ,05/04/2023,253.00
79885233,Social Care,"Children, Families and Community Health Services",Placement Fostering Service,3rd Party Payments,Christmas Payment,REDACTED PERSONAL DATA,SN5 ,05/04/2023,268.00
82573251,Social Care,"Children, Families and Community Health Services",Placement Fostering Service,3rd Party Payments,Foster Care Basic Payments,REDACTED PERSONAL DATA,SN5 ,24/04/2023,536.00
79885233,Social Care,"Children, Families and Community Health Services",Placement Fostering Service,3rd Party Payments,Foster Care Basic Payments,REDACTED PERSONAL DATA,SN5 ,05/04/2023,536.00
79885233,Social Care,"Children, Families and Community Health Services",Placement Fostering Service,3rd Party Payments,Carers Skills Payments - Advanced,REDACTED PERSONAL DATA,SN5 ,05/04/2023,370.00
81641233,Learning Disabilities,Adults,Learning Disability 18 - 64,3rd Party Payments,Supported Accommodation Scheme,REDACTED PERSONAL DATA,SN25,21/04/2023,"1,790.40"
82272234,Early Years Block,DSG Skills and Attainment,Free Nursery Education Commissioning - two year olds,3rd Party Payments,Contracts - Child Care,ELDENE PRE-SCHOOL,SN3 ,19/04/2023,"11,017.40"
82271235,Early Years Block,DSG Skills and Attainment,Free Nursery Education Commissioning - three & four  year olds,3rd Party Payments,Contracts - Child Care,ELDENE PRE-SCHOOL,SN3 ,19/04/2023,"58,899.37"
82271233,Early Years Block,DSG Skills and Attainment,Free Nursery Education Commissioning - three & four  year olds,3rd Party Payments,Contracts - Child Care,ELDENE PRIMARY SCHOOL,SN3 ,19/04/2023,"26,184.52"
79714233,High Needs Block,DSG Skills and Attainment,SRP (Special Resource Provision) Place,3rd Party Payments,HNB- Place Funding pre 16,ELDENE PRIMARY SCHOOL,SN3 ,05/04/2023,"5,000.00"
81654233,High Needs Block,DSG Skills and Attainment,SRP (Special Resource Provision) Place,3rd Party Payments,HNB- Place Funding pre 16,ELDENE PRIMARY SCHOOL,SN3 ,19/04/2023,"5,000.00"
79832233,Schools - Primary,DSG Skills and Attainment,Primary School Budgets,3rd Party Payments,Mainstream Delegated Funding,ELDENE PRIMARY SCHOOL,SN3 ,05/04/2023,"134,548.10"
82571241,Early Years Block,DSG Skills and Attainment,Free Nursery Education Commissioning - three & four  year olds,3rd Party Payments,Contracts - Child Care,ELDENE PRIMARY SCHOOL,SN3 ,26/04/2023,"2,280.00"
80895233,High Needs Block,DSG Skills and Attainment,SEN Resourcing Assessment Panel,3rd Party Payments,Top up funding - Maintained providers Pre 16,ELDENE PRIMARY SCHOOL,SN3 ,14/04/2023,"6,636.25"
81648233,DSG Other Funding,DSG Skills and Attainment,DFE Additional Grants,3rd Party Payments,Payment of Pupil Premium to school,ELDENE PRIMARY SCHOOL,SN3 ,19/04/2023,"13,475.00"
80915234,High Needs Block,DSG Skills and Attainment,SEN Resourcing Assessment Panel,3rd Party Payments,Top up funding - Maintained providers Pre 16,ELDENE PRIMARY SCHOOL,SN3 ,14/04/2023,"10,925.63"
81647235,Schools - Primary,DSG Skills and Attainment,Primary School Budgets,3rd Party Payments,Mainstream Delegated Funding,ELDENE PRIMARY SCHOOL,SN3 ,19/04/2023,"129,011.00"
81767233,Public Health,Public Health,Sexual Health & Health Protection Budget,3rd Party Payments,Contract Payments,ELDENE SURGERY,SN3 ,19/04/2023,618.00
82506371,Physical Support,Adults,Physical Support 65 and over,3rd Party Payments,Residential Care,ELM GROVE CARE HOME,GL7 ,21/04/2023,"2,709.16"
81731235,Responsive Repairs,Repairs,Responsive Repairs,3rd Party Payments,Contract Payments,EMERALD DAMP SPECIALIST,SN5 ,19/04/2023,330.00
81732234,Responsive Repairs,Repairs,Responsive Repairs,3rd Party Payments,Contract Payments,EMERALD DAMP SPECIALIST,SN5 ,19/04/2023,675.00
81731235,Responsive Repairs,Repairs,Responsive Repairs,3rd Party Payments,Contract Payments,EMERALD DAMP SPECIALIST,SN5 ,19/04/2023,360.00
81733233,Responsive Repairs,Repairs,Responsive Repairs,3rd Party Payments,Contract Payments,EMERALD DAMP SPECIALIST,SN5 ,19/04/2023,450.00
81733233,Responsive Repairs,Repairs,Responsive Repairs,3rd Party Payments,Contract Payments,EMERALD DAMP SPECIALIST,SN5 ,19/04/2023,360.00
81732234,Responsive Repairs,Repairs,Responsive Repairs,3rd Party Payments,Contract Payments,EMERALD DAMP SPECIALIST,SN5 ,19/04/2023,450.00
81730234,Responsive Repairs,Repairs,Responsive Repairs,3rd Party Payments,Contract Payments,EMERALD DAMP SPECIALIST,SN5 ,19/04/2023,440.00
81732234,Responsive Repairs,Repairs,Responsive Repairs,3rd Party Payments,Contract Payments,EMERALD DAMP SPECIALIST,SN5 ,19/04/2023,75.00
81731235,Responsive Repairs,Repairs,Responsive Repairs,3rd Party Payments,Contract Payments,EMERALD DAMP SPECIALIST,SN5 ,19/04/2023,55.00
81734234,Responsive Repairs,Repairs,Responsive Repairs,3rd Party Payments,Contract Payments,EMERALD DAMP SPECIALIST,SN5 ,19/04/2023,75.00
81730234,Responsive Repairs,Repairs,Responsive Repairs,3rd Party Payments,Contract Payments,EMERALD DAMP SPECIALIST,SN5 ,19/04/2023,660.00
81730234,Responsive Repairs,Repairs,Responsive Repairs,3rd Party Payments,Contract Payments,EMERALD DAMP SPECIALIST,SN5 ,19/04/2023,55.00
81730234,Responsive Repairs,Repairs,Responsive Repairs,3rd Party Payments,Contract Payments,EMERALD DAMP SPECIALIST,SN5 ,19/04/2023,495.00
81733233,Responsive Repairs,Repairs,Responsive Repairs,3rd Party Payments,Contract Payments,EMERALD DAMP SPECIALIST,SN5 ,19/04/2023,75.00
81730234,Responsive Repairs,Repairs,Responsive Repairs,3rd Party Payments,Contract Payments,EMERALD DAMP SPECIALIST,SN5 ,19/04/2023,330.00
83096233,Responsive Repairs,Repairs,Responsive Repairs,3rd Party Payments,Contract Payments,EMERALD DAMP SPECIALIST,SN5 ,26/04/2023,75.00
81271233,Responsive Repairs,Repairs,Responsive Repairs,3rd Party Payments,Contract Payments,EMERGENCY SECURITY SERVICES LTD,SN2 ,14/04/2023,"1,096.18"
83238233,Responsive Repairs,Repairs,Responsive Repairs,3rd Party Payments,Contract Payments,EMERGENCY SECURITY SERVICES LTD,SN2 ,26/04/2023,946.20
83502233,Town Centre,"Economy, Growth and Place",Economic Development,Supplies and Services,Consultants,EMERGENCY SECURITY SERVICES LTD,SN2 ,26/04/2023,497.00
80091233,Responsive Repairs,Repairs,Responsive Repairs,3rd Party Payments,Contract Payments,EMERGENCY SECURITY SERVICES LTD,SN2 ,12/04/2023,"1,023.60"
81269233,Responsive Repairs,Repairs,Responsive Repairs,3rd Party Payments,Contract Payments,EMERGENCY SECURITY SERVICES LTD,SN2 ,14/04/2023,"1,857.56"
82427233,Responsive Repairs,Repairs,Responsive Repairs,3rd Party Payments,Contract Payments,EMERGENCY SECURITY SERVICES LTD,SN2 ,21/04/2023,933.38
83444233,Sheltered Accomodation,Special Services,Snowdon Place,Supplies and Services,Equipment,EMERGENCY SECURITY SERVICES LTD,SN2 ,26/04/2023,609.00
80090234,Responsive Repairs,Repairs,Responsive Repairs,3rd Party Payments,Contract Payments,EMERGENCY SECURITY SERVICES LTD,SN2 ,12/04/2023,968.20
81268233,Responsive Repairs,Repairs,Responsive Repairs,3rd Party Payments,Contract Payments,EMERGENCY SECURITY SERVICES LTD,SN2 ,14/04/2023,888.58
83237233,Responsive Repairs,Repairs,Responsive Repairs,3rd Party Payments,Contract Payments,EMERGENCY SECURITY SERVICES LTD,SN2 ,26/04/2023,"1,118.90"
81270233,Responsive Repairs,Repairs,Responsive Repairs,3rd Party Payments,Contract Payments,EMERGENCY SECURITY SERVICES LTD,SN2 ,14/04/2023,802.83
81267233,Responsive Repairs,Repairs,Responsive Repairs,3rd Party Payments,Contract Payments,EMERGENCY SECURITY SERVICES LTD,SN2 ,14/04/2023,933.93
82273234,Early Years Block,DSG Skills and Attainment,Free Nursery Education Commissioning - three & four  year olds,3rd Party Payments,Contracts - Child Care,REDACTED PERSONAL DATA,SN25,19/04/2023,"5,240.35"
82157233,Early Years Block,DSG Skills and Attainment,Free Nursery Education Commissioning - three & four  year olds,3rd Party Payments,Contracts - Child Care,REDACTED PERSONAL DATA,SN4 ,19/04/2023,900.69
82274234,Early Years Block,DSG Skills and Attainment,Free Nursery Education Commissioning - three & four  year olds,3rd Party Payments,Contracts - Child Care,REDACTED PERSONAL DATA,SN4 ,19/04/2023,"3,548.82"
80152233,Human Resources and Organisational Development,"People, Culture and Organisational Resilience",Organisational Development,Employees,Training,ENERGY DEVELOPMENT SERVICES LIMITED,SN4 ,12/04/2023,55.00
80152233,Human Resources and Organisational Development,"People, Culture and Organisational Resilience",Organisational Development,Employees,Training,ENERGY DEVELOPMENT SERVICES LIMITED,SN4 ,12/04/2023,"1,670.00"
81647256,High Needs Block,DSG Skills and Attainment,Special School Place,3rd Party Payments,Alternative Provision Place Funding,EOTAS,SN2 ,19/04/2023,"42,542.00"
79855239,High Needs Block,DSG Skills and Attainment,Special School Place,3rd Party Payments,Alternative Provision Place Funding,EOTAS,SN2 ,05/04/2023,"42,542.00"
81648253,DSG Other Funding,DSG Skills and Attainment,DFE Additional Grants,3rd Party Payments,Payment of Pupil Premium to school,EOTAS,SN2 ,19/04/2023,"2,822.00"
81647255,High Needs Block,DSG Skills and Attainment,Special School Place,3rd Party Payments,Alternative Provision Place Funding,EOTAS,SN2 ,19/04/2023,"129,167.00"
79855238,High Needs Block,DSG Skills and Attainment,Special School Place,3rd Party Payments,Alternative Provision Place Funding,EOTAS,SN2 ,05/04/2023,"129,167.00"
80983233,High Needs Block,DSG Skills and Attainment,SEN Resourcing Assessment Panel,3rd Party Payments,Alternative Provision Top-up Funding,EOTAS,SN2 ,14/04/2023,"43,250.00"
81614234,DSG Other Funding,DSG Skills and Attainment,LAC pupil premium,3rd Party Payments,Education / Training,EQUAL EDUCATION LTD,W1U ,19/04/2023,441.00
81925233,Responsive Repairs,Repairs,Responsive Repairs,3rd Party Payments,Contract Payments,EQUINOX BUILDING SOLUTIONS (SWINDON) LTD,SN5 ,19/04/2023,"1,760.00"
81923233,Responsive Repairs,Repairs,Responsive Repairs,3rd Party Payments,Contract Payments,EQUINOX BUILDING SOLUTIONS (SWINDON) LTD,SN5 ,19/04/2023,"1,038.00"
79996242,Responsive Repairs,Repairs,Responsive Repairs,3rd Party Payments,Contract Payments,EQUINOX BUILDING SOLUTIONS (SWINDON) LTD,SN5 ,05/04/2023,"1,840.00"
79996239,Responsive Repairs,Repairs,Responsive Repairs,3rd Party Payments,Contract Payments,EQUINOX BUILDING SOLUTIONS (SWINDON) LTD,SN5 ,05/04/2023,"1,038.00"
81257233,Responsive Repairs,Repairs,Responsive Repairs,3rd Party Payments,Contract Payments,EQUINOX BUILDING SOLUTIONS (SWINDON) LTD,SN5 ,14/04/2023,"1,575.00"
81258233,Responsive Repairs,Repairs,Responsive Repairs,3rd Party Payments,Contract Payments,EQUINOX BUILDING SOLUTIONS (SWINDON) LTD,SN5 ,14/04/2023,"2,196.00"
79996240,Responsive Repairs,Repairs,Responsive Repairs,3rd Party Payments,Contract Payments,EQUINOX BUILDING SOLUTIONS (SWINDON) LTD,SN5 ,05/04/2023,"2,076.00"
82526233,Responsive Repairs,Repairs,Responsive Repairs,Supplies and Services,Materials,EQUINOX BUILDING SOLUTIONS (SWINDON) LTD,SN5 ,21/04/2023,645.00
82521233,Responsive Repairs,Repairs,Responsive Repairs,3rd Party Payments,Contract Payments,EQUINOX BUILDING SOLUTIONS (SWINDON) LTD,SN5 ,21/04/2023,"1,164.00"
81924233,Responsive Repairs,Repairs,Responsive Repairs,3rd Party Payments,Contract Payments,EQUINOX BUILDING SOLUTIONS (SWINDON) LTD,SN5 ,19/04/2023,"1,038.00"
81256233,Responsive Repairs,Repairs,Responsive Repairs,3rd Party Payments,Contract Payments,EQUINOX BUILDING SOLUTIONS (SWINDON) LTD,SN5 ,14/04/2023,"1,025.00"
79996234,Responsive Repairs,Repairs,Responsive Repairs,3rd Party Payments,Contract Payments,EQUINOX BUILDING SOLUTIONS (SWINDON) LTD,SN5 ,05/04/2023,"1,038.00"
81922233,Responsive Repairs,Repairs,Responsive Repairs,3rd Party Payments,Contract Payments,EQUINOX BUILDING SOLUTIONS (SWINDON) LTD,SN5 ,19/04/2023,"2,162.00"
79996235,Responsive Repairs,Repairs,Responsive Repairs,3rd Party Payments,Contract Payments,EQUINOX BUILDING SOLUTIONS (SWINDON) LTD,SN5 ,05/04/2023,"1,034.00"
79996238,Responsive Repairs,Repairs,Responsive Repairs,3rd Party Payments,Contract Payments,EQUINOX BUILDING SOLUTIONS (SWINDON) LTD,SN5 ,05/04/2023,"1,038.00"
79983233,Responsive Repairs,Repairs,Responsive Repairs,3rd Party Payments,Contract Payments,EQUINOX BUILDING SOLUTIONS (SWINDON) LTD,SN5 ,05/04/2023,"1,038.00"
83236234,Responsive Repairs,Repairs,Responsive Repairs,3rd Party Payments,Contract Payments,EQUINOX BUILDING SOLUTIONS (SWINDON) LTD,SN5 ,26/04/2023,996.00
79996243,Responsive Repairs,Repairs,Responsive Repairs,3rd Party Payments,Contract Payments,EQUINOX BUILDING SOLUTIONS (SWINDON) LTD,SN5 ,05/04/2023,"1,038.00"
82544353,Homelessness and Travellers,Housing Services,Leased Private Managed Accommodation,Transfer Payments,Payment of Costs,REDACTED PERSONAL DATA,SN4 ,24/04/2023,915.00
83477233,Human Resources and Organisational Development,"People, Culture and Organisational Resilience",Organisational Development,Employees,Training,ESS SAFEFORCE,NG10,26/04/2023,600.00
82608234,Disabled Children,"Children, Families and Community Health Services",ICES Paediatric,Supplies and Services,Equipment,ETAC LIMITED,DY10,24/04/2023,"3,299.00"
82394233,Travel,Highways & Transport,Concessionary Travel,3rd Party Payments,Concessionary Travel Subsidy,EUCLID LTD,PO7 ,21/04/2023,"13,138.70"
82392233,Travel,Highways & Transport,Concessionary Travel,3rd Party Payments,Concessionary Travel Subsidy,EUCLID LTD,PO7 ,21/04/2023,"2,842.80"
79997233,Social Care,"Children, Families and Community Health Services",Looked After Children Service,Transport Costs,Client Costs of Taxis,EVAN'S TAXI & MINIBUS HIRE,CF48,05/04/2023,"3,751.88"
79715233,High Needs Block,DSG Skills and Attainment,SRP (Special Resource Provision) Place,3rd Party Payments,HNB- Place Funding pre 16,EVEN SWINDON PRIMARY SCHOOL,SN2 ,05/04/2023,"7,500.00"
81655233,High Needs Block,DSG Skills and Attainment,SRP (Special Resource Provision) Place,3rd Party Payments,HNB- Place Funding pre 16,EVEN SWINDON PRIMARY SCHOOL,SN2 ,19/04/2023,"7,500.00"
81648234,DSG Other Funding,DSG Skills and Attainment,DFE Additional Grants,3rd Party Payments,Payment of Pupil Premium to school,EVEN SWINDON PRIMARY SCHOOL,SN2 ,19/04/2023,"18,288.00"
81647236,Schools - Primary,DSG Skills and Attainment,Primary School Budgets,3rd Party Payments,Mainstream Delegated Funding,EVEN SWINDON PRIMARY SCHOOL,SN2 ,19/04/2023,"225,313.00"
80895234,High Needs Block,DSG Skills and Attainment,SEN Resourcing Assessment Panel,3rd Party Payments,Top up funding - Maintained providers Pre 16,EVEN SWINDON PRIMARY SCHOOL,SN2 ,14/04/2023,"4,773.75"
79833233,Schools - Primary,DSG Skills and Attainment,Primary School Budgets,3rd Party Payments,Mainstream Delegated Funding,EVEN SWINDON PRIMARY SCHOOL,SN2 ,05/04/2023,"235,982.05"
80915235,High Needs Block,DSG Skills and Attainment,SEN Resourcing Assessment Panel,3rd Party Payments,Top up funding - Maintained providers Pre 16,EVEN SWINDON PRIMARY SCHOOL,SN2 ,14/04/2023,"12,773.13"
82276234,Early Years Block,DSG Skills and Attainment,Free Nursery Education Commissioning - two year olds,3rd Party Payments,Contracts - Child Care,EVEN SWINDON PRIMARY SCHOOL,SN2 ,19/04/2023,"1,724.46"
82275233,Early Years Block,DSG Skills and Attainment,Free Nursery Education Commissioning - three & four  year olds,3rd Party Payments,Contracts - Child Care,EVEN SWINDON PRIMARY SCHOOL,SN2 ,19/04/2023,"65,005.71"
81771234,Physical Support,Adults,Physical Support 65 and over,3rd Party Payments,Personal Budget - Domiciliary care,EVERY DAY CHOICES LTD,SN3 ,19/04/2023,73.12
79706233,Physical Support,Adults,Physical Support 18 - 64,3rd Party Payments,Personal Budget - Domiciliary care,EVERY DAY CHOICES LTD,SN3 ,05/04/2023,45.70
81771234,Physical Support,Adults,Physical Support 18 - 64,3rd Party Payments,Personal Budget - Domiciliary care,EVERY DAY CHOICES LTD,SN3 ,19/04/2023,91.40
83400233,Physical Support,Adults,Physical Support 65 and over,3rd Party Payments,Personal Budget - Domiciliary care,EVERY DAY CHOICES LTD,SN3 ,28/04/2023,73.12
83400233,Physical Support,Adults,Physical Support 18 - 64,3rd Party Payments,Personal Budget - Domiciliary care,EVERY DAY CHOICES LTD,SN3 ,28/04/2023,73.12
83400233,Mental Health,Adults,Mental Health 65 and over,3rd Party Payments,Personal Budget - Domiciliary care,EVERY DAY CHOICES LTD,SN3 ,28/04/2023,39.15
80616233,Physical Support,Adults,Physical Support 65 and over,3rd Party Payments,Personal Budget - Domiciliary care,EVERY DAY CHOICES LTD,SN3 ,14/04/2023,18.28
